Organisation name,Organisation Code,Effective date,Directorate / service where expenditure incurred,Service Category label,Service category URI,Supplier (Beneficiary) name,Local supplier (beneficiary) internal reference,Supplier,Supplier registered charity number,VCSE grant,Payment date - G/L Date,Transaction number,Net Amount,Irrecoverable VAT,"Purpose of spend
Account Description",Procurement classification / merchant category: Council�s procurement category name,Procurement classification / merchant category: CPV label,Procurement classification / merchant category: CPV code,Procurement classification / merchant category: Proclass label,Procurement classification / merchant category: Proclass code,Card Transaction,Contract reference,,,,,,,,
The Royal Borough of Kensington and Chelsea,RBKC,,Transportation & Highways,YTH,,Project Centre                          ,,,,,01/10/2014,P2971429,"2,112.03",,Consultants - Traffic Orders,,,,,,No
The Royal Borough of Kensington and Chelsea,RBKC,,Non Revenue,001,,NPS Property Consultants Ltd            ,,,,,01/10/2014,P2971257,"3,110.40",,Furn & Equip-Init Furn & Equip,,,,,,No
The Royal Borough of Kensington and Chelsea,RBKC,,Provided Services/ MH Partners,AS5,,Mastercolour Plc                        ,,,,,01/10/2014,P2971403,"3,302.18",,Payments To Vol Orgs,,,,,,No
The Royal Borough of Kensington and Chelsea,RBKC,,"Cleaner,Greener & Cultural Ser",YCG,,Flyover Portobello Ltd                  ,,,,,01/10/2014,P2971284,600.00,,Room Hire,,,,,,No
The Royal Borough of Kensington and Chelsea,RBKC,,Housing Revenue Account,HRA,,Crown Promotions & Removals Ltd         ,,,,,01/10/2014,P2971379,640.00,,Charges From Hsg & Soc Servs,,,,,,No
The Royal Borough of Kensington and Chelsea,RBKC,,Housing Revenue Account,HRA,,Crown Promotions & Removals Ltd         ,,,,,01/10/2014,P2971380,580.00,,Charges From Hsg & Soc Servs,,,,,,No
The Royal Borough of Kensington and Chelsea,RBKC,,Hsg Needs and Homelessness,HNH,,Crown Promotions & Removals Ltd         ,,,,,01/10/2014,P2971381,760.00,,Relocation expenses-clients,,,,,,No
The Royal Borough of Kensington and Chelsea,RBKC,,Housing Revenue Account,HRA,,Crown Promotions & Removals Ltd         ,,,,,01/10/2014,P2971382,520.00,,Charges From Hsg & Soc Servs,,,,,,No
The Royal Borough of Kensington and Chelsea,RBKC,,Non Revenue,001,,Creative Software Solutions (Europe) Ltd,,,,,01/10/2014,P2971254,"2,165.63",,Payments,,,,,,No
The Royal Borough of Kensington and Chelsea,RBKC,,Non Revenue,001,,Konica Minolta Business Solutions (UK) L,,,,,01/10/2014,P3971408,"-2,139.86",,Payments,,,,,,No
The Royal Borough of Kensington and Chelsea,RBKC,,Non Revenue,001,,Konica Minolta Business Solutions (UK) L,,,,,01/10/2014,P2971407,"2,762.48",,Payments,,,,,,No
The Royal Borough of Kensington and Chelsea,RBKC,,Corporate Property,CBV,,Britewater Ltd                          ,,,,,01/10/2014,P2971386,504.79,,PM Mechanical,,,,,,No
The Royal Borough of Kensington and Chelsea,RBKC,,Family Services - RBKC,SKC,,The Gestalt Centre                      ,,,,,01/10/2014,P2971273,"1,000.00",,Training Expenses,,,,,,No
The Royal Borough of Kensington and Chelsea,RBKC,,Non Revenue,001,,Digital Data Ltd                        ,,,,,01/10/2014,P2971423,"1,500.00",,Construction-Main Ctrctrs A/C,,,,,,No
The Royal Borough of Kensington and Chelsea,RBKC,,Transportation & Highways,YTH,,Digital Data Ltd                        ,,,,,01/10/2014,P2971422,"1,620.00",,Sign Maintenance,,,,,,No
The Royal Borough of Kensington and Chelsea,RBKC,,Hsg Needs and Homelessness,HNH,,Homeswapper                             ,,,,,01/10/2014,P2971375,"6,910.00",,Computer Software Purchase,,,,,,No
The Royal Borough of Kensington and Chelsea,RBKC,,Human Resources,CHG,,Hammersmith & Fulham Mind               ,,,,,01/10/2014,P2971282,982.40,,Training-Corporate Initiatives,,,,,,No
The Royal Borough of Kensington and Chelsea,RBKC,,Non Revenue,001,,Construction Youth Trust                ,,,,,01/10/2014,P2971272,"2,800.00",,Trainee Awards,,,,,,No
The Royal Borough of Kensington and Chelsea,RBKC,,Corporate Property,CBV,,Gerald Eve LLP                          ,,,,,01/10/2014,P2971259,"14,869.00",,Consultants,,,,,,No
The Royal Borough of Kensington and Chelsea,RBKC,,Non Revenue,001,,Kensington & Chelsea TMO Repairs Direct ,,,,,01/10/2014,PI971187,"2,059.43",,Responsive Building Repairs,,,,,,No
The Royal Borough of Kensington and Chelsea,RBKC,,Non Revenue,001,,Kensington & Chelsea TMO Repairs Direct ,,,,,01/10/2014,PI971191,615.99,,Responsive Building Repairs,,,,,,No
The Royal Borough of Kensington and Chelsea,RBKC,,Non Revenue,001,,Kensington & Chelsea TMO Repairs Direct ,,,,,01/10/2014,PI971192,989.33,,Responsive Building Repairs,,,,,,No
The Royal Borough of Kensington and Chelsea,RBKC,,"Cleaner,Greener & Cultural Ser",YCG,,"Morgan, Emily                           ",,,,,01/10/2014,P2971289,"3,000.00",,LB Film Fund,,,,,,No
The Royal Borough of Kensington and Chelsea,RBKC,,Strategy & Local Services,CPU,,Astech Consultants Ltd                  ,,,,,01/10/2014,P2971280,950.00,,Computer Software Purchase,,,,,,No
The Royal Borough of Kensington and Chelsea,RBKC,,Information Systems,CIS,,Astech Consultants Ltd                  ,,,,,01/10/2014,P2971280,"2,850.00",,Computer Software Purchase,,,,,,No
The Royal Borough of Kensington and Chelsea,RBKC,,Non Revenue,001,,Ginkgo Landscape Contractors Ltd        ,,,,,01/10/2014,P2971420,"9,961.40",,Construction-Main Ctrctrs A/C,,,,,,No
The Royal Borough of Kensington and Chelsea,RBKC,,Family Services - RBKC,SKC,,Special People                          ,,,,,01/10/2014,P2971411,570.34,,Supportive Care,,,,,,No
The Royal Borough of Kensington and Chelsea,RBKC,,Family Services - RBKC,SKC,,Special People                          ,,,,,01/10/2014,P2971411,570.33,,Supportive Care,,,,,,No
The Royal Borough of Kensington and Chelsea,RBKC,,Non Revenue,001,,Man With a Van UK                       ,,,,,01/10/2014,P2971426,"4,725.00",,Furn & Equip-Init Furn & Equip,,,,,,No
The Royal Borough of Kensington and Chelsea,RBKC,,Operations,AS6,,Bluebird Care (Kensington & Chelsea)    ,,,,,01/10/2014,P2971255,"1,800.00",,Home Care over 65,,,,,,No
The Royal Borough of Kensington and Chelsea,RBKC,,Tri-Borough Education Service,SED,,Penna PLC                               ,,,,,01/10/2014,P2971428,740.00,,Recruitment Advertising,,,,,,No
The Royal Borough of Kensington and Chelsea,RBKC,,Transportation & Highways,YTH,,Eurovia Infrastructure Ltd              ,,,,,01/10/2014,P2971270,"1,757.44",,Lantern Conversions,,,,,,No
The Royal Borough of Kensington and Chelsea,RBKC,,Transportation & Highways,YTH,,Eurovia Infrastructure Ltd              ,,,,,01/10/2014,P2971270,"1,665.96",,Lantern Conversions,,,,,,No
The Royal Borough of Kensington and Chelsea,RBKC,,Transportation & Highways,YTH,,Eurovia Infrastructure Ltd              ,,,,,01/10/2014,P2971269,"4,818.96",,Cleaning Contract,,,,,,No
The Royal Borough of Kensington and Chelsea,RBKC,,Transportation & Highways,YTH,,Eurovia Infrastructure Ltd              ,,,,,01/10/2014,P2971271,"1,397.88",,Public Lighting-Irrecov Works,,,,,,No
The Royal Borough of Kensington and Chelsea,RBKC,,Transportation & Highways,YTH,,Eurovia Infrastructure Ltd              ,,,,,01/10/2014,P2971287,"2,279.56",,Public Lighting-Contract Maint,,,,,,No
The Royal Borough of Kensington and Chelsea,RBKC,,Transportation & Highways,YTH,,Eurovia Infrastructure Ltd              ,,,,,01/10/2014,P2971287,"10,053.24",,Public Lighting-Contract Maint,,,,,,No
The Royal Borough of Kensington and Chelsea,RBKC,,Transportation & Highways,YTH,,Eurovia Infrastructure Ltd              ,,,,,01/10/2014,P2971287,"13,489.48",,Traffic Signs � Contract Maint,,,,,,No
The Royal Borough of Kensington and Chelsea,RBKC,,Transportation & Highways,YTH,,Eurovia Infrastructure Ltd              ,,,,,01/10/2014,P2971286,"2,268.72",,Meter Bays & Posts,,,,,,No
The Royal Borough of Kensington and Chelsea,RBKC,,Non Revenue,001,,Comensura Ltd                           ,,,,,01/10/2014,P2971425,"136,105.19",,Payments,,,,,,No
The Royal Borough of Kensington and Chelsea,RBKC,,Family Services - RBKC,SKC,,Willis Palmer                           ,,,,,01/10/2014,P2971258,"3,350.00",,Legal Costs,,,,,,No
The Royal Borough of Kensington and Chelsea,RBKC,,Non Revenue,001,,Sharpe Pritchard                        ,,,,,01/10/2014,P2971383,"2,584.50",,Fees-Consultants,,,,,,No
The Royal Borough of Kensington and Chelsea,RBKC,,Non Revenue,001,,Sharpe Pritchard                        ,,,,,01/10/2014,P2971383,"2,584.50",,Fees-Consultants,,,,,,No
The Royal Borough of Kensington and Chelsea,RBKC,,Safer Neighbourhoods,YSN,,London Sport Ltd                        ,,,,,01/10/2014,P2971416,"2,500.00",,Consultants,,,,,,No
The Royal Borough of Kensington and Chelsea,RBKC,,LibrarySupt Services,LSS,,Impress Print Services Ltd              ,,,,,01/10/2014,P2971397,551.00,,Reader Development,,,,,,No
The Royal Borough of Kensington and Chelsea,RBKC,,Transportation & Highways,YTH,,Royal Mail                              ,,,,,01/10/2014,P2971260,965.30,,Postage/Franking Charges,,,,,,No
The Royal Borough of Kensington and Chelsea,RBKC,,Corporate Property,CBV,,Lambert Smith Hampton Group Ltd         ,,,,,01/10/2014,P2971285,"2,250.00",,Consultants,,,,,,No
The Royal Borough of Kensington and Chelsea,RBKC,,Planning Services,PP,,City Suburban Tree Surgeons Ltd         ,,,,,01/10/2014,P2971378,"1,141.97",,Tree Maintenance,,,,,,No
The Royal Borough of Kensington and Chelsea,RBKC,,Planning Services,PP,,City Suburban Tree Surgeons Ltd         ,,,,,01/10/2014,P2971414,"3,130.98",,Tree Maintenance,,,,,,No
The Royal Borough of Kensington and Chelsea,RBKC,,Finance and Resources,YFR,,Patchsave Solutions Ltd                 ,,,,,01/10/2014,P2971263,936.00,,Bldg Fixtures&Fitting-Purchase,,,,,,No
The Royal Borough of Kensington and Chelsea,RBKC,,Customer & Business Improvemnt,YCB,,BPI Recycled Products                   ,,,,,01/10/2014,P2971427,"2,562.38",,Purchase Of Plastic Sacks,,,,,,No
The Royal Borough of Kensington and Chelsea,RBKC,,Transportation & Highways,YTH,,Hyder Consulting (UK) Ltd               ,,,,,01/10/2014,P2971267,"18,983.00",,Bridges-Maintenance,,,,,,No
The Royal Borough of Kensington and Chelsea,RBKC,,Transportation & Highways,YTH,,Hyder Consulting (UK) Ltd               ,,,,,01/10/2014,P2971266,"3,225.88",,Bridges-Maintenance,,,,,,No
The Royal Borough of Kensington and Chelsea,RBKC,,Non Revenue,001,,British Gas Business (Acc 52464055)     ,,,,,01/10/2014,PL822855,"24,368.92",,Payments,,,,,,No
The Royal Borough of Kensington and Chelsea,RBKC,,Family Services - RBKC,SKC,,Redact Details,,,,,01/10/2014,P4971200,620.00,,S24 Assistance,,,,,,No
The Royal Borough of Kensington and Chelsea,RBKC,,Family Services - RBKC,SKC,,Redact Details,,,,,01/10/2014,P4971201,619.40,,S24 Assistance,,,,,,No
The Royal Borough of Kensington and Chelsea,RBKC,,Family Services - RBKC,SKC,,Redact Details,,,,,01/10/2014,P4971202,"2,000.00",,S24 Assistance,,,,,,No
The Royal Borough of Kensington and Chelsea,RBKC,,Family Services - RBKC,SKC,,Redact Details,,,,,01/10/2014,P4971203,"2,000.00",,S24 Assistance,,,,,,No
The Royal Borough of Kensington and Chelsea,RBKC,,Non Revenue,001,,Barrie Bookkeeping & Payroll Solutions  ,,,,,01/10/2014,P4971249,825.94,,Payments,,,,,,No
The Royal Borough of Kensington and Chelsea,RBKC,,Non Revenue,001,,Yarrow Housing                          ,,,,,01/10/2014,P4971250,678.40,,Payments,,,,,,No
The Royal Borough of Kensington and Chelsea,RBKC,,Non Revenue,001,,Yarrow Housing                          ,,,,,01/10/2014,P4971251,678.40,,Payments,,,,,,No
The Royal Borough of Kensington and Chelsea,RBKC,,Non Revenue,001,,Yarrow Housing                          ,,,,,01/10/2014,P4971252,712.32,,Payments,,,,,,No
The Royal Borough of Kensington and Chelsea,RBKC,,Non Revenue,001,,Special People                          ,,,,,01/10/2014,P4971253,913.32,,Payments,,,,,,No
The Royal Borough of Kensington and Chelsea,RBKC,,Non Revenue,001,,Penderels Trust                         ,,,,,01/10/2014,P4971367,"3,000.00",,Payments,,,,,,No
The Royal Borough of Kensington and Chelsea,RBKC,,Family Services - RBKC,SKC,,Dalgarno Pre-School                     ,,,,,01/10/2014,P4971368,"19,606.10",,Grants Given-Misc,,,,,,No
The Royal Borough of Kensington and Chelsea,RBKC,,Non Revenue,001,,Barrie Bookkeeping & Payroll Solutions  ,,,,,01/10/2014,P4971370,"1,241.81",,Payments,,,,,,No
The Royal Borough of Kensington and Chelsea,RBKC,,Family Services - RBKC,SKC,,Colville Nursery Centre                 ,,,,,01/10/2014,P4971371,"4,613.20",,Grants Given-Misc,,,,,,No
The Royal Borough of Kensington and Chelsea,RBKC,,Family Services - RBKC,SKC,,Holland Park Pre-Prep School & Nursery  ,,,,,01/10/2014,P4971372,"8,073.10",,Grants Given-Misc,,,,,,No
The Royal Borough of Kensington and Chelsea,RBKC,,Housing Commissioning,HCM,,Age Concern (Account 00009590)          ,,,,,01/10/2014,P5952525,906.67,,Home Imp Agency (HIA),,,,,,No
The Royal Borough of Kensington and Chelsea,RBKC,,Public Health,JPH,,CNWL NHS Foundation Trust               ,,,,,01/10/2014,P2964757,"-135,750.00",,Contract Costs,,,,,,No
The Royal Borough of Kensington and Chelsea,RBKC,,Public Health,JPH,,CNWL NHS Foundation Trust               ,,,,,01/10/2014,P2964756,"-35,167.00",,Contract Costs,,,,,,No
The Royal Borough of Kensington and Chelsea,RBKC,,Non Revenue,001,,Installation & Maintenance Services     ,,,,,01/10/2014,P2971385,"32,634.50",,Furn & Equip-Init Furn & Equip,,,,,,No
The Royal Borough of Kensington and Chelsea,RBKC,,Strategy & Local Services,CPU,,DVIP                                    ,,,,,01/10/2014,P2971277,"2,500.00",,Payments To Vol Orgs,,,,,,No
The Royal Borough of Kensington and Chelsea,RBKC,,Strategy & Local Services,CPU,,DVIP                                    ,,,,,01/10/2014,P2971278,"8,428.50",,Payments To Vol Orgs,,,,,,No
The Royal Borough of Kensington and Chelsea,RBKC,,Non Revenue,001,,Universal Services Ltd                  ,,,,,01/10/2014,P2971392,"8,033.70",,Furn & Equip-Init Furn & Equip,,,,,,No
The Royal Borough of Kensington and Chelsea,RBKC,,Non Revenue,001,,London Borough Of Hammersmith & Fulham  ,,,,,01/10/2014,P2971398,"3,000.00",,Payments,,,,,,No
The Royal Borough of Kensington and Chelsea,RBKC,,Housing Commissioning,HCM,,Anchor Trust (Bradford)                 ,,,,,01/10/2014,PI971325,899.42,,Accommodation based service,,,,,,No
The Royal Borough of Kensington and Chelsea,RBKC,,Housing Commissioning,HCM,,Anchor Trust (Bradford)                 ,,,,,01/10/2014,PI971326,788.50,,Accommodation based service,,,,,,No
The Royal Borough of Kensington and Chelsea,RBKC,,Housing Commissioning,HCM,,Carr Gomm Society                       ,,,,,01/10/2014,PI971350,"16,732.50",,Accommodation based service,,,,,,No
The Royal Borough of Kensington and Chelsea,RBKC,,Housing Commissioning,HCM,,Christian Alliance Housing Association  ,,,,,01/10/2014,PI971342,"13,062.00",,Accommodation based service,,,,,,No
The Royal Borough of Kensington and Chelsea,RBKC,,Housing Commissioning,HCM,,Family Mosaic Housing (Account 40674362),,,,,01/10/2014,PI971344,"4,653.32",,Accommodation based service,,,,,,No
The Royal Borough of Kensington and Chelsea,RBKC,,Housing Commissioning,HCM,,Family Mosaic Housing (Account 40674362),,,,,01/10/2014,PI971345,"21,450.39",,Floating Support Service,,,,,,No
The Royal Borough of Kensington and Chelsea,RBKC,,Housing Commissioning,HCM,,Field Lane Foundation                   ,,,,,01/10/2014,PI971351,"21,822.37",,Accommodation based service,,,,,,No
The Royal Borough of Kensington and Chelsea,RBKC,,Housing Commissioning,HCM,,Hestia Housing & Support                ,,,,,01/10/2014,PI971339,"15,347.71",,Accommodation based service,,,,,,No
The Royal Borough of Kensington and Chelsea,RBKC,,Housing Commissioning,HCM,,Hestia Housing & Support                ,,,,,01/10/2014,PI971340,"4,293.92",,Accommodation based service,,,,,,No
The Royal Borough of Kensington and Chelsea,RBKC,,Housing Commissioning,HCM,,London Cyrenians Housing Ltd            ,,,,,01/10/2014,PI971320,"11,473.12",,Accommodation based service,,,,,,No
The Royal Borough of Kensington and Chelsea,RBKC,,Housing Commissioning,HCM,,London Cyrenians Housing Ltd            ,,,,,01/10/2014,PI971321,"13,544.19",,Accommodation based service,,,,,,No
The Royal Borough of Kensington and Chelsea,RBKC,,Housing Commissioning,HCM,,London Cyrenians Housing Ltd            ,,,,,01/10/2014,PI971322,"8,124.72",,Accommodation based service,,,,,,No
The Royal Borough of Kensington and Chelsea,RBKC,,Housing Commissioning,HCM,,London Cyrenians Housing Ltd            ,,,,,01/10/2014,PI971323,"7,848.67",,Accommodation based service,,,,,,No
The Royal Borough of Kensington and Chelsea,RBKC,,Housing Commissioning,HCM,,London Cyrenians Housing Ltd            ,,,,,01/10/2014,PI971324,"11,534.75",,Accommodation based service,,,,,,No
The Royal Borough of Kensington and Chelsea,RBKC,,Housing Commissioning,HCM,,Look Ahead Housing & Care (SP account)  ,,,,,01/10/2014,PI971346,"34,707.92",,Accommodation based service,,,,,,No
The Royal Borough of Kensington and Chelsea,RBKC,,Housing Commissioning,HCM,,Look Ahead Housing & Care (SP account)  ,,,,,01/10/2014,PI971347,"57,515.83",,Accommodation based service,,,,,,No
The Royal Borough of Kensington and Chelsea,RBKC,,Housing Commissioning,HCM,,Look Ahead Housing & Care (SP account)  ,,,,,01/10/2014,PI971348,"9,375.42",,Accommodation based service,,,,,,No
The Royal Borough of Kensington and Chelsea,RBKC,,Housing Commissioning,HCM,,Threshold Support                       ,,,,,01/10/2014,PI971331,"4,866.83",,Accommodation based service,,,,,,No
The Royal Borough of Kensington and Chelsea,RBKC,,Housing Commissioning,HCM,,Threshold Support                       ,,,,,01/10/2014,PI971332,"13,994.08",,Accommodation based service,,,,,,No
The Royal Borough of Kensington and Chelsea,RBKC,,Housing Commissioning,HCM,,Threshold Support                       ,,,,,01/10/2014,PI971333,"9,839.50",,Accommodation based service,,,,,,No
The Royal Borough of Kensington and Chelsea,RBKC,,Housing Commissioning,HCM,,Notting Hill Housing Trust (Rent Inv)   ,,,,,01/10/2014,PI971318,"16,283.64",,Accommodation based service,,,,,,No
The Royal Borough of Kensington and Chelsea,RBKC,,Housing Commissioning,HCM,,Notting Hill Housing Trust (Rent Inv)   ,,,,,01/10/2014,PI971319,"15,922.74",,Floating Support Service,,,,,,No
The Royal Borough of Kensington and Chelsea,RBKC,,Housing Commissioning,HCM,,Octavia Housing & Care (Acc 00724564)   ,,,,,01/10/2014,PI971341,"3,185.00",,Floating Support Service,,,,,,No
The Royal Borough of Kensington and Chelsea,RBKC,,Housing Commissioning,HCM,,Richmond Fellowship                     ,,,,,01/10/2014,PI971349,"12,683.75",,Accommodation based service,,,,,,No
The Royal Borough of Kensington and Chelsea,RBKC,,Housing Commissioning,HCM,,English Churches Housing                ,,,,,01/10/2014,PI971334,"2,982.25",,Accommodation based service,,,,,,No
The Royal Borough of Kensington and Chelsea,RBKC,,Housing Commissioning,HCM,,English Churches Housing                ,,,,,01/10/2014,PI971335,"4,440.08",,Accommodation based service,,,,,,No
The Royal Borough of Kensington and Chelsea,RBKC,,Housing Commissioning,HCM,,Portobello Houseshare                   ,,,,,01/10/2014,PI971328,"19,750.25",,Accommodation based service,,,,,,No
The Royal Borough of Kensington and Chelsea,RBKC,,Housing Commissioning,HCM,,Earls Court YMCA                        ,,,,,01/10/2014,PI971329,"15,833.33",,Accommodation based service,,,,,,No
The Royal Borough of Kensington and Chelsea,RBKC,,Housing Commissioning,HCM,,Earls Court YMCA                        ,,,,,01/10/2014,PI971330,"23,084.58",,Accommodation based service,,,,,,No
The Royal Borough of Kensington and Chelsea,RBKC,,Housing Commissioning,HCM,,St Mungo's (Atlantic House)             ,,,,,01/10/2014,PI971338,"22,127.00",,Accommodation based service,,,,,,No
The Royal Borough of Kensington and Chelsea,RBKC,,Housing Commissioning,HCM,,Thames Reach                            ,,,,,01/10/2014,PI971343,"6,391.33",,Accommodation based service,,,,,,No
The Royal Borough of Kensington and Chelsea,RBKC,,Housing Commissioning,HCM,,RBKC - TMO LTD                          ,,,,,01/10/2014,PI971336,"22,619.50",,Accommodation based service,,,,,,No
The Royal Borough of Kensington and Chelsea,RBKC,,Housing Commissioning,HCM,,RBKC - TMO LTD                          ,,,,,01/10/2014,PI971337,"2,281.25",,Accommodation based service,,,,,,No
The Royal Borough of Kensington and Chelsea,RBKC,,Housing Commissioning,HCM,,Servite Houses                          ,,,,,01/10/2014,PI971327,"3,698.25",,Accommodation based service,,,,,,No
The Royal Borough of Kensington and Chelsea,RBKC,,Non Revenue,001,,Trade Electricals Direct                ,,,,,01/10/2014,P2971384,"4,699.00",,Furn & Equip-Init Furn & Equip,,,,,,No
The Royal Borough of Kensington and Chelsea,RBKC,,Corporate Property,CBV,,Thames Water Utilities Ltd              ,,,,,02/10/2014,P2971702,723.52,,Water & Sewerage Rates,,,,,,No
The Royal Borough of Kensington and Chelsea,RBKC,,Commissioning,AS4,,Adjusting The Balance Ltd               ,,,,,02/10/2014,P2971695,800.00,,Training Expenses,,,,,,No
The Royal Borough of Kensington and Chelsea,RBKC,,Strategy & Local Services,CPU,,Harwoods                                ,,,,,02/10/2014,P2971491,"1,977.66",,Vehicle Maintenance,,,,,,No
The Royal Borough of Kensington and Chelsea,RBKC,,Tri-Borough Education Service,SED,,Gerald Eve LLP                          ,,,,,02/10/2014,P2971690,"2,001.00",,Legal Costs,,,,,,No
The Royal Borough of Kensington and Chelsea,RBKC,,Operations,AS6,,Plan Care                               ,,,,,02/10/2014,PI971742,685.07,,P&V HC Spots Over 65,,,,,,No
The Royal Borough of Kensington and Chelsea,RBKC,,Operations,AS6,,Plan Care                               ,,,,,02/10/2014,PI971742,836.09,,P&V HC Spots Over 65,,,,,,No
The Royal Borough of Kensington and Chelsea,RBKC,,Operations,AS6,,Plan Care                               ,,,,,02/10/2014,PI971742,"1,590.64",,P&V HC Spots Over 65,,,,,,No
The Royal Borough of Kensington and Chelsea,RBKC,,Operations,AS6,,Care UK Homecare                        ,,,,,02/10/2014,PI971743,680.46,,P&V HC Spots Over 65,,,,,,No
The Royal Borough of Kensington and Chelsea,RBKC,,Operations,AS6,,Plan Care                               ,,,,,02/10/2014,PI971742,933.84,,P&V HC Spots Over 65,,,,,,No
The Royal Borough of Kensington and Chelsea,RBKC,,Operations,AS6,,Plan Care                               ,,,,,02/10/2014,PI971742,569.65,,P&V HC Spots Over 65,,,,,,No
The Royal Borough of Kensington and Chelsea,RBKC,,Operations,AS6,,Plan Care                               ,,,,,02/10/2014,PI971742,516.53,,P&V HC Spots Over 65,,,,,,No
The Royal Borough of Kensington and Chelsea,RBKC,,Operations,AS6,,Plan Care                               ,,,,,02/10/2014,PI971742,"1,165.35",,P&V HC Spots Over 65,,,,,,No
The Royal Borough of Kensington and Chelsea,RBKC,,Operations,AS6,,Plan Care                               ,,,,,02/10/2014,PI971742,867.87,,P&V HC Spots Over 65,,,,,,No
The Royal Borough of Kensington and Chelsea,RBKC,,Operations,AS6,,Care UK Homecare                        ,,,,,02/10/2014,PI971743,651.22,,P&V HC Spots Over 65,,,,,,No
The Royal Borough of Kensington and Chelsea,RBKC,,Operations,AS6,,Care UK Homecare                        ,,,,,02/10/2014,PI971743,642.55,,P&V HC Spots Over 65,,,,,,No
The Royal Borough of Kensington and Chelsea,RBKC,,Operations,AS6,,Plan Care                               ,,,,,02/10/2014,PI971742,715.76,,P&V HC Spots Over 65,,,,,,No
The Royal Borough of Kensington and Chelsea,RBKC,,Operations,AS6,,Care UK Homecare                        ,,,,,02/10/2014,PI971743,984.71,,P&V HC Spots Over 65,,,,,,No
The Royal Borough of Kensington and Chelsea,RBKC,,Operations,AS6,,Plan Care                               ,,,,,02/10/2014,PI971742,588.46,,P&V HC Spots Over 65,,,,,,No
The Royal Borough of Kensington and Chelsea,RBKC,,Operations,AS6,,Plan Care                               ,,,,,02/10/2014,PI971742,"1,151.46",,P&V HC Spots Over 65,,,,,,No
The Royal Borough of Kensington and Chelsea,RBKC,,Operations,AS6,,Plan Care                               ,,,,,02/10/2014,PI971742,736.93,,P&V HC Spots Over 65,,,,,,No
The Royal Borough of Kensington and Chelsea,RBKC,,Operations,AS6,,Plan Care                               ,,,,,02/10/2014,PI971742,686.53,,P&V HC Spots Over 65,,,,,,No
The Royal Borough of Kensington and Chelsea,RBKC,,Operations,AS6,,Plan Care                               ,,,,,02/10/2014,PI971742,551.80,,P&V HC Spot Purchasing,,,,,,No
The Royal Borough of Kensington and Chelsea,RBKC,,Operations,AS6,,Plan Care                               ,,,,,02/10/2014,PI971742,"1,345.42",,P&V HC Spot Purchasing,,,,,,No
The Royal Borough of Kensington and Chelsea,RBKC,,Operations,AS6,,Care UK Homecare                        ,,,,,02/10/2014,PI971743,895.58,,P&V HC Spots Over 65,,,,,,No
The Royal Borough of Kensington and Chelsea,RBKC,,Operations,AS6,,Care UK Homecare                        ,,,,,02/10/2014,PI971743,518.05,,P&V HC Spots Over 65,,,,,,No
The Royal Borough of Kensington and Chelsea,RBKC,,Operations,AS6,,Plan Care                               ,,,,,02/10/2014,PI971742,588.49,,P&V HC Spots Over 65,,,,,,No
The Royal Borough of Kensington and Chelsea,RBKC,,Operations,AS6,,Plan Care                               ,,,,,02/10/2014,PI971742,943.24,,P&V HC Spots Over 65,,,,,,No
The Royal Borough of Kensington and Chelsea,RBKC,,Operations,AS6,,Plan Care                               ,,,,,02/10/2014,PI971742,"1,041.27",,P&V HC Spots Over 65,,,,,,No
The Royal Borough of Kensington and Chelsea,RBKC,,Operations,AS6,,Plan Care                               ,,,,,02/10/2014,PI971742,900.96,,P&V HC Spots Over 65,,,,,,No
The Royal Borough of Kensington and Chelsea,RBKC,,Operations,AS6,,Plan Care                               ,,,,,02/10/2014,PI971742,"1,148.65",,P&V HC Spots Over 65,,,,,,No
The Royal Borough of Kensington and Chelsea,RBKC,,Operations,AS6,,Care UK Homecare                        ,,,,,02/10/2014,PI971743,730.59,,P&V HC Spots Over 65,,,,,,No
The Royal Borough of Kensington and Chelsea,RBKC,,Operations,AS6,,Care UK Homecare                        ,,,,,02/10/2014,PI971743,"1,162.94",,P&V HC Spots Over 65,,,,,,No
The Royal Borough of Kensington and Chelsea,RBKC,,Operations,AS6,,Care UK Homecare                        ,,,,,02/10/2014,PI971743,"1,314.41",,P&V HC Spots Over 65,,,,,,No
The Royal Borough of Kensington and Chelsea,RBKC,,Operations,AS6,,Care UK Homecare                        ,,,,,02/10/2014,PI971743,613.33,,P&V HC Spots Over 65,,,,,,No
The Royal Borough of Kensington and Chelsea,RBKC,,Operations,AS6,,Care UK Homecare                        ,,,,,02/10/2014,PI971743,"1,191.27",,P&V HC Spots Over 65,,,,,,No
The Royal Borough of Kensington and Chelsea,RBKC,,Operations,AS6,,Plan Care                               ,,,,,02/10/2014,PI971742,634.28,,P&V HC Spots Over 65,,,,,,No
The Royal Borough of Kensington and Chelsea,RBKC,,Operations,AS6,,Plan Care                               ,,,,,02/10/2014,PI971742,646.16,,P&V HC Spots Over 65,,,,,,No
The Royal Borough of Kensington and Chelsea,RBKC,,Operations,AS6,,Care UK Homecare                        ,,,,,02/10/2014,PI971743,648.78,,P&V HC Spots Over 65,,,,,,No
The Royal Borough of Kensington and Chelsea,RBKC,,Operations,AS6,,Plan Care                               ,,,,,02/10/2014,PI971742,537.76,,P&V HC Spots Over 65,,,,,,No
The Royal Borough of Kensington and Chelsea,RBKC,,Operations,AS6,,Care UK Homecare                        ,,,,,02/10/2014,PI971743,614.46,,P&V HC Spots Over 65,,,,,,No
The Royal Borough of Kensington and Chelsea,RBKC,,Operations,AS6,,Care UK Homecare                        ,,,,,02/10/2014,PI971743,817.25,,P&V HC Spots Over 65,,,,,,No
The Royal Borough of Kensington and Chelsea,RBKC,,Operations,AS6,,Care UK Homecare                        ,,,,,02/10/2014,PI971743,828.33,,P&V HC Spots Over 65,,,,,,No
The Royal Borough of Kensington and Chelsea,RBKC,,Operations,AS6,,Care UK Homecare                        ,,,,,02/10/2014,PI971743,619.39,,P&V HC Spots Over 65,,,,,,No
The Royal Borough of Kensington and Chelsea,RBKC,,Operations,AS6,,Plan Care                               ,,,,,02/10/2014,PI971742,524.78,,P&V HC Spots Over 65,,,,,,No
The Royal Borough of Kensington and Chelsea,RBKC,,Operations,AS6,,Plan Care                               ,,,,,02/10/2014,PI971742,944.61,,P&V HC Spots Over 65,,,,,,No
The Royal Borough of Kensington and Chelsea,RBKC,,Operations,AS6,,Plan Care                               ,,,,,02/10/2014,PI971742,715.68,,P&V HC Spots Over 65,,,,,,No
The Royal Borough of Kensington and Chelsea,RBKC,,Operations,AS6,,Plan Care                               ,,,,,02/10/2014,PI971742,535.36,,P&V HC Spots Over 65,,,,,,No
The Royal Borough of Kensington and Chelsea,RBKC,,Operations,AS6,,Care UK Homecare                        ,,,,,02/10/2014,PI971743,518.10,,P&V HC Spots Over 65,,,,,,No
The Royal Borough of Kensington and Chelsea,RBKC,,Operations,AS6,,Plan Care                               ,,,,,02/10/2014,PI971742,"2,824.37",,P&V HC Spots Over 65,,,,,,No
The Royal Borough of Kensington and Chelsea,RBKC,,Operations,AS6,,Plan Care                               ,,,,,02/10/2014,PI971742,"1,670.87",,P&V HC Spots Over 65,,,,,,No
The Royal Borough of Kensington and Chelsea,RBKC,,Operations,AS6,,Plan Care                               ,,,,,02/10/2014,PI971742,633.17,,P&V HC Spots Over 65,,,,,,No
The Royal Borough of Kensington and Chelsea,RBKC,,Operations,AS6,,Plan Care                               ,,,,,02/10/2014,PI971742,"1,439.79",,P&V HC Spots Over 65,,,,,,No
The Royal Borough of Kensington and Chelsea,RBKC,,Operations,AS6,,Plan Care                               ,,,,,02/10/2014,PI971742,958.92,,P&V HC Spots Over 65,,,,,,No
The Royal Borough of Kensington and Chelsea,RBKC,,Operations,AS6,,Plan Care                               ,,,,,02/10/2014,PI971742,"1,125.12",,P&V HC Spots Over 65,,,,,,No
The Royal Borough of Kensington and Chelsea,RBKC,,Operations,AS6,,Care UK Homecare                        ,,,,,02/10/2014,PI971743,531.49,,P&V HC Spots Over 65,,,,,,No
The Royal Borough of Kensington and Chelsea,RBKC,,Operations,AS6,,Care UK Homecare                        ,,,,,02/10/2014,PI971743,597.47,,P&V HC Spots Over 65,,,,,,No
The Royal Borough of Kensington and Chelsea,RBKC,,Operations,AS6,,Care UK Homecare                        ,,,,,02/10/2014,PI971743,"1,942.53",,P&V HC Spots Over 65,,,,,,No
The Royal Borough of Kensington and Chelsea,RBKC,,Operations,AS6,,Plan Care                               ,,,,,02/10/2014,PI971742,"1,600.18",,P&V HC Spots Over 65,,,,,,No
The Royal Borough of Kensington and Chelsea,RBKC,,Operations,AS6,,Care UK Homecare                        ,,,,,02/10/2014,PI971743,837.94,,P&V HC Spots Over 65,,,,,,No
The Royal Borough of Kensington and Chelsea,RBKC,,Operations,AS6,,Plan Care                               ,,,,,02/10/2014,PI971742,511.83,,P&V HC Spots Over 65,,,,,,No
The Royal Borough of Kensington and Chelsea,RBKC,,Operations,AS6,,Plan Care                               ,,,,,02/10/2014,PI971742,"1,530.82",,P&V HC Spots Over 65,,,,,,No
The Royal Borough of Kensington and Chelsea,RBKC,,Operations,AS6,,Plan Care                               ,,,,,02/10/2014,PI971742,686.42,,P&V HC Spots Over 65,,,,,,No
The Royal Borough of Kensington and Chelsea,RBKC,,Operations,AS6,,Care UK Homecare                        ,,,,,02/10/2014,PI971743,730.59,,P&V HC Spots Over 65,,,,,,No
The Royal Borough of Kensington and Chelsea,RBKC,,Operations,AS6,,Care UK Homecare                        ,,,,,02/10/2014,PI971743,"1,486.82",,P&V HC Spots Over 65,,,,,,No
The Royal Borough of Kensington and Chelsea,RBKC,,Operations,AS6,,Care UK Homecare                        ,,,,,02/10/2014,PI971743,685.32,,P&V HC Spots Over 65,,,,,,No
The Royal Borough of Kensington and Chelsea,RBKC,,Operations,AS6,,Care UK Homecare                        ,,,,,02/10/2014,PI971743,"1,168.14",,P&V HC Spots Over 65,,,,,,No
The Royal Borough of Kensington and Chelsea,RBKC,,Operations,AS6,,Care UK Homecare                        ,,,,,02/10/2014,PI971743,853.96,,P&V HC Spots Over 65,,,,,,No
The Royal Borough of Kensington and Chelsea,RBKC,,Operations,AS6,,Care UK Homecare                        ,,,,,02/10/2014,PI971743,"2,572.92",,P&V HC Spots Over 65,,,,,,No
The Royal Borough of Kensington and Chelsea,RBKC,,Operations,AS6,,Care UK Homecare                        ,,,,,02/10/2014,PI971743,724.46,,P&V HC Spots Over 65,,,,,,No
The Royal Borough of Kensington and Chelsea,RBKC,,Operations,AS6,,Care UK Homecare                        ,,,,,02/10/2014,PI971743,525.28,,P&V HC Spots Over 65,,,,,,No
The Royal Borough of Kensington and Chelsea,RBKC,,Operations,AS6,,Plan Care                               ,,,,,02/10/2014,PI971742,569.66,,P&V HC Spots Over 65,,,,,,No
The Royal Borough of Kensington and Chelsea,RBKC,,Operations,AS6,,Plan Care                               ,,,,,02/10/2014,PI971742,693.22,,P&V HC Spots Over 65,,,,,,No
The Royal Borough of Kensington and Chelsea,RBKC,,Operations,AS6,,Plan Care                               ,,,,,02/10/2014,PI971742,724.09,,P&V HC Spots Over 65,,,,,,No
The Royal Borough of Kensington and Chelsea,RBKC,,Operations,AS6,,Plan Care                               ,,,,,02/10/2014,PI971742,658.12,,P&V HC Spots Over 65,,,,,,No
The Royal Borough of Kensington and Chelsea,RBKC,,Operations,AS6,,Care UK Homecare                        ,,,,,02/10/2014,PI971743,608.43,,P&V HC Spots Over 65,,,,,,No
The Royal Borough of Kensington and Chelsea,RBKC,,Operations,AS6,,Plan Care                               ,,,,,02/10/2014,PI971742,"1,493.64",,P&V HC Spots Over 65,,,,,,No
The Royal Borough of Kensington and Chelsea,RBKC,,Operations,AS6,,Plan Care                               ,,,,,02/10/2014,PI971742,840.60,,P&V HC Spots Over 65,,,,,,No
The Royal Borough of Kensington and Chelsea,RBKC,,Operations,AS6,,Care UK Homecare                        ,,,,,02/10/2014,PI971743,"1,078.78",,P&V HC Spots Over 65,,,,,,No
The Royal Borough of Kensington and Chelsea,RBKC,,Operations,AS6,,Plan Care                               ,,,,,02/10/2014,PI971742,"2,762.67",,P&V HC Spots Over 65,,,,,,No
The Royal Borough of Kensington and Chelsea,RBKC,,Operations,AS6,,Care UK Homecare                        ,,,,,02/10/2014,PI971743,753.80,,P&V HC Spots Over 65,,,,,,No
The Royal Borough of Kensington and Chelsea,RBKC,,Operations,AS6,,Plan Care                               ,,,,,02/10/2014,PI971742,696.99,,P&V HC Spots Over 65,,,,,,No
The Royal Borough of Kensington and Chelsea,RBKC,,Operations,AS6,,Plan Care                               ,,,,,02/10/2014,PI971742,845.42,,P&V HC Spots Over 65,,,,,,No
The Royal Borough of Kensington and Chelsea,RBKC,,Operations,AS6,,Plan Care                               ,,,,,02/10/2014,PI971742,683.96,,P&V HC Spots Over 65,,,,,,No
The Royal Borough of Kensington and Chelsea,RBKC,,Operations,AS6,,Care UK Homecare                        ,,,,,02/10/2014,PI971743,587.68,,P&V HC Spots Over 65,,,,,,No
The Royal Borough of Kensington and Chelsea,RBKC,,Operations,AS6,,Plan Care                               ,,,,,02/10/2014,PI971742,660.25,,P&V HC Spots Over 65,,,,,,No
The Royal Borough of Kensington and Chelsea,RBKC,,Operations,AS6,,Care UK Homecare                        ,,,,,02/10/2014,PI971743,513.19,,P&V HC Spots Over 65,,,,,,No
The Royal Borough of Kensington and Chelsea,RBKC,,Operations,AS6,,Plan Care                               ,,,,,02/10/2014,PI971742,945.72,,P&V HC Spots Over 65,,,,,,No
The Royal Borough of Kensington and Chelsea,RBKC,,Operations,AS6,,Plan Care                               ,,,,,02/10/2014,PI971742,990.53,,P&V HC Spots Over 65,,,,,,No
The Royal Borough of Kensington and Chelsea,RBKC,,Operations,AS6,,Care UK Homecare                        ,,,,,02/10/2014,PI971743,553.48,,P&V HC Spots Over 65,,,,,,No
The Royal Borough of Kensington and Chelsea,RBKC,,Operations,AS6,,Plan Care                               ,,,,,02/10/2014,PI971742,"2,104.11",,P&V HC Spots Over 65,,,,,,No
The Royal Borough of Kensington and Chelsea,RBKC,,Operations,AS6,,Care UK Homecare                        ,,,,,02/10/2014,PI971743,657.32,,P&V HC Spots Over 65,,,,,,No
The Royal Borough of Kensington and Chelsea,RBKC,,Operations,AS6,,Plan Care                               ,,,,,02/10/2014,PI971742,833.73,,P&V HC Spots Over 65,,,,,,No
The Royal Borough of Kensington and Chelsea,RBKC,,Operations,AS6,,Plan Care                               ,,,,,02/10/2014,PI971742,864.32,,P&V HC Spots Over 65,,,,,,No
The Royal Borough of Kensington and Chelsea,RBKC,,Operations,AS6,,Plan Care                               ,,,,,02/10/2014,PI971742,582.62,,P&V HC Spots Over 65,,,,,,No
The Royal Borough of Kensington and Chelsea,RBKC,,Operations,AS6,,Plan Care                               ,,,,,02/10/2014,PI971742,"1,806.23",,P&V HC Spots Over 65,,,,,,No
The Royal Borough of Kensington and Chelsea,RBKC,,Operations,AS6,,Plan Care                               ,,,,,02/10/2014,PI971742,660.27,,P&V HC Spots Over 65,,,,,,No
The Royal Borough of Kensington and Chelsea,RBKC,,Operations,AS6,,Plan Care                               ,,,,,02/10/2014,PI971742,799.38,,P&V HC Spots Over 65,,,,,,No
The Royal Borough of Kensington and Chelsea,RBKC,,Operations,AS6,,Plan Care                               ,,,,,02/10/2014,PI971742,"1,154.33",,P&V HC Spots Over 65,,,,,,No
The Royal Borough of Kensington and Chelsea,RBKC,,Operations,AS6,,Plan Care                               ,,,,,02/10/2014,PI971742,"1,601.30",,P&V HC Spots Over 65,,,,,,No
The Royal Borough of Kensington and Chelsea,RBKC,,Operations,AS6,,Plan Care                               ,,,,,02/10/2014,PI971742,700.47,,P&V HC Spots Over 65,,,,,,No
The Royal Borough of Kensington and Chelsea,RBKC,,Operations,AS6,,Plan Care                               ,,,,,02/10/2014,PI971742,739.52,,P&V HC Spots Over 65,,,,,,No
The Royal Borough of Kensington and Chelsea,RBKC,,Operations,AS6,,Plan Care                               ,,,,,02/10/2014,PI971742,507.04,,P&V HC Spots Over 65,,,,,,No
The Royal Borough of Kensington and Chelsea,RBKC,,Operations,AS6,,Plan Care                               ,,,,,02/10/2014,PI971742,512.89,,P&V HC Spot Purchasing,,,,,,No
The Royal Borough of Kensington and Chelsea,RBKC,,Operations,AS6,,Plan Care                               ,,,,,02/10/2014,PI971742,"1,368.86",,P&V HC Spots Over 65,,,,,,No
The Royal Borough of Kensington and Chelsea,RBKC,,Operations,AS6,,Care UK Homecare                        ,,,,,02/10/2014,PI971743,573.07,,P&V HC Spots Over 65,,,,,,No
The Royal Borough of Kensington and Chelsea,RBKC,,Operations,AS6,,Care UK Homecare                        ,,,,,02/10/2014,PI971743,"1,360.83",,P&V HC Spots Over 65,,,,,,No
The Royal Borough of Kensington and Chelsea,RBKC,,Operations,AS6,,Plan Care                               ,,,,,02/10/2014,PI971742,"1,153.28",,P&V HC Spots Over 65,,,,,,No
The Royal Borough of Kensington and Chelsea,RBKC,,Operations,AS6,,Care UK Homecare                        ,,,,,02/10/2014,PI971743,628.10,,P&V HC Spots Over 65,,,,,,No
The Royal Borough of Kensington and Chelsea,RBKC,,Operations,AS6,,Care UK Homecare                        ,,,,,02/10/2014,PI971743,681.75,,P&V HC Spots Over 65,,,,,,No
The Royal Borough of Kensington and Chelsea,RBKC,,Operations,AS6,,Care UK Homecare                        ,,,,,02/10/2014,PI971743,664.53,,P&V HC Spots Over 65,,,,,,No
The Royal Borough of Kensington and Chelsea,RBKC,,Operations,AS6,,Plan Care                               ,,,,,02/10/2014,PI971742,643.84,,P&V HC Spots Over 65,,,,,,No
The Royal Borough of Kensington and Chelsea,RBKC,,Operations,AS6,,Care UK Homecare                        ,,,,,02/10/2014,PI971743,"1,641.81",,P&V HC Spots Over 65,,,,,,No
The Royal Borough of Kensington and Chelsea,RBKC,,Operations,AS6,,Plan Care                               ,,,,,02/10/2014,PI971742,"1,410.35",,P&V HC Spots Over 65,,,,,,No
The Royal Borough of Kensington and Chelsea,RBKC,,Operations,AS6,,Plan Care                               ,,,,,02/10/2014,PI971742,"1,055.26",,P&V HC Spots Over 65,,,,,,No
The Royal Borough of Kensington and Chelsea,RBKC,,Operations,AS6,,Care UK Homecare                        ,,,,,02/10/2014,PI971743,"1,112.08",,P&V HC Spots Over 65,,,,,,No
The Royal Borough of Kensington and Chelsea,RBKC,,Operations,AS6,,Plan Care                               ,,,,,02/10/2014,PI971742,574.19,,P&V HC Spots Over 65,,,,,,No
The Royal Borough of Kensington and Chelsea,RBKC,,Operations,AS6,,Plan Care                               ,,,,,02/10/2014,PI971742,"2,513.73",,P&V HC Spots Over 65,,,,,,No
The Royal Borough of Kensington and Chelsea,RBKC,,Operations,AS6,,Care UK Homecare                        ,,,,,02/10/2014,PI971743,852.84,,P&V HC Spots Over 65,,,,,,No
The Royal Borough of Kensington and Chelsea,RBKC,,Operations,AS6,,Care UK Homecare                        ,,,,,02/10/2014,PI971743,829.56,,P&V HC Spots Over 65,,,,,,No
The Royal Borough of Kensington and Chelsea,RBKC,,Operations,AS6,,Plan Care                               ,,,,,02/10/2014,PI971742,930.78,,P&V HC Spots Over 65,,,,,,No
The Royal Borough of Kensington and Chelsea,RBKC,,Operations,AS6,,Plan Care                               ,,,,,02/10/2014,PI971742,524.82,,P&V HC Spots Over 65,,,,,,No
The Royal Borough of Kensington and Chelsea,RBKC,,Operations,AS6,,Care UK Homecare                        ,,,,,02/10/2014,PI971743,"1,375.68",,P&V HC Spots Over 65,,,,,,No
The Royal Borough of Kensington and Chelsea,RBKC,,Operations,AS6,,Care UK Homecare                        ,,,,,02/10/2014,PI971743,"1,154.39",,P&V HC Spots Over 65,,,,,,No
The Royal Borough of Kensington and Chelsea,RBKC,,Operations,AS6,,Care UK Homecare                        ,,,,,02/10/2014,PI971743,"1,114.08",,P&V HC Spots Over 65,,,,,,No
The Royal Borough of Kensington and Chelsea,RBKC,,Operations,AS6,,Plan Care                               ,,,,,02/10/2014,PI971742,"1,183.93",,P&V HC Spots Over 65,,,,,,No
The Royal Borough of Kensington and Chelsea,RBKC,,Operations,AS6,,Plan Care                               ,,,,,02/10/2014,PI971742,"1,101.41",,P&V HC Spots Over 65,,,,,,No
The Royal Borough of Kensington and Chelsea,RBKC,,Operations,AS6,,Plan Care                               ,,,,,02/10/2014,PI971742,961.09,,P&V HC Spots Over 65,,,,,,No
The Royal Borough of Kensington and Chelsea,RBKC,,Operations,AS6,,Care UK Homecare                        ,,,,,02/10/2014,PI971743,"1,049.46",,P&V HC Spots Over 65,,,,,,No
The Royal Borough of Kensington and Chelsea,RBKC,,Operations,AS6,,Plan Care                               ,,,,,02/10/2014,PI971742,680.47,,P&V HC Spots Over 65,,,,,,No
The Royal Borough of Kensington and Chelsea,RBKC,,Operations,AS6,,Care UK Homecare                        ,,,,,02/10/2014,PI971743,737.84,,P&V HC Spots Over 65,,,,,,No
The Royal Borough of Kensington and Chelsea,RBKC,,Operations,AS6,,Plan Care                               ,,,,,02/10/2014,PI971742,537.77,,P&V HC Spots Over 65,,,,,,No
The Royal Borough of Kensington and Chelsea,RBKC,,Operations,AS6,,Plan Care                               ,,,,,02/10/2014,PI971742,588.40,,P&V HC Spots Over 65,,,,,,No
The Royal Borough of Kensington and Chelsea,RBKC,,Operations,AS6,,Care UK Homecare                        ,,,,,02/10/2014,PI971743,"2,108.56",,P&V HC Spots Over 65,,,,,,No
The Royal Borough of Kensington and Chelsea,RBKC,,Operations,AS6,,Plan Care                               ,,,,,02/10/2014,PI971742,693.35,,P&V HC Spots Over 65,,,,,,No
The Royal Borough of Kensington and Chelsea,RBKC,,Operations,AS6,,Care UK Homecare                        ,,,,,02/10/2014,PI971743,"1,117.83",,P&V HC Spots Over 65,,,,,,No
The Royal Borough of Kensington and Chelsea,RBKC,,Operations,AS6,,Plan Care                               ,,,,,02/10/2014,PI971742,963.32,,P&V HC Spots Over 65,,,,,,No
The Royal Borough of Kensington and Chelsea,RBKC,,Operations,AS6,,Plan Care                               ,,,,,02/10/2014,PI971742,"1,340.67",,P&V HC Spots Over 65,,,,,,No
The Royal Borough of Kensington and Chelsea,RBKC,,Operations,AS6,,Plan Care                               ,,,,,02/10/2014,PI971742,"1,281.80",,P&V HC Spots Over 65,,,,,,No
The Royal Borough of Kensington and Chelsea,RBKC,,Operations,AS6,,Care UK Homecare                        ,,,,,02/10/2014,PI971743,"1,616.42",,P&V HC Spots Over 65,,,,,,No
The Royal Borough of Kensington and Chelsea,RBKC,,Operations,AS6,,Care UK Homecare                        ,,,,,02/10/2014,PI971743,959.09,,P&V HC Spots Over 65,,,,,,No
The Royal Borough of Kensington and Chelsea,RBKC,,Operations,AS6,,Care UK Homecare                        ,,,,,02/10/2014,PI971743,"1,359.87",,P&V HC Spots Over 65,,,,,,No
The Royal Borough of Kensington and Chelsea,RBKC,,Operations,AS6,,Care UK Homecare                        ,,,,,02/10/2014,PI971743,919.96,,P&V HC Spots Over 65,,,,,,No
The Royal Borough of Kensington and Chelsea,RBKC,,Operations,AS6,,Plan Care                               ,,,,,02/10/2014,PI971742,593.07,,P&V HC Spots Over 65,,,,,,No
The Royal Borough of Kensington and Chelsea,RBKC,,Operations,AS6,,Plan Care                               ,,,,,02/10/2014,PI971742,"1,201.43",,P&V HC Spots Over 65,,,,,,No
The Royal Borough of Kensington and Chelsea,RBKC,,Operations,AS6,,Plan Care                               ,,,,,02/10/2014,PI971742,503.58,,P&V HC Spots Over 65,,,,,,No
The Royal Borough of Kensington and Chelsea,RBKC,,Operations,AS6,,Care UK Homecare                        ,,,,,02/10/2014,PI971743,"1,913.03",,P&V HC Spots Over 65,,,,,,No
The Royal Borough of Kensington and Chelsea,RBKC,,Operations,AS6,,Plan Care                               ,,,,,02/10/2014,PI971742,517.67,,P&V HC Spots Over 65,,,,,,No
The Royal Borough of Kensington and Chelsea,RBKC,,Operations,AS6,,Plan Care                               ,,,,,02/10/2014,PI971742,634.40,,P&V HC Spots Over 65,,,,,,No
The Royal Borough of Kensington and Chelsea,RBKC,,Operations,AS6,,Plan Care                               ,,,,,02/10/2014,PI971742,889.16,,P&V HC Spots Over 65,,,,,,No
The Royal Borough of Kensington and Chelsea,RBKC,,Operations,AS6,,Plan Care                               ,,,,,02/10/2014,PI971742,"1,034.36",,P&V HC Spots Over 65,,,,,,No
The Royal Borough of Kensington and Chelsea,RBKC,,Operations,AS6,,Plan Care                               ,,,,,02/10/2014,PI971742,706.30,,P&V HC Spots Over 65,,,,,,No
The Royal Borough of Kensington and Chelsea,RBKC,,Operations,AS6,,Plan Care                               ,,,,,02/10/2014,PI971742,721.64,,P&V HC Spots Over 65,,,,,,No
The Royal Borough of Kensington and Chelsea,RBKC,,Operations,AS6,,Care UK Homecare                        ,,,,,02/10/2014,PI971743,"1,712.99",,P&V HC Spots Over 65,,,,,,No
The Royal Borough of Kensington and Chelsea,RBKC,,Operations,AS6,,Plan Care                               ,,,,,02/10/2014,PI971742,537.58,,P&V HC Spots Over 65,,,,,,No
The Royal Borough of Kensington and Chelsea,RBKC,,Operations,AS6,,Care UK Homecare                        ,,,,,02/10/2014,PI971743,580.37,,P&V HC Spots Over 65,,,,,,No
The Royal Borough of Kensington and Chelsea,RBKC,,Operations,AS6,,Plan Care                               ,,,,,02/10/2014,PI971742,503.45,,P&V HC Spots Over 65,,,,,,No
The Royal Borough of Kensington and Chelsea,RBKC,,Operations,AS6,,Plan Care                               ,,,,,02/10/2014,PI971742,882.00,,P&V HC Spots Over 65,,,,,,No
The Royal Borough of Kensington and Chelsea,RBKC,,Operations,AS6,,Care UK Homecare                        ,,,,,02/10/2014,PI971743,977.36,,P&V HC Spots Over 65,,,,,,No
The Royal Borough of Kensington and Chelsea,RBKC,,Operations,AS6,,Plan Care                               ,,,,,02/10/2014,PI971742,633.15,,P&V HC Spots Over 65,,,,,,No
The Royal Borough of Kensington and Chelsea,RBKC,,Operations,AS6,,Plan Care                               ,,,,,02/10/2014,PI971742,"3,023.87",,P&V HC Spots Over 65,,,,,,No
The Royal Borough of Kensington and Chelsea,RBKC,,Operations,AS6,,Care UK Homecare                        ,,,,,02/10/2014,PI971743,584.07,,P&V HC Spots Over 65,,,,,,No
The Royal Borough of Kensington and Chelsea,RBKC,,Operations,AS6,,Plan Care                               ,,,,,02/10/2014,PI971742,"1,716.96",,P&V HC Spots Over 65,,,,,,No
The Royal Borough of Kensington and Chelsea,RBKC,,Operations,AS6,,Care UK Homecare                        ,,,,,02/10/2014,PI971743,"1,783.86",,P&V HC Spots Over 65,,,,,,No
The Royal Borough of Kensington and Chelsea,RBKC,,Operations,AS6,,Care UK Homecare                        ,,,,,02/10/2014,PI971743,762.39,,P&V HC Spots Over 65,,,,,,No
The Royal Borough of Kensington and Chelsea,RBKC,,Operations,AS6,,Care UK Homecare                        ,,,,,02/10/2014,PI971743,973.71,,P&V HC Spots Over 65,,,,,,No
The Royal Borough of Kensington and Chelsea,RBKC,,Operations,AS6,,Care UK Homecare                        ,,,,,02/10/2014,PI971743,"1,224.14",,P&V HC Spots Over 65,,,,,,No
The Royal Borough of Kensington and Chelsea,RBKC,,Operations,AS6,,Care UK Homecare                        ,,,,,02/10/2014,PI971743,"2,529.69",,P&V HC Spots Over 65,,,,,,No
The Royal Borough of Kensington and Chelsea,RBKC,,Operations,AS6,,Plan Care                               ,,,,,02/10/2014,PI971742,593.30,,P&V HC Spots Over 65,,,,,,No
The Royal Borough of Kensington and Chelsea,RBKC,,Operations,AS6,,Plan Care                               ,,,,,02/10/2014,PI971742,811.20,,P&V HC Spots Over 65,,,,,,No
The Royal Borough of Kensington and Chelsea,RBKC,,Operations,AS6,,Care UK Homecare                        ,,,,,02/10/2014,PI971743,587.65,,P&V HC Spots Over 65,,,,,,No
The Royal Borough of Kensington and Chelsea,RBKC,,Operations,AS6,,Care UK Homecare                        ,,,,,02/10/2014,PI971743,"1,263.12",,P&V HC Spots Over 65,,,,,,No
The Royal Borough of Kensington and Chelsea,RBKC,,Operations,AS6,,Plan Care                               ,,,,,02/10/2014,PI971742,775.86,,P&V HC Spots Over 65,,,,,,No
The Royal Borough of Kensington and Chelsea,RBKC,,Operations,AS6,,Plan Care                               ,,,,,02/10/2014,PI971742,"1,005.84",,P&V HC Spots Over 65,,,,,,No
The Royal Borough of Kensington and Chelsea,RBKC,,Operations,AS6,,Care UK Homecare                        ,,,,,02/10/2014,PI971743,606.19,,P&V HC Spots Over 65,,,,,,No
The Royal Borough of Kensington and Chelsea,RBKC,,Operations,AS6,,Plan Care                               ,,,,,02/10/2014,PI971742,909.17,,P&V HC Spots Over 65,,,,,,No
The Royal Borough of Kensington and Chelsea,RBKC,,Operations,AS6,,Plan Care                               ,,,,,02/10/2014,PI971742,847.88,,P&V HC Spots Over 65,,,,,,No
The Royal Borough of Kensington and Chelsea,RBKC,,Operations,AS6,,Care UK Homecare                        ,,,,,02/10/2014,PI971743,691.49,,P&V HC Spots Over 65,,,,,,No
The Royal Borough of Kensington and Chelsea,RBKC,,Operations,AS6,,Plan Care                               ,,,,,02/10/2014,PI971742,889.04,,P&V HC Spots Over 65,,,,,,No
The Royal Borough of Kensington and Chelsea,RBKC,,Operations,AS6,,Plan Care                               ,,,,,02/10/2014,PI971742,634.49,,P&V HC Spots Over 65,,,,,,No
The Royal Borough of Kensington and Chelsea,RBKC,,Operations,AS6,,Plan Care                               ,,,,,02/10/2014,PI971742,516.39,,P&V HC Spots Over 65,,,,,,No
The Royal Borough of Kensington and Chelsea,RBKC,,Operations,AS6,,Plan Care                               ,,,,,02/10/2014,PI971742,966.97,,P&V HC Spots Over 65,,,,,,No
The Royal Borough of Kensington and Chelsea,RBKC,,Operations,AS6,,Plan Care                               ,,,,,02/10/2014,PI971742,850.25,,P&V HC Spots Over 65,,,,,,No
The Royal Borough of Kensington and Chelsea,RBKC,,Operations,AS6,,Plan Care                               ,,,,,02/10/2014,PI971742,"2,305.39",,P&V HC Spots Over 65,,,,,,No
The Royal Borough of Kensington and Chelsea,RBKC,,Provided Services/ MH Partners,AS5,,Care UK Homecare                        ,,,,,02/10/2014,PI971743,629.15,,P&V HC Spot Purchasing,,,,,,No
The Royal Borough of Kensington and Chelsea,RBKC,,Provided Services/ MH Partners,AS5,,Care UK Homecare                        ,,,,,02/10/2014,PI971743,697.58,,P&V HC Spot Purchasing,,,,,,No
The Royal Borough of Kensington and Chelsea,RBKC,,Provided Services/ MH Partners,AS5,,Plan Care                               ,,,,,02/10/2014,PI971742,799.77,,P&V HC Spot Purchasing,,,,,,No
The Royal Borough of Kensington and Chelsea,RBKC,,Provided Services/ MH Partners,AS5,,Care UK Homecare                        ,,,,,02/10/2014,PI971743,863.71,,P&V HC Spot Purchasing,,,,,,No
The Royal Borough of Kensington and Chelsea,RBKC,,Provided Services/ MH Partners,AS5,,Care UK Homecare                        ,,,,,02/10/2014,PI971743,"1,117.90",,P&V HC Spot Purchasing,,,,,,No
The Royal Borough of Kensington and Chelsea,RBKC,,Provided Services/ MH Partners,AS5,,Plan Care                               ,,,,,02/10/2014,PI971742,"1,169.72",,P&V HC Spot Purchasing,,,,,,No
The Royal Borough of Kensington and Chelsea,RBKC,,Provided Services/ MH Partners,AS5,,Plan Care                               ,,,,,02/10/2014,PI971742,601.62,,P&V HC Spot Purchasing,,,,,,No
The Royal Borough of Kensington and Chelsea,RBKC,,Provided Services/ MH Partners,AS5,,Care UK Homecare                        ,,,,,02/10/2014,PI971743,930.91,,P&V HC Spot Purchasing,,,,,,No
The Royal Borough of Kensington and Chelsea,RBKC,,Provided Services/ MH Partners,AS5,,Care UK Homecare                        ,,,,,02/10/2014,PI971743,636.44,,P&V HC Spot Purchasing,,,,,,No
The Royal Borough of Kensington and Chelsea,RBKC,,Operations,AS6,,Plan Care                               ,,,,,02/10/2014,PI971742,"2,310.23",,P&V HC Spot Purchasing,,,,,,No
The Royal Borough of Kensington and Chelsea,RBKC,,Operations,AS6,,Plan Care                               ,,,,,02/10/2014,PI971742,"2,341.87",,P&V HC Spot Purchasing,,,,,,No
The Royal Borough of Kensington and Chelsea,RBKC,,Operations,AS6,,Care UK Homecare                        ,,,,,02/10/2014,PI971743,829.50,,P&V HC Spot Purchasing,,,,,,No
The Royal Borough of Kensington and Chelsea,RBKC,,Operations,AS6,,Care UK Homecare                        ,,,,,02/10/2014,PI971743,970.04,,P&V HC Spot Purchasing,,,,,,No
The Royal Borough of Kensington and Chelsea,RBKC,,Operations,AS6,,Plan Care                               ,,,,,02/10/2014,PI971742,635.59,,P&V HC Spot Purchasing,,,,,,No
The Royal Borough of Kensington and Chelsea,RBKC,,Operations,AS6,,Care UK Homecare                        ,,,,,02/10/2014,PI971743,"4,563.76",,P&V HC Spot Purchasing,,,,,,No
The Royal Borough of Kensington and Chelsea,RBKC,,Operations,AS6,,Care UK Homecare                        ,,,,,02/10/2014,PI971743,"1,910.67",,P&V HC Spot Purchasing,,,,,,No
The Royal Borough of Kensington and Chelsea,RBKC,,Operations,AS6,,Plan Care                               ,,,,,02/10/2014,PI971742,870.18,,P&V HC Spot Purchasing,,,,,,No
The Royal Borough of Kensington and Chelsea,RBKC,,Operations,AS6,,Care UK Homecare                        ,,,,,02/10/2014,PI971743,879.67,,P&V HC Spot Purchasing,,,,,,No
The Royal Borough of Kensington and Chelsea,RBKC,,Operations,AS6,,Care UK Homecare                        ,,,,,02/10/2014,PI971743,"3,815.33",,P&V HC Spot Purchasing,,,,,,No
The Royal Borough of Kensington and Chelsea,RBKC,,Operations,AS6,,Plan Care                               ,,,,,02/10/2014,PI971742,"1,095.42",,P&V HC Spot Purchasing,,,,,,No
The Royal Borough of Kensington and Chelsea,RBKC,,Operations,AS6,,Plan Care                               ,,,,,02/10/2014,PI971742,"1,051.86",,P&V HC Spot Purchasing,,,,,,No
The Royal Borough of Kensington and Chelsea,RBKC,,Operations,AS6,,Plan Care                               ,,,,,02/10/2014,PI971742,"1,592.02",,P&V HC Spot Purchasing,,,,,,No
The Royal Borough of Kensington and Chelsea,RBKC,,Operations,AS6,,Plan Care                               ,,,,,02/10/2014,PI971742,"1,641.41",,P&V HC Spot Purchasing,,,,,,No
The Royal Borough of Kensington and Chelsea,RBKC,,Operations,AS6,,Plan Care                               ,,,,,02/10/2014,PI971742,555.20,,P&V HC Spot Purchasing,,,,,,No
The Royal Borough of Kensington and Chelsea,RBKC,,Operations,AS6,,Plan Care                               ,,,,,02/10/2014,PI971742,"1,307.56",,P&V HC Spot Purchasing,,,,,,No
The Royal Borough of Kensington and Chelsea,RBKC,,Operations,AS6,,Plan Care                               ,,,,,02/10/2014,PI971742,839.51,,P&V HC Spot Purchasing,,,,,,No
The Royal Borough of Kensington and Chelsea,RBKC,,Operations,AS6,,Plan Care                               ,,,,,02/10/2014,PI971742,785.42,,P&V HC Spot Purchasing,,,,,,No
The Royal Borough of Kensington and Chelsea,RBKC,,Operations,AS6,,Care UK Homecare                        ,,,,,02/10/2014,PI971743,510.63,,P&V HC Spot Purchasing,,,,,,No
The Royal Borough of Kensington and Chelsea,RBKC,,Operations,AS6,,Care UK Homecare                        ,,,,,02/10/2014,PI971743,"1,166.87",,P&V HC Spot Purchasing,,,,,,No
The Royal Borough of Kensington and Chelsea,RBKC,,Operations,AS6,,Plan Care                               ,,,,,02/10/2014,PI971742,766.52,,P&V HC Spot Purchasing,,,,,,No
The Royal Borough of Kensington and Chelsea,RBKC,,Operations,AS6,,Plan Care                               ,,,,,02/10/2014,PI971742,506.99,,P&V HC Spot Purchasing,,,,,,No
The Royal Borough of Kensington and Chelsea,RBKC,,Operations,AS6,,Plan Care                               ,,,,,02/10/2014,PI971742,907.99,,P&V HC Spot Purchasing,,,,,,No
The Royal Borough of Kensington and Chelsea,RBKC,,Operations,AS6,,Plan Care                               ,,,,,02/10/2014,PI971742,714.30,,P&V HC Spot Purchasing,,,,,,No
The Royal Borough of Kensington and Chelsea,RBKC,,Operations,AS6,,Plan Care                               ,,,,,02/10/2014,PI971742,565.98,,P&V HC Spot Purchasing,,,,,,No
The Royal Borough of Kensington and Chelsea,RBKC,,Operations,AS6,,Plan Care                               ,,,,,02/10/2014,PI971742,650.90,,P&V HC Spot Purchasing,,,,,,No
The Royal Borough of Kensington and Chelsea,RBKC,,Operations,AS6,,Plan Care                               ,,,,,02/10/2014,PI971742,761.72,,P&V HC Spot Purchasing,,,,,,No
The Royal Borough of Kensington and Chelsea,RBKC,,Operations,AS6,,Plan Care                               ,,,,,02/10/2014,PI971742,628.48,,P&V HC Spot Purchasing,,,,,,No
The Royal Borough of Kensington and Chelsea,RBKC,,Operations,AS6,,Plan Care                               ,,,,,02/10/2014,PI971742,571.87,,P&V HC Spot Purchasing,,,,,,No
The Royal Borough of Kensington and Chelsea,RBKC,,Operations,AS6,,Plan Care                               ,,,,,02/10/2014,PI971742,649.78,,P&V HC Spot Purchasing,,,,,,No
The Royal Borough of Kensington and Chelsea,RBKC,,Operations,AS6,,Plan Care                               ,,,,,02/10/2014,PI971742,"1,298.44",,P&V HC Spot Purchasing,,,,,,No
The Royal Borough of Kensington and Chelsea,RBKC,,Operations,AS6,,Care UK Homecare                        ,,,,,02/10/2014,PI971743,"1,674.91",,P&V HC Spots Over 65,,,,,,No
The Royal Borough of Kensington and Chelsea,RBKC,,Non Revenue,001,,Geotec Surveys Ltd                      ,,,,,02/10/2014,P2971490,"6,250.00",,Construction-Main Ctrctrs A/C,,,,,,No
The Royal Borough of Kensington and Chelsea,RBKC,,"Cleaner,Greener & Cultural Ser",YCG,,MPM Graffiti-Solutions                  ,,,,,02/10/2014,P2971489,"4,904.28",,Contractors Costs,,,,,,No
The Royal Borough of Kensington and Chelsea,RBKC,,Transportation & Highways,YTH,,Bikeworks                               ,,,,,02/10/2014,P2971475,712.50,,Campaigns,,,,,,No
The Royal Borough of Kensington and Chelsea,RBKC,,"Cleaner,Greener & Cultural Ser",YCG,,SDK Environmental Ltd                   ,,,,,02/10/2014,P2971483,"3,207.50",,Animal Warden Contract,,,,,,No
The Royal Borough of Kensington and Chelsea,RBKC,,Non Revenue,001,,Man With a Van UK                       ,,,,,02/10/2014,P2971486,"4,125.00",,Furn & Equip-Init Furn & Equip,,,,,,No
The Royal Borough of Kensington and Chelsea,RBKC,,Operations,AS6,,Bluebird Care (Kensington & Chelsea)    ,,,,,02/10/2014,P2971683,"1,351.50",,Home Care-Ext Providers-Health,,,,,,No
The Royal Borough of Kensington and Chelsea,RBKC,,Operations,AS6,,Bluebird Care (Kensington & Chelsea)    ,,,,,02/10/2014,P2971678,"1,135.07",,Home Care-Ext Providers-Health,,,,,,No
The Royal Borough of Kensington and Chelsea,RBKC,,Operations,AS6,,Bluebird Care (Kensington & Chelsea)    ,,,,,02/10/2014,P2971680,"1,170.62",,Home Care-Ext Providers-Health,,,,,,No
The Royal Borough of Kensington and Chelsea,RBKC,,Operations,AS6,,Bluebird Care (Kensington & Chelsea)    ,,,,,02/10/2014,P2971684,642.86,,Home Care over 65,,,,,,No
The Royal Borough of Kensington and Chelsea,RBKC,,Legal Services,CLA,,Ubiqus UK Ltd                           ,,,,,02/10/2014,P2971464,768.00,,Legal Agents Fees,,,,,,No
The Royal Borough of Kensington and Chelsea,RBKC,,Non Revenue,001,,F M Conway Ltd                          ,,,,,02/10/2014,P2971704,"4,472.38",,Construction-Miscellaneous,,,,,,No
The Royal Borough of Kensington and Chelsea,RBKC,,Legal Services,CLA,,"De Zonie, Jane                          ",,,,,02/10/2014,P2971468,"2,645.00",,Counsels Fees,,,,,,No
The Royal Borough of Kensington and Chelsea,RBKC,,Legal Services,CLA,,"Banerji, Jay                            ",,,,,02/10/2014,P2971469,625.00,,Counsels Fees,,,,,,No
The Royal Borough of Kensington and Chelsea,RBKC,,Legal Services,CLA,,"Singh, Ranjit                           ",,,,,02/10/2014,P2971465,"1,125.00",,Counsels Fees,,,,,,No
The Royal Borough of Kensington and Chelsea,RBKC,,Operations,AS6,,Yarrow Housing                          ,,,,,02/10/2014,P2971709,"2,374.40",,Supported Living,,,,,,No
The Royal Borough of Kensington and Chelsea,RBKC,,Corporate Property,CBV,,Thames Water Utilities Ltd              ,,,,,02/10/2014,P2971705,"3,137.32",,Water & Sewerage Rates,,,,,,No
The Royal Borough of Kensington and Chelsea,RBKC,,Tri-Borough Education Service,SED,,Royal School for The Deaf Derby         ,,,,,02/10/2014,P2971694,"12,139.34",,Independent Schools,,,,,,No
The Royal Borough of Kensington and Chelsea,RBKC,,Provided Services/ MH Partners,AS5,,Alan Berresford Ltd                     ,,,,,02/10/2014,P2971687,"1,875.00",,Training Expenses,,,,,,No
The Royal Borough of Kensington and Chelsea,RBKC,,Operations,AS6,,"Coxall, S                               ",,,,,02/10/2014,P4971442,"1,187.94",,Client Cntb Nursing,,,,,,No
The Royal Borough of Kensington and Chelsea,RBKC,,"Cleaner,Greener & Cultural Ser",YCG,,BPI Recycled Products                   ,,,,,02/10/2014,P2971488,"3,883.14",,Purchase Of Plastic Sacks,,,,,,No
The Royal Borough of Kensington and Chelsea,RBKC,,Operations,AS6,,Full of Life                            ,,,,,02/10/2014,P2971466,"1,732.00",,P&V Day Care,,,,,,No
The Royal Borough of Kensington and Chelsea,RBKC,,Operations,AS6,,Full of Life                            ,,,,,02/10/2014,P2971466,"1,407.25",,P&V Day Care,,,,,,No
The Royal Borough of Kensington and Chelsea,RBKC,,Operations,AS6,,Full of Life                            ,,,,,02/10/2014,P2971466,"1,623.75",,P&V Day Care,,,,,,No
The Royal Borough of Kensington and Chelsea,RBKC,,Operations,AS6,,Full of Life                            ,,,,,02/10/2014,P2971466,"2,922.75",,P&V Day Care,,,,,,No
The Royal Borough of Kensington and Chelsea,RBKC,,Operations,AS6,,Full of Life                            ,,,,,02/10/2014,P2971466,"2,922.75",,P&V Day Care,,,,,,No
The Royal Borough of Kensington and Chelsea,RBKC,,Operations,AS6,,Full of Life                            ,,,,,02/10/2014,P2971466,"5,845.50",,P&V Day Care,,,,,,No
The Royal Borough of Kensington and Chelsea,RBKC,,Operations,AS6,,Full of Life                            ,,,,,02/10/2014,P2971466,"1,840.25",,P&V Day Care,,,,,,No
The Royal Borough of Kensington and Chelsea,RBKC,,Non Revenue,001,,"Orsini, Antonella                       ",,,,,02/10/2014,P4971447,"2,117.14",,Payments,,,,,,No
The Royal Borough of Kensington and Chelsea,RBKC,,Non Revenue,001,,Barrie Bookkeeping & Payroll Solutions  ,,,,,02/10/2014,P4971448,"1,241.81",,Payments,,,,,,No
The Royal Borough of Kensington and Chelsea,RBKC,,Non Revenue,001,,Individual Care Services (ICS)          ,,,,,02/10/2014,P4971454,"1,547.00",,Payments,,,,,,No
The Royal Borough of Kensington and Chelsea,RBKC,,Non Revenue,001,,Barrie Bookkeeping & Payroll Solutions  ,,,,,02/10/2014,P4971455,"1,439.74",,Payments,,,,,,No
The Royal Borough of Kensington and Chelsea,RBKC,,Non Revenue,001,,Barrie Bookkeeping & Payroll Solutions  ,,,,,02/10/2014,P4971456,672.31,,Payments,,,,,,No
The Royal Borough of Kensington and Chelsea,RBKC,,Transportation & Highways,YTH,,Colville Primary School                 ,,,,,02/10/2014,P4971460,"1,491.00",,Initiatives,,,,,,No
The Royal Borough of Kensington and Chelsea,RBKC,,Strategy & Local Services,CPU,,Al-Hasaniya Moroccan Womens Project     ,,,,,02/10/2014,P4971652,"16,907.50",,Grants Given-Misc,,,,,,No
The Royal Borough of Kensington and Chelsea,RBKC,,Strategy & Local Services,CPU,,Kensington & Chelsea Cruse              ,,,,,02/10/2014,P4971653,"1,560.50",,Grants Given-Misc,,,,,,No
The Royal Borough of Kensington and Chelsea,RBKC,,Strategy & Local Services,CPU,,Dalgarno Neighbourhood Trust Ltd        ,,,,,02/10/2014,P4971655,"14,795.75",,Grants Given-Misc,,,,,,No
The Royal Borough of Kensington and Chelsea,RBKC,,Strategy & Local Services,CPU,,Migrant and Refugee Communities Forum   ,,,,,02/10/2014,P4971656,"14,100.00",,Grants Given-Misc,,,,,,No
The Royal Borough of Kensington and Chelsea,RBKC,,Strategy & Local Services,CPU,,Muslim Cultural Heritage Centre Trust   ,,,,,02/10/2014,P4971657,"8,125.00",,Grants Given-Misc,,,,,,No
The Royal Borough of Kensington and Chelsea,RBKC,,Strategy & Local Services,CPU,,North Kensington Law Centre             ,,,,,02/10/2014,P4971658,"10,587.00",,Grants Given-Misc,,,,,,No
The Royal Borough of Kensington and Chelsea,RBKC,,Strategy & Local Services,CPU,,Eritrean Elders Welfare Association     ,,,,,02/10/2014,P4971659,919.00,,Grants Given-Misc,,,,,,No
The Royal Borough of Kensington and Chelsea,RBKC,,Strategy & Local Services,CPU,,Nucleus Legal Advice Centre             ,,,,,02/10/2014,P4971660,"49,625.00",,Grants Given-Misc,,,,,,No
The Royal Borough of Kensington and Chelsea,RBKC,,Strategy & Local Services,CPU,,Golborne Forum                          ,,,,,02/10/2014,P4971661,"1,500.00",,Grants Given-Misc,,,,,,No
The Royal Borough of Kensington and Chelsea,RBKC,,Strategy & Local Services,CPU,,Persian Care Centre                     ,,,,,02/10/2014,P4971662,"1,406.00",,Grants Given-Misc,,,,,,No
The Royal Borough of Kensington and Chelsea,RBKC,,Strategy & Local Services,CPU,,Response Community Projects             ,,,,,02/10/2014,P4971663,"8,775.00",,Grants Given-Misc,,,,,,No
The Royal Borough of Kensington and Chelsea,RBKC,,Strategy & Local Services,CPU,,Kalayaan                                ,,,,,02/10/2014,P4971664,"2,400.00",,Grants Given-Misc,,,,,,No
The Royal Borough of Kensington and Chelsea,RBKC,,Strategy & Local Services,CPU,,SPID Theatre Company Ltd                ,,,,,02/10/2014,P4971665,"3,125.00",,Grants Given-Misc,,,,,,No
The Royal Borough of Kensington and Chelsea,RBKC,,Strategy & Local Services,CPU,,Volunteer Centre Kensington & Chelsea   ,,,,,02/10/2014,P4971666,"29,625.00",,Grants Given-Misc,,,,,,No
The Royal Borough of Kensington and Chelsea,RBKC,,Strategy & Local Services,CPU,,Latymer Christian Centre                ,,,,,02/10/2014,P4971667,750.00,,Grants Given-Misc,,,,,,No
The Royal Borough of Kensington and Chelsea,RBKC,,Strategy & Local Services,CPU,,West & NW London Vietnamese Association ,,,,,02/10/2014,P4971668,"1,250.00",,Grants Given-Misc,,,,,,No
The Royal Borough of Kensington and Chelsea,RBKC,,Strategy & Local Services,CPU,,Meanwhile Gardens Community Association ,,,,,02/10/2014,P4971669,"15,625.00",,Grants Given-Misc,,,,,,No
The Royal Borough of Kensington and Chelsea,RBKC,,Strategy & Local Services,CPU,,Kensington and Chelsea Investment Projec,,,,,02/10/2014,P4971672,"12,500.00",,Payments To Vol Orgs,,,,,,No
The Royal Borough of Kensington and Chelsea,RBKC,,Operations,AS6,,Pursuing Indepentent Paths              ,,,,,02/10/2014,P2971708,556.68,,P&V Day Care,,,,,,No
The Royal Borough of Kensington and Chelsea,RBKC,,Family Services - RBKC,SKC,,CNWL NHS Foundation Trust               ,,,,,02/10/2014,P2971688,"61,852.00",,Commissioned Services,,,,,,No
The Royal Borough of Kensington and Chelsea,RBKC,,Family Services - RBKC,SKC,,"Walia, Baljit                           ",,,,,02/10/2014,P5952538,651.69,,Direct Payments,,,,,,No
The Royal Borough of Kensington and Chelsea,RBKC,,Family Services - RBKC,SKC,,"Musa, Shelly                            ",,,,,02/10/2014,P5964703,521.94,,Subsistence,,,,,,No
The Royal Borough of Kensington and Chelsea,RBKC,,Children's Commissioning,SCC,,African Women's Care                    ,,,,,02/10/2014,P5971492,875.85,,Payments To Vol Orgs,,,,,,No
The Royal Borough of Kensington and Chelsea,RBKC,,Children's Commissioning,SCC,,Al-Hasaniya Moroccan Womens Project     ,,,,,02/10/2014,P5971493,"1,560.58",,Payments To Vol Orgs,,,,,,No
The Royal Borough of Kensington and Chelsea,RBKC,,Children's Commissioning,SCC,,Hestia Housing & Support (Grants Only)  ,,,,,02/10/2014,P5971494,"4,161.50",,Payments To Vol Orgs,,,,,,No
The Royal Borough of Kensington and Chelsea,RBKC,,Children's Commissioning,SCC,,Woman's Trust                           ,,,,,02/10/2014,P5971495,"2,124.10",,Payments To Vol Orgs,,,,,,No
The Royal Borough of Kensington and Chelsea,RBKC,,Children's Commissioning,SCC,,Full of Life                            ,,,,,02/10/2014,P5971496,"8,784.55",,Payments To Vol Orgs,,,,,,No
The Royal Borough of Kensington and Chelsea,RBKC,,Children's Commissioning,SCC,,Full of Life                            ,,,,,02/10/2014,P5971497,"10,341.75",,Payments To Vol Orgs,,,,,,No
The Royal Borough of Kensington and Chelsea,RBKC,,Family Services - RBKC,SKC,,CNWL NHS Foundation Trust               ,,,,,02/10/2014,P2971710,"3,049.00",,Commissioned Services,,,,,,No
The Royal Borough of Kensington and Chelsea,RBKC,,Non Revenue,001,,Gallowglass Ltd                         ,,,,,02/10/2014,P2971712,"1,060.00",,Construction-Miscellaneous,,,,,,No
The Royal Borough of Kensington and Chelsea,RBKC,,Finance & Resources,SFR,,Westminster Council (A/C 01390570)      ,,,,,02/10/2014,P2971484,"284,655.98",,Payments to WCC,,,,,,No
The Royal Borough of Kensington and Chelsea,RBKC,,Transportation & Highways,YTH,,Project Centre                          ,,,,,03/10/2014,P2971891,"26,786.25",,Consultants,,,,,,No
The Royal Borough of Kensington and Chelsea,RBKC,,Operations,AS6,,Christies Care                          ,,,,,03/10/2014,P2971818,"3,040.00",,Home Care,,,,,,No
The Royal Borough of Kensington and Chelsea,RBKC,,Legal Services,CLA,,Bevan Brittan LLP                       ,,,,,03/10/2014,P2972266,"4,418.00",,External Solicitors Fees,,,,,,No
The Royal Borough of Kensington and Chelsea,RBKC,,Family Services - RBKC,SKC,,Jamma Umoja (Residential Services)      ,,,,,03/10/2014,P2971880,"2,898.00",,Parenting Assessments,,,,,,No
The Royal Borough of Kensington and Chelsea,RBKC,,Family Services - RBKC,SKC,,Jamma Umoja (Residential Services)      ,,,,,03/10/2014,P2971883,"2,898.00",,Parenting Assessments,,,,,,No
The Royal Borough of Kensington and Chelsea,RBKC,,Family Services - RBKC,SKC,,Jamma Umoja (Residential Services)      ,,,,,03/10/2014,P2971881,"2,255.00",,Parenting Assessments,,,,,,No
The Royal Borough of Kensington and Chelsea,RBKC,,Family Services - RBKC,SKC,,Jamma Umoja (Residential Services)      ,,,,,03/10/2014,P2971882,"3,157.00",,Parenting Assessments,,,,,,No
The Royal Borough of Kensington and Chelsea,RBKC,,Family Services - RBKC,SKC,,Jamma Umoja (Residential Services)      ,,,,,03/10/2014,P2971885,"2,898.00",,Parenting Assessments,,,,,,No
The Royal Borough of Kensington and Chelsea,RBKC,,Family Services - RBKC,SKC,,Jamma Umoja (Residential Services)      ,,,,,03/10/2014,P2971884,"3,157.00",,Parenting Assessments,,,,,,No
The Royal Borough of Kensington and Chelsea,RBKC,,Family Services - RBKC,SKC,,Jamma Umoja (Residential Services)      ,,,,,03/10/2014,P2971886,"2,597.00",,Parenting Assessments,,,,,,No
The Royal Borough of Kensington and Chelsea,RBKC,,Family Services - RBKC,SKC,,Jamma Umoja (Residential Services)      ,,,,,03/10/2014,P2971887,"3,157.00",,Parenting Assessments,,,,,,No
The Royal Borough of Kensington and Chelsea,RBKC,,Transportation & Highways,YTH,,Metric Group Ltd                        ,,,,,03/10/2014,P2972265,"21,000.00",,Metric excess maintenance,,,,,,No
The Royal Borough of Kensington and Chelsea,RBKC,,Customer & Business Improvemnt,YCB,,Spider UK Ltd                           ,,,,,03/10/2014,P2972276,"2,475.00",,Refuse Containers,,,,,,No
The Royal Borough of Kensington and Chelsea,RBKC,,Customer & Business Improvemnt,YCB,,Spider UK Ltd                           ,,,,,03/10/2014,P2972275,"2,475.00",,Refuse Containers,,,,,,No
The Royal Borough of Kensington and Chelsea,RBKC,,Provided Services/ MH Partners,AS5,,London Letterbox Marketing              ,,,,,03/10/2014,P2971836,"5,435.00",,Payments To Vol Orgs,,,,,,No
The Royal Borough of Kensington and Chelsea,RBKC,,Strategy & Local Services,CPU,,Grillesafe Security Ltd                 ,,,,,03/10/2014,P2971894,782.50,,Contractors Costs,,,,,,No
The Royal Borough of Kensington and Chelsea,RBKC,,Strategy & Local Services,CPU,,Cuisine on Cue Events T/A (HOLD)        ,,,,,03/10/2014,P2971893,710.00,,Hospitality,,,,,,No
The Royal Borough of Kensington and Chelsea,RBKC,,Family Services - RBKC,SKC,,Unibox Boxing Ring Sales Ltd            ,,,,,03/10/2014,P2971841,"1,520.00",,Commissioned Services,,,,,,No
The Royal Borough of Kensington and Chelsea,RBKC,,Operations,AS6,,Ezitracker  Ltd (Formerly Panztel)      ,,,,,03/10/2014,P2972282,"1,600.00",,Telephone Charges,,,,,,No
The Royal Borough of Kensington and Chelsea,RBKC,,Operations,AS6,,Ezitracker  Ltd (Formerly Panztel)      ,,,,,03/10/2014,P2972283,"1,600.00",,Telephone Charges,,,,,,No
The Royal Borough of Kensington and Chelsea,RBKC,,Non Revenue,001,,COFELY DISTRICT ENERGY LTD(UTILICOM LTD),,,,,03/10/2014,PL822853,"42,905.33",,PM-District Heating,,,,,,No
The Royal Borough of Kensington and Chelsea,RBKC,,Strategy & Local Services,CPU,,Chroma Vision Ltd                       ,,,,,03/10/2014,P2971892,"5,970.00",,CCTV Equipment Maintenance,,,,,,No
The Royal Borough of Kensington and Chelsea,RBKC,,Non Revenue,001,,"Webb, S                                 ",,,,,03/10/2014,P2971840,869.00,,Expenditure,,,,,,No
The Royal Borough of Kensington and Chelsea,RBKC,,Provided Services/ MH Partners,AS5,,"Pettifer, Dr B J (C/O Colville Only)    ",,,,,03/10/2014,P2971888,"2,900.00",,Payments To Vol Orgs,,,,,,No
The Royal Borough of Kensington and Chelsea,RBKC,,Information Systems,CIS,,Network Utilities Systems Ltd           ,,,,,03/10/2014,P2972259,637.50,,Network Maintenance,,,,,,No
The Royal Borough of Kensington and Chelsea,RBKC,,Tri-Borough Education Service,SED,,Linden Lodge School                     ,,,,,03/10/2014,P2971798,"2,700.00",,Speech Therapy,,,,,,No
The Royal Borough of Kensington and Chelsea,RBKC,,Non Revenue,001,,Kensington & Chelsea TMO Repairs Direct ,,,,,03/10/2014,PI971942,693.67,,Responsive Building Repairs,,,,,,No
The Royal Borough of Kensington and Chelsea,RBKC,,Non Revenue,001,,Kensington & Chelsea TMO Repairs Direct ,,,,,03/10/2014,PI971943,653.56,,RR-Voids,,,,,,No
The Royal Borough of Kensington and Chelsea,RBKC,,Non Revenue,001,,Kensington & Chelsea TMO Repairs Direct ,,,,,03/10/2014,PI971944,611.12,,RR-Voids,,,,,,No
The Royal Borough of Kensington and Chelsea,RBKC,,Non Revenue,001,,Kensington & Chelsea TMO Repairs Direct ,,,,,03/10/2014,PI972042,535.76,,Responsive Building Repairs,,,,,,No
The Royal Borough of Kensington and Chelsea,RBKC,,Family Services - RBKC,SKC,,Holman Advertising Ltd                  ,,,,,03/10/2014,P2971853,"6,050.00",,Advertising,,,,,,No
The Royal Borough of Kensington and Chelsea,RBKC,,Non Revenue,001,,Kensington & Chelsea TMO Repairs Direct ,,,,,03/10/2014,PI972207,659.48,,Responsive Building Repairs,,,,,,No
The Royal Borough of Kensington and Chelsea,RBKC,,Non Revenue,001,,Kensington & Chelsea TMO Repairs Direct ,,,,,03/10/2014,PI972208,528.64,,Responsive Building Repairs,,,,,,No
The Royal Borough of Kensington and Chelsea,RBKC,,Non Revenue,001,,Kensington & Chelsea TMO Repairs Direct ,,,,,03/10/2014,PI972211,"1,063.00",,Responsive Building Repairs,,,,,,No
The Royal Borough of Kensington and Chelsea,RBKC,,"Cleaner,Greener & Cultural Ser",YCG,,S D Garner & Co                         ,,,,,03/10/2014,P2972254,905.25,,Salaries-Front Of House Staff,,,,,,No
The Royal Borough of Kensington and Chelsea,RBKC,,Family Services - RBKC,SKC,,Adoption UK                             ,,,,,03/10/2014,P2971852,685.13,,Advertising,,,,,,No
The Royal Borough of Kensington and Chelsea,RBKC,,Legal Services,CLA,,"Lawson, David                           ",,,,,03/10/2014,P2969012,"-3,791.66",,Counsels Fees,,,,,,No
The Royal Borough of Kensington and Chelsea,RBKC,,"Cleaner,Greener & Cultural Ser",YCG,,Dean Transport 94 Ltd                   ,,,,,03/10/2014,P2972258,"2,446.00",,Contracted Transport,,,,,,No
The Royal Borough of Kensington and Chelsea,RBKC,,"Cleaner,Greener & Cultural Ser",YCG,,Dean Transport 94 Ltd                   ,,,,,03/10/2014,P2972264,611.50,,Contracted Transport,,,,,,No
The Royal Borough of Kensington and Chelsea,RBKC,,Non Revenue,001,,Watmores Solicitors                     ,,,,,03/10/2014,P2971844,"2,176.15",,Expenditure,,,,,,No
The Royal Borough of Kensington and Chelsea,RBKC,,Revenues,CFR,,Contract Security Services Ltd          ,,,,,03/10/2014,P2971842,"1,733.50",,Cash Conveyance,,,,,,No
The Royal Borough of Kensington and Chelsea,RBKC,,Revenues,CFR,,Contract Security Services Ltd          ,,,,,03/10/2014,P2971842,"1,733.50",,Cash Conveyance,,,,,,No
The Royal Borough of Kensington and Chelsea,RBKC,,Finance,AS2,,Contract Security Services Ltd          ,,,,,03/10/2014,P2971842,"1,225.25",,Cash Collection (Securicor),,,,,,No
The Royal Borough of Kensington and Chelsea,RBKC,,Family Services - RBKC,SKC,,Ancel Services Ltd                      ,,,,,03/10/2014,P2971879,"4,526.00",,Salaries Agency,,,,,,No
The Royal Borough of Kensington and Chelsea,RBKC,,Operations,AS6,,Carewatch (Kensington & Chelsea)        ,,,,,03/10/2014,P2971829,"1,336.28",,Home Care,,,,,,No
The Royal Borough of Kensington and Chelsea,RBKC,,Operations,AS6,,Carewatch (Kensington & Chelsea)        ,,,,,03/10/2014,P2971827,790.16,,Home Care over 65,,,,,,No
The Royal Borough of Kensington and Chelsea,RBKC,,Operations,AS6,,Carewatch (Kensington & Chelsea)        ,,,,,03/10/2014,P2971826,615.00,,Home Care over 65,,,,,,No
The Royal Borough of Kensington and Chelsea,RBKC,,Operations,AS6,,Bluebird Care (Kensington & Chelsea)    ,,,,,03/10/2014,P2971799,583.26,,Home Care over 65,,,,,,No
The Royal Borough of Kensington and Chelsea,RBKC,,Operations,AS6,,Bluebird Care (Kensington & Chelsea)    ,,,,,03/10/2014,P2971800,"-1,800.00",,Home Care over 65,,,,,,No
The Royal Borough of Kensington and Chelsea,RBKC,,Operations,AS6,,Bluebird Care (Kensington & Chelsea)    ,,,,,03/10/2014,P2971800,"4,500.00",,Home Care over 65,,,,,,No
The Royal Borough of Kensington and Chelsea,RBKC,,Operations,AS6,,Bluebird Care (Kensington & Chelsea)    ,,,,,03/10/2014,P2971801,574.16,,Home Care-Ext Providers-Health,,,,,,No
The Royal Borough of Kensington and Chelsea,RBKC,,Operations,AS6,,Bluebird Care (Kensington & Chelsea)    ,,,,,03/10/2014,P2971802,691.89,,Home Care-Ext Providers-Health,,,,,,No
The Royal Borough of Kensington and Chelsea,RBKC,,Operations,AS6,,Bluebird Care (Kensington & Chelsea)    ,,,,,03/10/2014,P2971804,700.16,,Home Care over 65,,,,,,No
The Royal Borough of Kensington and Chelsea,RBKC,,Operations,AS6,,Bluebird Care (Kensington & Chelsea)    ,,,,,03/10/2014,P2971805,541.76,,Home Care-Ext Providers-Health,,,,,,No
The Royal Borough of Kensington and Chelsea,RBKC,,Operations,AS6,,Bluebird Care (Kensington & Chelsea)    ,,,,,03/10/2014,P2971807,803.85,,Home Care over 65,,,,,,No
The Royal Borough of Kensington and Chelsea,RBKC,,Operations,AS6,,Bluebird Care (Kensington & Chelsea)    ,,,,,03/10/2014,P2971809,"1,483.97",,Home Care-Ext Providers-Health,,,,,,No
The Royal Borough of Kensington and Chelsea,RBKC,,Operations,AS6,,Bluebird Care (Kensington & Chelsea)    ,,,,,03/10/2014,P2971810,687.70,,Home Care over 65,,,,,,No
The Royal Borough of Kensington and Chelsea,RBKC,,Operations,AS6,,Bluebird Care (Kensington & Chelsea)    ,,,,,03/10/2014,P2971819,"1,211.35",,Home Care over 65,,,,,,No
The Royal Borough of Kensington and Chelsea,RBKC,,Family Services - RBKC,SKC,,Fostering Together Ltd                  ,,,,,03/10/2014,P2972279,"5,065.50",,P & V Fostering,,,,,,No
The Royal Borough of Kensington and Chelsea,RBKC,,Safer Neighbourhoods,YSN,,Eurovia Infrastructure Ltd              ,,,,,03/10/2014,P2971863,"5,525.96",,Parks Horticultural Services,,,,,,No
The Royal Borough of Kensington and Chelsea,RBKC,,Information Systems,CIS,,AQL Ltd                                 ,,,,,03/10/2014,P2972271,587.73,,Network Maintenance,,,,,,No
The Royal Borough of Kensington and Chelsea,RBKC,,Transportation & Highways,YTH,,O2                                      ,,,,,03/10/2014,P2972255,817.50,,Mobile Phone Charges,,,,,,No
The Royal Borough of Kensington and Chelsea,RBKC,,Strategy & Local Services,CPU,,Metropolitan Police Authority           ,,,,,03/10/2014,P2971848,"12,309.00",,Consultants,,,,,,No
The Royal Borough of Kensington and Chelsea,RBKC,,Operations,AS6,,Yarrow Housing                          ,,,,,03/10/2014,P2971854,"8,619.91",,P&V Supp Accom,,,,,,No
The Royal Borough of Kensington and Chelsea,RBKC,,Operations,AS6,,Yarrow Housing                          ,,,,,03/10/2014,P2971857,"4,417.60",,Supported Living,,,,,,No
The Royal Borough of Kensington and Chelsea,RBKC,,Operations,AS6,,Yarrow Housing                          ,,,,,03/10/2014,P2971858,853.40,,Supported Living,,,,,,No
The Royal Borough of Kensington and Chelsea,RBKC,,Operations,AS6,,Yarrow Housing                          ,,,,,03/10/2014,P2971859,"1,606.40",,Supported Living,,,,,,No
The Royal Borough of Kensington and Chelsea,RBKC,,Operations,AS6,,Yarrow Housing                          ,,,,,03/10/2014,P2971890,"1,186.25",,P&V HC Spot Purchasing,,,,,,No
The Royal Borough of Kensington and Chelsea,RBKC,,Legal Services,CLA,,Sharpe Pritchard                        ,,,,,03/10/2014,P2972250,"4,543.31",,Salaries Agency,,,,,,No
The Royal Borough of Kensington and Chelsea,RBKC,,Operations,AS6,,Jeesal Akman Care Corporation Ltd       ,,,,,03/10/2014,P2971850,"28,830.00",,P&V Residential,,,,,,No
The Royal Borough of Kensington and Chelsea,RBKC,,Family Services - RBKC,SKC,,Hilltop Hotel                           ,,,,,03/10/2014,P2971864,"1,500.00",,Supportive Care,,,,,,No
The Royal Borough of Kensington and Chelsea,RBKC,,Tri-Borough Education Service,SED,,Fairley House Upper School              ,,,,,03/10/2014,P2971846,"9,517.88",,Independent Schools,,,,,,No
The Royal Borough of Kensington and Chelsea,RBKC,,Transportation & Highways,YTH,,Metric Group Ltd                        ,,,,,03/10/2014,P2972269,522.25,,P&D Metric Contract,,,,,,No
The Royal Borough of Kensington and Chelsea,RBKC,,Public Health,JPH,,Collaborate Ventures Ltd                ,,,,,03/10/2014,P2971855,"1,592.00",,Contract Costs,,,,,,No
The Royal Borough of Kensington and Chelsea,RBKC,,Tri-Borough Education Service,SED,,"Quinti, Eleonora                        ",,,,,03/10/2014,P2971831,930.00,,Independent Schools,,,,,,No
The Royal Borough of Kensington and Chelsea,RBKC,,Transportation & Highways,YTH,,First Car Magazine                      ,,,,,03/10/2014,P2972270,750.00,,Initiatives,,,,,,No
The Royal Borough of Kensington and Chelsea,RBKC,,Human Resources,CHG,,Firecare 999                            ,,,,,03/10/2014,P2972280,600.00,,Annual Programme,,,,,,No
The Royal Borough of Kensington and Chelsea,RBKC,,Human Resources,CHG,,Focal Point Training and Consultancy Ltd,,,,,03/10/2014,P2972281,750.00,,Annual Programme,,,,,,No
The Royal Borough of Kensington and Chelsea,RBKC,,Customer & Business Improvemnt,YCB,,BPI Recycled Products                   ,,,,,03/10/2014,P2972284,"7,140.82",,Purchase Of Plastic Sacks,,,,,,No
The Royal Borough of Kensington and Chelsea,RBKC,,Family Services - RBKC,SKC,,Golborne Children's Centre              ,,,,,03/10/2014,P4972230,"11,533.00",,Grants Given-Misc,,,,,,No
The Royal Borough of Kensington and Chelsea,RBKC,,Non Revenue,001,,Yarrow Housing                          ,,,,,03/10/2014,P4971774,678.40,,Payments,,,,,,No
The Royal Borough of Kensington and Chelsea,RBKC,,Non Revenue,001,,DWP                                     ,,,,,03/10/2014,P4971775,615.00,,Expenditure,,,,,,No
The Royal Borough of Kensington and Chelsea,RBKC,,Planning Services,PP,,Househam Henderson Architects           ,,,,,03/10/2014,P4971778,"1,345.00",,Fees & Charges-Refunds,,,,,,No
The Royal Borough of Kensington and Chelsea,RBKC,,Non Revenue,001,,Pinto Potts Solicitors                  ,,,,,03/10/2014,P4971786,"1,750.00",,Expenditure,,,,,,No
The Royal Borough of Kensington and Chelsea,RBKC,,Family Services - RBKC,SKC,,Redact Details,,,,,03/10/2014,P4971787,"1,000.00",,S24 Assistance,,,,,,No
The Royal Borough of Kensington and Chelsea,RBKC,,Non Revenue,001,,Barrie Bookkeeping & Payroll Solutions  ,,,,,03/10/2014,P4971791,668.03,,Payments,,,,,,No
The Royal Borough of Kensington and Chelsea,RBKC,,Commissioning,AS4,,"Joyrunnessa, Khatun                     ",,,,,03/10/2014,P4971793,600.00,,Service To Carers,,,,,,No
The Royal Borough of Kensington and Chelsea,RBKC,,Non Revenue,001,,Paypacket Ltd                           ,,,,,03/10/2014,P4971794,976.00,,Payments,,,,,,No
The Royal Borough of Kensington and Chelsea,RBKC,,Family Services - RBKC,SKC,,Denbigh Under Fives Group               ,,,,,03/10/2014,P4972247,"3,217.10",,Grants Given-Misc,,,,,,No
The Royal Borough of Kensington and Chelsea,RBKC,,Family Services - RBKC,SKC,,Holland Park Pre-School                 ,,,,,03/10/2014,P4972248,"4,613.20",,Grants Given-Misc,,,,,,No
The Royal Borough of Kensington and Chelsea,RBKC,,Family Services - RBKC,SKC,,Worlds End Under Fives Centre           ,,,,,03/10/2014,P4972249,"12,686.30",,Grants Given-Misc,,,,,,No
The Royal Borough of Kensington and Chelsea,RBKC,,Hsg Needs and Homelessness,HNH,,Urban Land Management Ltd               ,,,,,03/10/2014,P2972272,"7,694.10",,PLA Accommod - Stat Homeless,,,,,,No
The Royal Borough of Kensington and Chelsea,RBKC,,Family Services - RBKC,SKC,,Marvellous Properties Ltd               ,,,,,03/10/2014,P2971830,"1,200.00",,Section 24 Accomodation,,,,,,No
The Royal Borough of Kensington and Chelsea,RBKC,,Family Services - RBKC,SKC,,Marvellous Properties Ltd               ,,,,,03/10/2014,P2971830,600.00,,Supported Living,,,,,,No
The Royal Borough of Kensington and Chelsea,RBKC,,Non Revenue,001,,"Webb, S                                 ",,,,,03/10/2014,P2971860,"1,976.98",,Expenditure,,,,,,No
The Royal Borough of Kensington and Chelsea,RBKC,,Children's Commissioning,SCC,,Cater Cover Service Ltd                 ,,,,,03/10/2014,P2972277,512.68,,Catering Expenditure,,,,,,No
The Royal Borough of Kensington and Chelsea,RBKC,,"Finance, Info Systems&Property",CFI,,Digital Message Ltd                     ,,,,,03/10/2014,P2972256,819.00,,Equipm Computer Hardware,,,,,,No
The Royal Borough of Kensington and Chelsea,RBKC,,Family Services - RBKC,SKC,,3BM Ltd                                 ,,,,,03/10/2014,P2972273,"3,600.00",,Administration,,,,,,No
The Royal Borough of Kensington and Chelsea,RBKC,,Family Services - RBKC,SKC,,3BM Ltd                                 ,,,,,03/10/2014,P2972274,"4,600.00",,Administration,,,,,,No
The Royal Borough of Kensington and Chelsea,RBKC,,LibrarySupt Services,LSS,,A B Copyright Ltd                       ,,,,,03/10/2014,P2971847,"1,699.50",,Equipment Purchase,,,,,,No
The Royal Borough of Kensington and Chelsea,RBKC,,Legal Services,CLA,,London Borough Of Hammersmith & Fulham  ,,,,,03/10/2014,P2971795,"21,337.00",,Payments to LBHF,,,,,,No
The Royal Borough of Kensington and Chelsea,RBKC,,Legal Services,CLA,,London Borough Of Hammersmith & Fulham  ,,,,,03/10/2014,P2971796,"26,449.06",,Payments to LBHF,,,,,,No
The Royal Borough of Kensington and Chelsea,RBKC,,Family Services - RBKC,SKC,,"Zock, Katherine                         ",,,,,04/10/2014,P5953306,724.10,,Direct Payments,,,,,,No
The Royal Borough of Kensington and Chelsea,RBKC,,Commissioning,AS4,,CT Plus CIC                             ,,,,,06/10/2014,P2972526,"28,461.12",,Contracted Transport,,,,,,No
The Royal Borough of Kensington and Chelsea,RBKC,,Provided Services/ MH Partners,AS5,,CT Plus CIC                             ,,,,,06/10/2014,P2972526,"17,600.13",,Contracted Transport,,,,,,No
The Royal Borough of Kensington and Chelsea,RBKC,,Children's Commissioning,SCC,,Spurgeons                               ,,,,,06/10/2014,P2972523,"17,078.76",,Payments To Vol Orgs,,,,,,No
The Royal Borough of Kensington and Chelsea,RBKC,,Non Revenue,001,,Turner & Townsend Project Management Ltd,,,,,06/10/2014,P2972472,"2,250.00",,Fees-Consultants,,,,,,No
The Royal Borough of Kensington and Chelsea,RBKC,,Non Revenue,001,,Turner & Townsend Project Management Ltd,,,,,06/10/2014,P2972473,715.00,,Fees-Consultants,,,,,,No
The Royal Borough of Kensington and Chelsea,RBKC,,Safer Neighbourhoods,YSN,,"Kent, Sarah                             ",,,,,06/10/2014,P2972465,682.00,,Equipment Purchase,,,,,,No
The Royal Borough of Kensington and Chelsea,RBKC,,Tri-Borough Education Service,SED,,75 Taxis Ltd                            ,,,,,06/10/2014,P2972530,"2,745.75",,General Hired & Contracted Ser,,,,,,No
The Royal Borough of Kensington and Chelsea,RBKC,,Non Revenue,001,,NPS Property Consultants Ltd            ,,,,,06/10/2014,P2972443,"1,475.00",,Fees-Consultants,,,,,,No
The Royal Borough of Kensington and Chelsea,RBKC,,Non Revenue,001,,NPS Property Consultants Ltd            ,,,,,06/10/2014,P2972444,660.00,,Fees-Consultants,,,,,,No
The Royal Borough of Kensington and Chelsea,RBKC,,Transportation & Highways,YTH,,North London Motorcycle Training        ,,,,,06/10/2014,P2972490,"1,200.00",,Initiatives,,,,,,No
The Royal Borough of Kensington and Chelsea,RBKC,,Transportation & Highways,YTH,,Cycle Confident Ltd                     ,,,,,06/10/2014,P2972489,718.20,,Initiatives,,,,,,No
The Royal Borough of Kensington and Chelsea,RBKC,,Safer Neighbourhoods,YSN,,Jewson Ltd                              ,,,,,06/10/2014,P2972514,506.80,,Park Maintenance,,,,,,No
The Royal Borough of Kensington and Chelsea,RBKC,,Planning Services,PP,,Barcham Trees Plc                       ,,,,,06/10/2014,P2972537,696.60,,Tree Planting,,,,,,No
The Royal Borough of Kensington and Chelsea,RBKC,,Family Services - RBKC,SKC,,Integrated Services Programme           ,,,,,06/10/2014,P2972547,"5,460.96",,P & V Fostering,,,,,,No
The Royal Borough of Kensington and Chelsea,RBKC,,Finance & Resources,SFR,,Allen Lane Ltd                          ,,,,,06/10/2014,P2972467,"4,337.40",,Travel-Staff,,,,,,No
The Royal Borough of Kensington and Chelsea,RBKC,,Non Revenue,001,,Konica Minolta Business Solutions (UK) L,,,,,06/10/2014,P2972440,"53,091.56",,Payments,,,,,,No
The Royal Borough of Kensington and Chelsea,RBKC,,Non Revenue,001,,Konica Minolta Business Solutions (UK) L,,,,,06/10/2014,P3972476,"-1,708.82",,Payments,,,,,,No
The Royal Borough of Kensington and Chelsea,RBKC,,Non Revenue,001,,Konica Minolta Business Solutions (UK) L,,,,,06/10/2014,P3972475,"-3,909.89",,Payments,,,,,,No
The Royal Borough of Kensington and Chelsea,RBKC,,Non Revenue,001,,Konica Minolta Business Solutions (UK) L,,,,,06/10/2014,P3972517,"-53,091.56",,Payments,,,,,,No
The Royal Borough of Kensington and Chelsea,RBKC,,Non Revenue,001,,Urban Eye (formerly Westway Project)    ,,,,,06/10/2014,P2972336,"8,784.00",,Construction-Main Ctrctrs A/C,,,,,,No
The Royal Borough of Kensington and Chelsea,RBKC,,Tri-Borough Education Service,SED,,Exscitec Ltd                            ,,,,,06/10/2014,P2972492,"5,500.00",,Development Fund,,,,,,No
The Royal Borough of Kensington and Chelsea,RBKC,,Tri-Borough Education Service,SED,,"Peel, Michelle                          ",,,,,06/10/2014,P2972461,"1,290.00",,Independent Schools,,,,,,No
The Royal Borough of Kensington and Chelsea,RBKC,,Non Revenue,001,,Atkins Ltd                              ,,,,,06/10/2014,P2972474,600.00,,Fees-Consultants,,,,,,No
The Royal Borough of Kensington and Chelsea,RBKC,,Transportation & Highways,YTH,,ZipCar (UK) Ltd                         ,,,,,06/10/2014,P2972491,595.17,,Initiatives,,,,,,No
The Royal Borough of Kensington and Chelsea,RBKC,,Tri-Borough Education Service,SED,,Urban Design & Print Ltd                ,,,,,06/10/2014,P2972535,"3,895.00",,Miscellaneous Expenses,,,,,,No
The Royal Borough of Kensington and Chelsea,RBKC,,Human Resources,CHG,,Close Brothers Asset Management         ,,,,,06/10/2014,P2972549,"1,100.00",,Annual Programme,,,,,,No
The Royal Borough of Kensington and Chelsea,RBKC,,Transportation & Highways,YTH,,TFL Surface Transport                   ,,,,,06/10/2014,P2972338,"65,463.18",,Urban Traffic Control,,,,,,No
The Royal Borough of Kensington and Chelsea,RBKC,,Non Revenue,001,,TEAM (Energy Auditing Agency Ltd)       ,,,,,06/10/2014,P2972330,"1,634.51",,Payments,,,,,,No
The Royal Borough of Kensington and Chelsea,RBKC,,Non Revenue,001,,Met Geo Environmental Ltd               ,,,,,06/10/2014,P2972441,750.00,,Fees-Consultants,,,,,,No
The Royal Borough of Kensington and Chelsea,RBKC,,Safer Neighbourhoods,YSN,,Crawford Security Ltd                   ,,,,,06/10/2014,P2972554,772.00,,Parks Horticultural Services,,,,,,No
The Royal Borough of Kensington and Chelsea,RBKC,,Safer Neighbourhoods,YSN,,Quadron Services Ltd                    ,,,,,06/10/2014,P2972541,757.40,,Parks Horticultural Services,,,,,,No
The Royal Borough of Kensington and Chelsea,RBKC,,Safer Neighbourhoods,YSN,,Quadron Services Ltd                    ,,,,,06/10/2014,P2972540,"3,425.88",,Planned Park Maintenance,,,,,,No
The Royal Borough of Kensington and Chelsea,RBKC,,Safer Neighbourhoods,YSN,,Quadron Services Ltd                    ,,,,,06/10/2014,P2972539,"2,379.14",,G Mtce Contract-Enhancements,,,,,,No
The Royal Borough of Kensington and Chelsea,RBKC,,Non Revenue,001,,Watmores Solicitors                     ,,,,,06/10/2014,P2972542,"1,464.50",,Expenditure,,,,,,No
The Royal Borough of Kensington and Chelsea,RBKC,,Human Resources,CHG,,"Bendell, Jakki                          ",,,,,06/10/2014,P2972552,"1,000.00",,Annual Programme,,,,,,No
The Royal Borough of Kensington and Chelsea,RBKC,,Commissioning,AS4,,Westway Community Transport (KCCT)      ,,,,,06/10/2014,P2972487,935.00,,Contracted Transport,,,,,,No
The Royal Borough of Kensington and Chelsea,RBKC,,Tri-Borough Education Service,SED,,Mount Camphill Community Ltd            ,,,,,06/10/2014,P2972453,"6,286.33",,LEA Current year,,,,,,No
The Royal Borough of Kensington and Chelsea,RBKC,,Operations,AS6,,Mount Camphill Community Ltd            ,,,,,06/10/2014,P2972453,"6,286.33",,Supported Living,,,,,,No
The Royal Borough of Kensington and Chelsea,RBKC,,Family Services - RBKC,SKC,,"Lack, Nora                              ",,,,,06/10/2014,P2972468,"2,520.00",,Commissioned Services,,,,,,No
The Royal Borough of Kensington and Chelsea,RBKC,,Non Revenue,001,,The Equus Partnership Ltd               ,,,,,06/10/2014,P2972445,"2,550.00",,Fees-Consultants,,,,,,No
The Royal Borough of Kensington and Chelsea,RBKC,,Safer Neighbourhoods,YSN,,"Walsh, Louis                            ",,,,,06/10/2014,P2972455,"1,710.00",,Park Maintenance,,,,,,No
The Royal Borough of Kensington and Chelsea,RBKC,,Non Revenue,001,,OCS GROUP UK LTD                        ,,,,,06/10/2014,PI972348,"2,997.28",,Deep Clean,,,,,,No
The Royal Borough of Kensington and Chelsea,RBKC,,Transportation & Highways,YTH,,F M Conway Ltd                          ,,,,,06/10/2014,P2972496,"12,147.59",,Bridges-Maintenance,,,,,,No
The Royal Borough of Kensington and Chelsea,RBKC,,Strategy & Local Services,CPU,,Courier Systems                         ,,,,,06/10/2014,P2972532,512.28,,Couriers,,,,,,No
The Royal Borough of Kensington and Chelsea,RBKC,,"Cleaner,Greener & Cultural Ser",YCG,,Alpha Waste Solutions Ltd               ,,,,,06/10/2014,P2972551,680.00,,Purchase of Bio Garden Sacks,,,,,,No
The Royal Borough of Kensington and Chelsea,RBKC,,Safer Neighbourhoods,YSN,,"Evans, Scott                            ",,,,,06/10/2014,P2972454,"1,710.00",,Park Maintenance,,,,,,No
The Royal Borough of Kensington and Chelsea,RBKC,,Non Revenue,001,,TREE WISE MEN S.E. LTD                  ,,,,,06/10/2014,PI972354,639.00,,PM-Arboricultural Maintenance,,,,,,No
The Royal Borough of Kensington and Chelsea,RBKC,,Non Revenue,001,,TREE WISE MEN S.E. LTD                  ,,,,,06/10/2014,PI972355,635.00,,RR-Soft Landscape Repairs,,,,,,No
The Royal Borough of Kensington and Chelsea,RBKC,,Non Revenue,001,,TREE WISE MEN S.E. LTD                  ,,,,,06/10/2014,PI972356,"1,400.00",,ARW-North Kensington Area,,,,,,No
The Royal Borough of Kensington and Chelsea,RBKC,,Non Revenue,001,,TREE WISE MEN S.E. LTD                  ,,,,,06/10/2014,PI972357,"1,247.00",,PM-Garden Maintenance Contract,,,,,,No
The Royal Borough of Kensington and Chelsea,RBKC,,Non Revenue,001,,TREE WISE MEN S.E. LTD                  ,,,,,06/10/2014,PI972358,600.00,,PM-Arboricultural Maintenance,,,,,,No
The Royal Borough of Kensington and Chelsea,RBKC,,Non Revenue,001,,TREE WISE MEN S.E. LTD                  ,,,,,06/10/2014,PI972359,"1,585.00",,PM-Arboricultural Maintenance,,,,,,No
The Royal Borough of Kensington and Chelsea,RBKC,,Non Revenue,001,,TREE WISE MEN S.E. LTD                  ,,,,,06/10/2014,PI972360,"2,495.00",,PM-Horticulture Improvements,,,,,,No
The Royal Borough of Kensington and Chelsea,RBKC,,Non Revenue,001,,TREE WISE MEN S.E. LTD                  ,,,,,06/10/2014,PI972361,750.00,,PM-Arboricultural Maintenance,,,,,,No
The Royal Borough of Kensington and Chelsea,RBKC,,Non Revenue,001,,TREE WISE MEN S.E. LTD                  ,,,,,06/10/2014,PI972362,"1,479.00",,PM - Disabled Gdn Maint/Clearn,,,,,,No
The Royal Borough of Kensington and Chelsea,RBKC,,Non Revenue,001,,AHR Architects Ltd                      ,,,,,06/10/2014,P2972516,"18,692.00",,Fees-Consultants,,,,,,No
The Royal Borough of Kensington and Chelsea,RBKC,,Safer Neighbourhoods,YSN,,Thames Water Utilities Ltd              ,,,,,06/10/2014,P2972470,554.41,,Electricity Non-Contract,,,,,,No
The Royal Borough of Kensington and Chelsea,RBKC,,Family Services - RBKC,SKC,,Safe & Sound                            ,,,,,06/10/2014,P2972525,750.00,,Training Expenses,,,,,,No
The Royal Borough of Kensington and Chelsea,RBKC,,Non Revenue,001,,EC Harris LLP                           ,,,,,06/10/2014,P2972442,"17,970.90",,Fees-Consultants,,,,,,No
The Royal Borough of Kensington and Chelsea,RBKC,,Strategy & Local Services,CPU,,Impress Print Services Ltd              ,,,,,06/10/2014,P2972482,"1,079.00",,External Printing,,,,,,No
The Royal Borough of Kensington and Chelsea,RBKC,,Corporate Property,CBV,,Amey Community Ltd                      ,,,,,06/10/2014,P2972340,"11,760.96",,Consultants,,,,,,No
The Royal Borough of Kensington and Chelsea,RBKC,,Tri-Borough Education Service,SED,,Amey Community Ltd                      ,,,,,06/10/2014,P2972548,"2,500.00",,Condition Surveys,,,,,,No
The Royal Borough of Kensington and Chelsea,RBKC,,Non Revenue,001,,Amey Community Ltd                      ,,,,,06/10/2014,P2972548,"26,053.91",,Construction-Main Ctrctrs A/C,,,,,,No
The Royal Borough of Kensington and Chelsea,RBKC,,Corporate Property,CBV,,Amey Community Ltd                      ,,,,,06/10/2014,P2972548,"12,921.89",,General Security,,,,,,No
The Royal Borough of Kensington and Chelsea,RBKC,,Family Services - RBKC,SKC,,Amey Community Ltd                      ,,,,,06/10/2014,P2972548,"3,284.62",,Building Mtce,,,,,,No
The Royal Borough of Kensington and Chelsea,RBKC,,Finance and Resources,YFR,,Amey Community Ltd                      ,,,,,06/10/2014,P2972548,"4,372.81",,Bldg Fixtures&Fitting-Purchase,,,,,,No
The Royal Borough of Kensington and Chelsea,RBKC,,"Cleaner,Greener & Cultural Ser",YCG,,Amey Community Ltd                      ,,,,,06/10/2014,P2972548,"4,629.97",,Building Mtce,,,,,,No
The Royal Borough of Kensington and Chelsea,RBKC,,Safer Neighbourhoods,YSN,,Amey Community Ltd                      ,,,,,06/10/2014,P2972548,"1,643.10",,Building Mtce,,,,,,No
The Royal Borough of Kensington and Chelsea,RBKC,,Safer Neighbourhoods,YSN,,Amey Community Ltd                      ,,,,,06/10/2014,P2972548,909.06,,Building Mtce,,,,,,No
The Royal Borough of Kensington and Chelsea,RBKC,,Revenues,CFR,,Serco Ltd                               ,,,,,06/10/2014,P2972513,"2,580.00",,Salaries Agency,,,,,,No
The Royal Borough of Kensington and Chelsea,RBKC,,Revenues,CFR,,Serco Ltd                               ,,,,,06/10/2014,P2972510,750.00,,Salaries Agency,,,,,,No
The Royal Borough of Kensington and Chelsea,RBKC,,Revenues,CFR,,Serco Ltd                               ,,,,,06/10/2014,P2972512,750.00,,Salaries Agency,,,,,,No
The Royal Borough of Kensington and Chelsea,RBKC,,Revenues,CFR,,Serco Ltd                               ,,,,,06/10/2014,P2972509,"2,700.00",,Salaries Agency,,,,,,No
The Royal Borough of Kensington and Chelsea,RBKC,,Revenues,CFR,,Serco Ltd                               ,,,,,06/10/2014,P2972511,750.00,,Salaries Agency,,,,,,No
The Royal Borough of Kensington and Chelsea,RBKC,,Revenues,CFR,,Serco Ltd                               ,,,,,06/10/2014,P2972508,750.00,,Salaries Agency,,,,,,No
The Royal Borough of Kensington and Chelsea,RBKC,,Commissioning,AS4,,Sodexo Healthcare Services              ,,,,,06/10/2014,P2972316,"1,010.10",,Home Meals,,,,,,No
The Royal Borough of Kensington and Chelsea,RBKC,,Legal Services,CLA,,Her Majesty's Courts & Tribunals Service,,,,,06/10/2014,P4972300,"2,055.00",,Legal Issue Fees,,,,,,No
The Royal Borough of Kensington and Chelsea,RBKC,,Legal Services,CLA,,Her Majesty's Courts & Tribunals Service,,,,,06/10/2014,P4972301,"1,900.00",,Legal Issue Fees,,,,,,No
The Royal Borough of Kensington and Chelsea,RBKC,,Legal Services,CLA,,Her Majesty's Courts & Tribunals Service,,,,,06/10/2014,P4972302,"2,055.00",,Legal Issue Fees,,,,,,No
The Royal Borough of Kensington and Chelsea,RBKC,,Provided Services/ MH Partners,AS5,,Age Concern (Account 00009590)          ,,,,,06/10/2014,P2972339,700.00,,Payments To Vol Orgs,,,,,,No
The Royal Borough of Kensington and Chelsea,RBKC,,Safer Neighbourhoods,YSN,,Lex Autolease Ltd (formerly Lloyd TSB)  ,,,,,06/10/2014,P2972493,554.98,,Contracted Transport,,,,,,No
The Royal Borough of Kensington and Chelsea,RBKC,,Family Services - RBKC,SKC,,Earls Court YMCA                        ,,,,,06/10/2014,P2972327,797.70,,P&V Homes & Hostels,,,,,,No
The Royal Borough of Kensington and Chelsea,RBKC,,Family Services - RBKC,SKC,,Earls Court YMCA                        ,,,,,06/10/2014,P2972328,"1,116.90",,P&V Homes & Hostels,,,,,,No
The Royal Borough of Kensington and Chelsea,RBKC,,Tri-Borough Education Service,SED,,FGH Design                              ,,,,,06/10/2014,P2972536,500.00,,Miscellaneous Expenses,,,,,,No
The Royal Borough of Kensington and Chelsea,RBKC,,Public Health,JPH,,Central London Community Healthcare     ,,,,,06/10/2014,P2972466,"5,000.00",,Contract Costs,,,,,,No
The Royal Borough of Kensington and Chelsea,RBKC,,Public Health,JPH,,Health Education Partnership Ltd        ,,,,,06/10/2014,P2972550,"5,112.93",,Contract Costs,,,,,,No
The Royal Borough of Kensington and Chelsea,RBKC,,Tri-Borough Education Service,SED,,Mary Hare Schools                       ,,,,,06/10/2014,P2972469,"1,222.00",,Independent Schools,,,,,,No
The Royal Borough of Kensington and Chelsea,RBKC,,Non Revenue,001,,I-Transport LLP                         ,,,,,06/10/2014,P2972439,"3,155.93",,Fees-Consultants,,,,,,No
The Royal Borough of Kensington and Chelsea,RBKC,,Human Resources,CHG,,Kas Konsultancy Ltd                     ,,,,,06/10/2014,P2972545,"6,478.82",,Consultants,,,,,,No
The Royal Borough of Kensington and Chelsea,RBKC,,Non Revenue,001,,London Grid for Learning Trust          ,,,,,06/10/2014,P2972452,"7,641.00",,Fees-Consultants,,,,,,No
The Royal Borough of Kensington and Chelsea,RBKC,,Safer Neighbourhoods,YSN,,Treemasters Ltd                         ,,,,,06/10/2014,P2972557,500.00,,Tree Management,,,,,,No
The Royal Borough of Kensington and Chelsea,RBKC,,Safer Neighbourhoods,YSN,,Treemasters Ltd                         ,,,,,06/10/2014,P2972556,500.00,,Tree Management,,,,,,No
The Royal Borough of Kensington and Chelsea,RBKC,,Provided Services/ MH Partners,AS5,,Lex Autolease Ltd (formerly Lloyd TSB)  ,,,,,06/10/2014,P2972485,"6,456.48",,Contracted Transport,,,,,,No
The Royal Borough of Kensington and Chelsea,RBKC,,Operations,AS6,,Adaptations Minor Works Ltd             ,,,,,06/10/2014,P2972524,650.00,,Equipm & Adaptations,,,,,,No
The Royal Borough of Kensington and Chelsea,RBKC,,Non Revenue,001,,Look Ahead Housing & Care (AC30171263)  ,,,,,06/10/2014,P4972420,554.82,,Payments,,,,,,No
The Royal Borough of Kensington and Chelsea,RBKC,,Strategy & Local Services,CPU,,The Clement James Centre                ,,,,,06/10/2014,P4972421,"7,500.00",,Grants Given-Misc,,,,,,No
The Royal Borough of Kensington and Chelsea,RBKC,,Strategy & Local Services,CPU,,Goldfinger Factory                      ,,,,,06/10/2014,P4972422,"12,500.00",,Payments To Vol Orgs,,,,,,No
The Royal Borough of Kensington and Chelsea,RBKC,,Strategy & Local Services,CPU,,Help Counselling Centre                 ,,,,,06/10/2014,P4972423,"5,564.00",,Payments To Vol Orgs,,,,,,No
The Royal Borough of Kensington and Chelsea,RBKC,,Strategy & Local Services,CPU,,The Second Half Centre                  ,,,,,06/10/2014,P4972424,"5,000.00",,Payments To Vol Orgs,,,,,,No
The Royal Borough of Kensington and Chelsea,RBKC,,Non Revenue,001,,"Sharif, Jwan                            ",,,,,06/10/2014,P4972425,932.90,,Payments,,,,,,No
The Royal Borough of Kensington and Chelsea,RBKC,,Family Services - RBKC,SKC,,Colville Primary School                 ,,,,,06/10/2014,P4972428,"2,306.60",,Grants Given-Misc,,,,,,No
The Royal Borough of Kensington and Chelsea,RBKC,,Family Services - RBKC,SKC,,New Studio Pre-School                   ,,,,,06/10/2014,P4972429,"1,153.30",,Grants Given-Misc,,,,,,No
The Royal Borough of Kensington and Chelsea,RBKC,,Non Revenue,001,,Penderels Trust                         ,,,,,06/10/2014,P4972432,"1,942.24",,Payments,,,,,,No
The Royal Borough of Kensington and Chelsea,RBKC,,Non Revenue,001,,Penderels Trust                         ,,,,,06/10/2014,P4972432,"2,982.41",,Payments,,,,,,No
The Royal Borough of Kensington and Chelsea,RBKC,,Non Revenue,001,,Penderels Trust                         ,,,,,06/10/2014,P4972432,"4,950.77",,Payments,,,,,,No
The Royal Borough of Kensington and Chelsea,RBKC,,Non Revenue,001,,Penderels Trust                         ,,,,,06/10/2014,P4972432,674.21,,Payments,,,,,,No
The Royal Borough of Kensington and Chelsea,RBKC,,Non Revenue,001,,Penderels Trust                         ,,,,,06/10/2014,P4972432,"1,037.12",,Payments,,,,,,No
The Royal Borough of Kensington and Chelsea,RBKC,,Non Revenue,001,,Penderels Trust                         ,,,,,06/10/2014,P4972432,"1,137.27",,Payments,,,,,,No
The Royal Borough of Kensington and Chelsea,RBKC,,Non Revenue,001,,Penderels Trust                         ,,,,,06/10/2014,P4972432,982.50,,Payments,,,,,,No
The Royal Borough of Kensington and Chelsea,RBKC,,Non Revenue,001,,Penderels Trust                         ,,,,,06/10/2014,P4972432,986.82,,Payments,,,,,,No
The Royal Borough of Kensington and Chelsea,RBKC,,Non Revenue,001,,Penderels Trust                         ,,,,,06/10/2014,P4972432,"1,379.43",,Payments,,,,,,No
The Royal Borough of Kensington and Chelsea,RBKC,,Non Revenue,001,,Penderels Trust                         ,,,,,06/10/2014,P4972438,877.01,,Payments,,,,,,No
The Royal Borough of Kensington and Chelsea,RBKC,,Public Health,JPH,,Age Concern (Account 00009590)          ,,,,,06/10/2014,P2972488,"6,711.75",,Contract Costs,,,,,,No
The Royal Borough of Kensington and Chelsea,RBKC,,Tri-Borough Education Service,SED,,IHS Corporation Ltd                     ,,,,,06/10/2014,P2972479,"1,162.80",,General Hired & Contracted Ser,,,,,,No
The Royal Borough of Kensington and Chelsea,RBKC,,Hsg Needs and Homelessness,HNH,,Notting Hill Housing Trust (Rent Inv)   ,,,,,06/10/2014,P2972459,"48,164.00",,PLA Accommod - Stat Homeless,,,,,,No
The Royal Borough of Kensington and Chelsea,RBKC,,Hsg Needs and Homelessness,HNH,,Notting Hill Housing Trust (Rent Inv)   ,,,,,06/10/2014,P2972460,"48,565.16",,PLA Accommod - Stat Homeless,,,,,,No
The Royal Borough of Kensington and Chelsea,RBKC,,Tri-Borough Education Service,SED,,Sugarman Medical Ltd                    ,,,,,06/10/2014,P2972481,540.00,,Consultants,,,,,,No
The Royal Borough of Kensington and Chelsea,RBKC,,Non Revenue,001,, SIL                                    ,,,,,06/10/2014,PU284181,864.00,,Responsive Building Repairs,,,,,,No
The Royal Borough of Kensington and Chelsea,RBKC,,Non Revenue,001,, SIL                                    ,,,,,06/10/2014,PU284182,552.00,,Responsive Building Repairs,,,,,,No
The Royal Borough of Kensington and Chelsea,RBKC,,Children's Commissioning,SCC,,"Barber, Jenny                           ",,,,,06/10/2014,P2972325,500.00,,Training Programme Delivery,,,,,,No
The Royal Borough of Kensington and Chelsea,RBKC,,Operations,AS6,,Voyage Ltd                              ,,,,,06/10/2014,P2972332,"1,176.00",,Supported Living,,,,,,No
The Royal Borough of Kensington and Chelsea,RBKC,,Tri-Borough Education Service,SED,,Westminster Council (A/C 01390570)      ,,,,,06/10/2014,P2972324,"12,277.00",,Payments to WCC,,,,,,No
The Royal Borough of Kensington and Chelsea,RBKC,,Tri-Borough Education Service,SED,,Westminster Council (A/C 01390570)      ,,,,,06/10/2014,P2972324,"9,559.65",,Payments to WCC,,,,,,No
The Royal Borough of Kensington and Chelsea,RBKC,,Children's Commissioning,SCC,,Alliance In Partnership Ltd             ,,,,,07/10/2014,P2975860,"6,338.06",,Cash Cafe-St Thomas More,,,,,,No
The Royal Borough of Kensington and Chelsea,RBKC,,Children's Commissioning,SCC,,Alliance In Partnership Ltd             ,,,,,07/10/2014,P2975861,"2,173.41",,Cash Cafe-Sion,,,,,,No
The Royal Borough of Kensington and Chelsea,RBKC,,Children's Commissioning,SCC,,Alliance In Partnership Ltd             ,,,,,07/10/2014,P2975857,"81,550.97",,Primary Meals,,,,,,No
The Royal Borough of Kensington and Chelsea,RBKC,,Children's Commissioning,SCC,,Alliance In Partnership Ltd             ,,,,,07/10/2014,P3975862,"-1,759.32",,Cash Cafe-Sion,,,,,,No
The Royal Borough of Kensington and Chelsea,RBKC,,Children's Commissioning,SCC,,Alliance In Partnership Ltd             ,,,,,07/10/2014,P3975863,"-6,338.06",,Cash Cafe-Sion,,,,,,No
The Royal Borough of Kensington and Chelsea,RBKC,,Children's Commissioning,SCC,,Alliance In Partnership Ltd             ,,,,,07/10/2014,P2975929,"138,743.30",,Primary Meals,,,,,,No
The Royal Borough of Kensington and Chelsea,RBKC,,Children's Commissioning,SCC,,Alliance In Partnership Ltd             ,,,,,07/10/2014,P2975930,"1,041.56",,Cash Cafe-St Thomas More,,,,,,No
The Royal Borough of Kensington and Chelsea,RBKC,,Operations,AS6,,Scope Fees Department                   ,,,,,07/10/2014,P2972640,"1,748.54",,P&V Day Care,,,,,,No
The Royal Borough of Kensington and Chelsea,RBKC,,Non Revenue,001,,Portsdown Office Ltd                    ,,,,,07/10/2014,P2975922,"43,731.51",,Furn & Equip-Init Furn & Equip,,,,,,No
The Royal Borough of Kensington and Chelsea,RBKC,,Corporate Property,CBV,,Chelsea Theatre                         ,,,,,07/10/2014,P2975806,"1,001.00",,Building Mtce,,,,,,No
The Royal Borough of Kensington and Chelsea,RBKC,,Non Revenue,001,,Turner & Townsend Project Management Ltd,,,,,07/10/2014,P2972579,"3,433.00",,Fees-Consultants,,,,,,No
The Royal Borough of Kensington and Chelsea,RBKC,,Hsg Needs and Homelessness,HNH,,AMS Housing Ltd                         ,,,,,07/10/2014,P2975833,"23,404.20",,PLA Accommod - Stat Homeless,,,,,,No
The Royal Borough of Kensington and Chelsea,RBKC,,Public Health,JPH,,French African Welfare Association      ,,,,,07/10/2014,P2972700,"5,000.00",,Contract Costs,,,,,,No
The Royal Borough of Kensington and Chelsea,RBKC,,Hsg Needs and Homelessness,HNH,,Penham Ltd                              ,,,,,07/10/2014,P2975870,"43,820.23",,PLA Accommod - Stat Homeless,,,,,,No
The Royal Borough of Kensington and Chelsea,RBKC,,Hsg Needs and Homelessness,HNH,,Penham Ltd                              ,,,,,07/10/2014,P2975871,"44,565.04",,PLA Accommod - Stat Homeless,,,,,,No
The Royal Borough of Kensington and Chelsea,RBKC,,Hsg Needs and Homelessness,HNH,,Penham Ltd                              ,,,,,07/10/2014,P2975869,"32,674.09",,PLA Accommod - Stat Homeless,,,,,,No
The Royal Borough of Kensington and Chelsea,RBKC,,Provided Services/ MH Partners,AS5,,"Pettifer, B J                           ",,,,,07/10/2014,P2975843,"3,000.00",,Payments To Vol Orgs,,,,,,No
The Royal Borough of Kensington and Chelsea,RBKC,,Family Services - RBKC,SKC,,Field Lane Foundation                   ,,,,,07/10/2014,P2972673,"1,101.43",,Section 24 Accomodation,,,,,,No
The Royal Borough of Kensington and Chelsea,RBKC,,Family Services - RBKC,SKC,,Field Lane Foundation                   ,,,,,07/10/2014,P2972673,709.03,,Supported Living,,,,,,No
The Royal Borough of Kensington and Chelsea,RBKC,,Non Revenue,001,,Taylor Young Ltd                        ,,,,,07/10/2014,P2972580,"1,272.00",,Fees-Consultants,,,,,,No
The Royal Borough of Kensington and Chelsea,RBKC,,Operations,AS6,,Dust to Daisies Cleaning and Care Servic,,,,,07/10/2014,P2975902,612.00,,Home Care,,,,,,No
The Royal Borough of Kensington and Chelsea,RBKC,,Operations,AS6,,Dust to Daisies Cleaning and Care Servic,,,,,07/10/2014,P2975901,576.00,,Supported Living,,,,,,No
The Royal Borough of Kensington and Chelsea,RBKC,,Transportation & Highways,YTH,,Festival Of The Bicycle Ltd             ,,,,,07/10/2014,P2975821,572.50,,Initiatives,,,,,,No
The Royal Borough of Kensington and Chelsea,RBKC,,Hsg Needs and Homelessness,HNH,,Theori Investments Ltd                  ,,,,,07/10/2014,P2975892,"65,996.63",,PLA Accommod - Stat Homeless,,,,,,No
The Royal Borough of Kensington and Chelsea,RBKC,,Human Resources,CHG,,Cepec Career Management Ltd             ,,,,,07/10/2014,P2972628,705.00,,General Hired & Contracted Ser,,,,,,No
The Royal Borough of Kensington and Chelsea,RBKC,,Hsg Needs and Homelessness,HNH,,Theori Investments Ltd                  ,,,,,07/10/2014,P2975891,"8,070.30",,PLA Accommod - Stat Homeless,,,,,,No
The Royal Borough of Kensington and Chelsea,RBKC,,Family Services - RBKC,SKC,,Jamma Umoja (Residential Services)      ,,,,,07/10/2014,P2972671,"2,597.00",,Parenting Assessments,,,,,,No
The Royal Borough of Kensington and Chelsea,RBKC,,Revenues,CFR,,Financial Data Management Ltd (FDM)     ,,,,,07/10/2014,P2975848,"1,412.17",,Postages,,,,,,No
The Royal Borough of Kensington and Chelsea,RBKC,,Family Services - RBKC,SKC,,The Caldecott Foundation                ,,,,,07/10/2014,P2972610,885.71,,Supported Living,,,,,,No
The Royal Borough of Kensington and Chelsea,RBKC,,Hsg Needs and Homelessness,HNH,,Affinity Sutton Homes Ltd (AC84230541)  ,,,,,07/10/2014,P2975890,"1,299.23",,PLA Accommod - Stat Homeless,,,,,,No
The Royal Borough of Kensington and Chelsea,RBKC,,Family Services - RBKC,SKC,,Redact Details,,,,,07/10/2014,PI972703,868.00,,Foster Carers,,,,,,No
The Royal Borough of Kensington and Chelsea,RBKC,,Family Services - RBKC,SKC,,Redact Details,,,,,07/10/2014,PI972712,533.50,,Foster Carers,,,,,,No
The Royal Borough of Kensington and Chelsea,RBKC,,Family Services - RBKC,SKC,,Redact Details,,,,,07/10/2014,PI972754,533.50,,Foster Carers,,,,,,No
The Royal Borough of Kensington and Chelsea,RBKC,,Family Services - RBKC,SKC,,Redact Details,,,,,07/10/2014,PI972760,512.50,,Foster Carers,,,,,,No
The Royal Borough of Kensington and Chelsea,RBKC,,Family Services - RBKC,SKC,,Redact Details,,,,,07/10/2014,PI972765,564.50,,Foster Carers,,,,,,No
The Royal Borough of Kensington and Chelsea,RBKC,,Family Services - RBKC,SKC,,Redact Details,,,,,07/10/2014,PI972795,828.29,,Foster Carers,,,,,,No
The Royal Borough of Kensington and Chelsea,RBKC,,Family Services - RBKC,SKC,,Redact Details,,,,,07/10/2014,PI972799,711.00,,Foster Carers,,,,,,No
The Royal Borough of Kensington and Chelsea,RBKC,,Information Systems,CIS,,Micropartners Ltd                       ,,,,,07/10/2014,P2975910,"1,360.00",,Computer Hardware Purchase,,,,,,No
The Royal Borough of Kensington and Chelsea,RBKC,,Tri-Borough Education Service,SED,,Northern Refrigeration & Catering Equipm,,,,,07/10/2014,P2972633,"4,188.00",,Standards Funds Grant,,,,,,No
The Royal Borough of Kensington and Chelsea,RBKC,,Hsg Needs and Homelessness,HNH,,Manor Lodge Hotel                       ,,,,,07/10/2014,P2975874,"3,300.00",,PLA Accommod - Stat Homeless,,,,,,No
The Royal Borough of Kensington and Chelsea,RBKC,,"Cleaner,Greener & Cultural Ser",YCG,,"Skeen, Rob                              ",,,,,07/10/2014,P2975822,"1,820.00",,Casual Labour,,,,,,No
The Royal Borough of Kensington and Chelsea,RBKC,,Non Revenue,001,,John Burke Associates                   ,,,,,07/10/2014,P2975920,"5,248.41",,Fees-Consultants,,,,,,No
The Royal Borough of Kensington and Chelsea,RBKC,,Procurement & Bus Intelligence,AS3,,Andrew Alonzi Ltd                       ,,,,,07/10/2014,P2972608,"1,450.00",,Training Expenses,,,,,,No
The Royal Borough of Kensington and Chelsea,RBKC,,Procurement & Bus Intelligence,AS3,,James Blewett Training & Consultancy Ltd,,,,,07/10/2014,P2972606,"2,400.00",,Training Expenses,,,,,,No
The Royal Borough of Kensington and Chelsea,RBKC,,Hsg Needs and Homelessness,HNH,,Altwood Properties Ltd                  ,,,,,07/10/2014,P2975867,"11,979.90",,PLA Accommod - Stat Homeless,,,,,,No
The Royal Borough of Kensington and Chelsea,RBKC,,Provided Services/ MH Partners,AS5,,Mount Carmel                            ,,,,,07/10/2014,P2975906,"2,025.43",,P&V Residential,,,,,,No
The Royal Borough of Kensington and Chelsea,RBKC,,Provided Services/ MH Partners,AS5,,Mount Carmel                            ,,,,,07/10/2014,P2975899,"2,331.00",,P&V Residential,,,,,,No
The Royal Borough of Kensington and Chelsea,RBKC,,Transportation & Highways,YTH,,Blendavenda Ltd                         ,,,,,07/10/2014,P2975781,739.00,,Initiatives,,,,,,No
The Royal Borough of Kensington and Chelsea,RBKC,,Transportation & Highways,YTH,,Edf Energy (formerly London Energy)     ,,,,,07/10/2014,P2972675,"2,606.24",,Electricity Supply - P&D,,,,,,No
The Royal Borough of Kensington and Chelsea,RBKC,,Operations,AS6,,GatenbySanderson                        ,,,,,07/10/2014,P2972687,"15,752.00",,Consultants,,,,,,No
The Royal Borough of Kensington and Chelsea,RBKC,,Hsg Needs and Homelessness,HNH,,Castleline Ltd                          ,,,,,07/10/2014,P2975876,"1,692.90",,PLA Accommod - Stat Homeless,,,,,,No
The Royal Borough of Kensington and Chelsea,RBKC,,Hsg Needs and Homelessness,HNH,,Cromwood Ltd                            ,,,,,07/10/2014,P2975868,"14,878.20",,PLA Accommod - Stat Homeless,,,,,,No
The Royal Borough of Kensington and Chelsea,RBKC,,Non Revenue,001,,Dean Transport 94 Ltd                   ,,,,,07/10/2014,P2972613,520.00,,Construction-Miscellaneous,,,,,,No
The Royal Borough of Kensington and Chelsea,RBKC,,Hsg Needs and Homelessness,HNH,,Apex Housing Solutions Ltd              ,,,,,07/10/2014,P2975875,"39,730.86",,PLA Accommod - Stat Homeless,,,,,,No
The Royal Borough of Kensington and Chelsea,RBKC,,Provided Services/ MH Partners,AS5,,Focus12                                 ,,,,,07/10/2014,P2975836,"2,200.00",,P&V Residential,,,,,,No
The Royal Borough of Kensington and Chelsea,RBKC,,Corporate Property,CBV,,Daniel Watney Chartered Surveyors       ,,,,,07/10/2014,P2975782,"3,513.35",,Consultants,,,,,,No
The Royal Borough of Kensington and Chelsea,RBKC,,Corporate Property,CBV,,Daniel Watney Chartered Surveyors       ,,,,,07/10/2014,P2975783,"5,074.60",,Consultants,,,,,,No
The Royal Borough of Kensington and Chelsea,RBKC,,Corporate Property,CBV,,Daniel Watney Chartered Surveyors       ,,,,,07/10/2014,P2975787,"2,127.80",,Consultants,,,,,,No
The Royal Borough of Kensington and Chelsea,RBKC,,Corporate Property,CBV,,Daniel Watney Chartered Surveyors       ,,,,,07/10/2014,P2975789,"1,888.51",,Consultants,,,,,,No
The Royal Borough of Kensington and Chelsea,RBKC,,Corporate Property,CBV,,Daniel Watney Chartered Surveyors       ,,,,,07/10/2014,P2975788,"1,513.35",,Consultants,,,,,,No
The Royal Borough of Kensington and Chelsea,RBKC,,Non Revenue,001,,Browne Jacobson Solicitors              ,,,,,07/10/2014,P2975914,"2,244.00",,Expenditure,,,,,,No
The Royal Borough of Kensington and Chelsea,RBKC,,Transportation & Highways,YTH,,Bikeworks                               ,,,,,07/10/2014,P2975820,"2,027.70",,Initiatives,,,,,,No
The Royal Borough of Kensington and Chelsea,RBKC,,Procurement & Bus Intelligence,AS3,,Adjusting The Balance Ltd               ,,,,,07/10/2014,P2972605,"4,200.00",,Training Expenses,,,,,,No
The Royal Borough of Kensington and Chelsea,RBKC,,Transportation & Highways,YTH,,Wernick Hire Ltd                        ,,,,,07/10/2014,P2972665,"1,714.50",,Special Schemes,,,,,,No
The Royal Borough of Kensington and Chelsea,RBKC,,Provided Services/ MH Partners,AS5,,Templetree Consulting                   ,,,,,07/10/2014,P2972691,"12,050.44",,Severence Pay,,,,,,No
The Royal Borough of Kensington and Chelsea,RBKC,,Transportation & Highways,YTH,,Beam Creative Ltd                       ,,,,,07/10/2014,P2975831,"3,580.00",,Initiatives,,,,,,No
The Royal Borough of Kensington and Chelsea,RBKC,,Operations,AS6,,Carewatch (Kensington & Chelsea)        ,,,,,07/10/2014,P2975803,"1,066.24",,Home Care over 65,,,,,,No
The Royal Borough of Kensington and Chelsea,RBKC,,Operations,AS6,,Carewatch (Kensington & Chelsea)        ,,,,,07/10/2014,P2975793,558.40,,Home Care over 65,,,,,,No
The Royal Borough of Kensington and Chelsea,RBKC,,Operations,AS6,,Carewatch (Kensington & Chelsea)        ,,,,,07/10/2014,P2972592,"1,225.00",,Home Care over 65,,,,,,No
The Royal Borough of Kensington and Chelsea,RBKC,,Operations,AS6,,Carewatch (Kensington & Chelsea)        ,,,,,07/10/2014,P2975795,"1,537.02",,Home Care over 65,,,,,,No
The Royal Borough of Kensington and Chelsea,RBKC,,Operations,AS6,,Carewatch (Kensington & Chelsea)        ,,,,,07/10/2014,P2975801,"1,471.30",,Home Care over 65,,,,,,No
The Royal Borough of Kensington and Chelsea,RBKC,,Operations,AS6,,Carewatch (Kensington & Chelsea)        ,,,,,07/10/2014,P2972588,"2,107.64",,Home Care,,,,,,No
The Royal Borough of Kensington and Chelsea,RBKC,,Operations,AS6,,Carewatch (Kensington & Chelsea)        ,,,,,07/10/2014,P2972585,"1,470.00",,Home Care over 65,,,,,,No
The Royal Borough of Kensington and Chelsea,RBKC,,Operations,AS6,,Carewatch (Kensington & Chelsea)        ,,,,,07/10/2014,P2975797,788.70,,Home Care over 65,,,,,,No
The Royal Borough of Kensington and Chelsea,RBKC,,Operations,AS6,,Carewatch (Kensington & Chelsea)        ,,,,,07/10/2014,P2972582,"1,121.40",,Home Care over 65,,,,,,No
The Royal Borough of Kensington and Chelsea,RBKC,,Hsg Needs and Homelessness,HNH,,Smart Hotels Ltd (Leinster Gdns Only)   ,,,,,07/10/2014,P2975881,"9,540.30",,PLA Accommod - Stat Homeless,,,,,,No
The Royal Borough of Kensington and Chelsea,RBKC,,Hsg Needs and Homelessness,HNH,,Smart Hotels Ltd                        ,,,,,07/10/2014,P2975889,"10,602.00",,PLA Accommod - Stat Homeless,,,,,,No
The Royal Borough of Kensington and Chelsea,RBKC,,Hsg Needs and Homelessness,HNH,,Smart Hotels Ltd                        ,,,,,07/10/2014,P2975888,"3,304.20",,PLA Accommod - Stat Homeless,,,,,,No
The Royal Borough of Kensington and Chelsea,RBKC,,Hsg Needs and Homelessness,HNH,,Smart Hotels Ltd                        ,,,,,07/10/2014,P2975887,"12,314.90",,PLA Accommod - Stat Homeless,,,,,,No
The Royal Borough of Kensington and Chelsea,RBKC,,Hsg Needs and Homelessness,HNH,,Smart Hotels Ltd                        ,,,,,07/10/2014,P2975886,"14,880.00",,PLA Accommod - Stat Homeless,,,,,,No
The Royal Borough of Kensington and Chelsea,RBKC,,Hsg Needs and Homelessness,HNH,,Smart Hotels Ltd                        ,,,,,07/10/2014,P2975885,"14,880.00",,PLA Accommod - Stat Homeless,,,,,,No
The Royal Borough of Kensington and Chelsea,RBKC,,Hsg Needs and Homelessness,HNH,,Smart Hotels Ltd                        ,,,,,07/10/2014,P2975884,"14,880.00",,PLA Accommod - Stat Homeless,,,,,,No
The Royal Borough of Kensington and Chelsea,RBKC,,Hsg Needs and Homelessness,HNH,,Smart Hotels Ltd                        ,,,,,07/10/2014,P2975883,"14,880.00",,PLA Accommod - Stat Homeless,,,,,,No
The Royal Borough of Kensington and Chelsea,RBKC,,Hsg Needs and Homelessness,HNH,,Smart Hotels Ltd                        ,,,,,07/10/2014,P2975882,"10,230.00",,PLA Accommod - Stat Homeless,,,,,,No
The Royal Borough of Kensington and Chelsea,RBKC,,Hsg Needs and Homelessness,HNH,,Smart Hotels Ltd (Leinster Gdns Only)   ,,,,,07/10/2014,P2975880,"12,266.10",,PLA Accommod - Stat Homeless,,,,,,No
The Royal Borough of Kensington and Chelsea,RBKC,,Hsg Needs and Homelessness,HNH,,Smart Hotels Ltd (Leinster Gdns Only)   ,,,,,07/10/2014,P2975879,"12,266.10",,PLA Accommod - Stat Homeless,,,,,,No
The Royal Borough of Kensington and Chelsea,RBKC,,Hsg Needs and Homelessness,HNH,,Smart Hotels Ltd (Leinster Gdns Only)   ,,,,,07/10/2014,P2975878,"8,177.40",,PLA Accommod - Stat Homeless,,,,,,No
The Royal Borough of Kensington and Chelsea,RBKC,,Hsg Needs and Homelessness,HNH,,Smart Hotels Ltd (Leinster Gdns Only)   ,,,,,07/10/2014,P2975877,"9,540.30",,PLA Accommod - Stat Homeless,,,,,,No
The Royal Borough of Kensington and Chelsea,RBKC,,Non Revenue,001,,Southern Van Lines (2006) Ltd           ,,,,,07/10/2014,P2972614,900.00,,Construction-Miscellaneous,,,,,,No
The Royal Borough of Kensington and Chelsea,RBKC,,Operations,AS6,,Bluebird Care (Kensington & Chelsea)    ,,,,,07/10/2014,P2975812,936.38,,Home Care-Ext Providers-Health,,,,,,No
The Royal Borough of Kensington and Chelsea,RBKC,,Operations,AS6,,Bluebird Care (Kensington & Chelsea)    ,,,,,07/10/2014,P2975813,"1,413.68",,Home Care-Ext Providers-Health,,,,,,No
The Royal Borough of Kensington and Chelsea,RBKC,,Provided Services/ MH Partners,AS5,,Kairos Community Trust                  ,,,,,07/10/2014,P2975900,"1,500.00",,Substance Misuse-After Care Pl,,,,,,No
The Royal Borough of Kensington and Chelsea,RBKC,,Operations,AS6,,Yarrow Housing                          ,,,,,07/10/2014,P2975916,"13,549.63",,P&V Supp Accom,,,,,,No
The Royal Borough of Kensington and Chelsea,RBKC,,Transportation & Highways,YTH,,Bronze Restorations                     ,,,,,07/10/2014,P2975865,"1,820.00",,KP Lighting,,,,,,No
The Royal Borough of Kensington and Chelsea,RBKC,,Operations,AS6,,Yarrow Housing                          ,,,,,07/10/2014,P2975893,"17,079.00",,P&V Supp Accom,,,,,,No
The Royal Borough of Kensington and Chelsea,RBKC,,Non Revenue,001,,Stanley Security Solutions              ,,,,,07/10/2014,P2975780,"7,250.00",,Construction-Main Ctrctrs A/C,,,,,,No
The Royal Borough of Kensington and Chelsea,RBKC,,Provided Services/ MH Partners,AS5,,Ana Treatment Centres Ltd               ,,,,,07/10/2014,P2975909,996.43,,P&V Residential,,,,,,No
The Royal Borough of Kensington and Chelsea,RBKC,,Provided Services/ MH Partners,AS5,,Ana Treatment Centres Ltd               ,,,,,07/10/2014,P2975908,535.72,,P&V Residential,,,,,,No
The Royal Borough of Kensington and Chelsea,RBKC,,Revenues,CFR,,Capita Business Services Ltd            ,,,,,07/10/2014,P2975918,"36,475.00",,Capita-NNDR Contract,,,,,,No
The Royal Borough of Kensington and Chelsea,RBKC,,Revenues,CFR,,Capita Business Services Ltd            ,,,,,07/10/2014,P2975918,"2,090.00",,Capita: BRS Contract,,,,,,No
The Royal Borough of Kensington and Chelsea,RBKC,,Corporate Property,CBV,,Playle & Partners Llp                   ,,,,,07/10/2014,P2975779,"1,187.20",,Consultants,,,,,,No
The Royal Borough of Kensington and Chelsea,RBKC,,Non Revenue,001,,Disclosure & Barring Service            ,,,,,07/10/2014,P2972630,"6,644.00",,Payments,,,,,,No
The Royal Borough of Kensington and Chelsea,RBKC,,"Cleaner,Greener & Cultural Ser",YCG,,Thames Water Utilities Ltd              ,,,,,07/10/2014,P2975919,665.42,,Metered Water,,,,,,No
The Royal Borough of Kensington and Chelsea,RBKC,,Transportation & Highways,YTH,,Business Systems Ltd                    ,,,,,07/10/2014,P2972611,"5,235.00",,Computer Maintenance,,,,,,No
The Royal Borough of Kensington and Chelsea,RBKC,,LibrarySupt Services,LSS,,London Grid for Learning Trust          ,,,,,07/10/2014,P2975898,"8,184.58",,Library Systems Management,,,,,,No
The Royal Borough of Kensington and Chelsea,RBKC,,Transportation & Highways,YTH,,Metric Group Ltd                        ,,,,,07/10/2014,P2972686,"26,880.18",,P&D Metric Contract,,,,,,No
The Royal Borough of Kensington and Chelsea,RBKC,,Transportation & Highways,YTH,,Metric Group Ltd                        ,,,,,07/10/2014,P2972636,522.25,,P&D Metric Contract,,,,,,No
The Royal Borough of Kensington and Chelsea,RBKC,,Procurement & Bus Intelligence,AS3,,St Matthews Conference Centre Ltd       ,,,,,07/10/2014,P2972615,550.80,,Training Expenses,,,,,,No
The Royal Borough of Kensington and Chelsea,RBKC,,Procurement & Bus Intelligence,AS3,,St Matthews Conference Centre Ltd       ,,,,,07/10/2014,P2972616,550.80,,Training Expenses,,,,,,No
The Royal Borough of Kensington and Chelsea,RBKC,,Procurement & Bus Intelligence,AS3,,St Matthews Conference Centre Ltd       ,,,,,07/10/2014,P2972618,520.40,,Training Expenses,,,,,,No
The Royal Borough of Kensington and Chelsea,RBKC,,Operations,AS6,,CavaCare Ltd                            ,,,,,07/10/2014,P2975925,"6,250.00",,Consultants,,,,,,No
The Royal Borough of Kensington and Chelsea,RBKC,,Planning Services,PP,,City Suburban Tree Surgeons Ltd         ,,,,,07/10/2014,P2975913,757.32,,Tree Maintenance,,,,,,No
The Royal Borough of Kensington and Chelsea,RBKC,,Family Services - RBKC,SKC,,Familyplans Ltd                         ,,,,,07/10/2014,P2975851,"1,222.00",,Family Group Conference,,,,,,No
The Royal Borough of Kensington and Chelsea,RBKC,,Human Resources,CHG,,NorthgateArinso UK Ltd                  ,,,,,07/10/2014,P2972598,"16,299.53",,HR Systems Contract,,,,,,No
The Royal Borough of Kensington and Chelsea,RBKC,,Hsg Needs and Homelessness,HNH,,R@W Logistics Ltd                       ,,,,,07/10/2014,P2975872,"2,114.10",,PLA Accommod - Stat Homeless,,,,,,No
The Royal Borough of Kensington and Chelsea,RBKC,,Hsg Needs and Homelessness,HNH,,R@W Logistics Ltd                       ,,,,,07/10/2014,P2975873,"2,142.90",,PLA Accommod - Stat Homeless,,,,,,No
The Royal Borough of Kensington and Chelsea,RBKC,,Information Systems,CIS,,Software Box Ltd                        ,,,,,07/10/2014,P2975826,"70,368.20",,Computer Software Purchase,,,,,,No
The Royal Borough of Kensington and Chelsea,RBKC,,Children's Commissioning,SCC,,M P Wharmby Ltd                         ,,,,,07/10/2014,P2972646,"1,000.00",,Building Mtce,,,,,,No
The Royal Borough of Kensington and Chelsea,RBKC,,Children's Commissioning,SCC,,M P Wharmby Ltd                         ,,,,,07/10/2014,P2972652,"2,600.00",,Building Mtce,,,,,,No
The Royal Borough of Kensington and Chelsea,RBKC,,Children's Commissioning,SCC,,M P Wharmby Ltd                         ,,,,,07/10/2014,P2972655,550.00,,Building Mtce,,,,,,No
The Royal Borough of Kensington and Chelsea,RBKC,,Family Services - RBKC,SKC,,Grenfell Creche Under 3'S               ,,,,,07/10/2014,P4975764,"2,003.10",,Grants Given-Misc,,,,,,No
The Royal Borough of Kensington and Chelsea,RBKC,,Non Revenue,001,,Yarrow Housing                          ,,,,,07/10/2014,P4975771,"2,320.00",,Payments,,,,,,No
The Royal Borough of Kensington and Chelsea,RBKC,,Non Revenue,001,,Yarrow Housing                          ,,,,,07/10/2014,P4975772,"2,320.00",,Payments,,,,,,No
The Royal Borough of Kensington and Chelsea,RBKC,,Non Revenue,001,,Yarrow Housing                          ,,,,,07/10/2014,P4975774,949.76,,Payments,,,,,,No
The Royal Borough of Kensington and Chelsea,RBKC,,Non Revenue,001,,Yarrow Housing                          ,,,,,07/10/2014,P4975775,"1,423.50",,Payments,,,,,,No
The Royal Borough of Kensington and Chelsea,RBKC,,Non Revenue,001,,Yarrow Housing                          ,,,,,07/10/2014,P4975776,678.40,,Payments,,,,,,No
The Royal Borough of Kensington and Chelsea,RBKC,,Corporate Property,CBV,,Performance Professionals Ltd           ,,,,,07/10/2014,P2975927,"1,024.00",,Consultants,,,,,,No
The Royal Borough of Kensington and Chelsea,RBKC,,Corporate Property,CBV,,Performance Professionals Ltd           ,,,,,07/10/2014,P2975927,"1,024.00",,Consultants,,,,,,No
The Royal Borough of Kensington and Chelsea,RBKC,,Corporate Property,CBV,,Performance Professionals Ltd           ,,,,,07/10/2014,P2975927,"1,024.00",,Consultants,,,,,,No
The Royal Borough of Kensington and Chelsea,RBKC,,Family Services - RBKC,SKC,,"Kelleher, Midori                        ",,,,,07/10/2014,P5953387,917.19,,Direct Payments,,,,,,No
The Royal Borough of Kensington and Chelsea,RBKC,,Hsg Needs and Homelessness,HNH,,Storing.com Ltd                         ,,,,,07/10/2014,P2975830,"2,243.80",,Storage-Homeless Persons,,,,,,No
The Royal Borough of Kensington and Chelsea,RBKC,,LibrarySupt Services,LSS,,A B Copyright Ltd                       ,,,,,07/10/2014,P2975829,967.00,,Photocopier Paper/Toner,,,,,,No
The Royal Borough of Kensington and Chelsea,RBKC,,Commissioning,AS4,,The Advocacy Project (AC 01749176)      ,,,,,07/10/2014,P2975778,"1,225.49",,Miscellaneous Expenses,,,,,,No
The Royal Borough of Kensington and Chelsea,RBKC,,Transportation & Highways,YTH,,Traffic Survey Partners Ltd             ,,,,,07/10/2014,P2975866,"4,295.00",,Survey Fees,,,,,,No
The Royal Borough of Kensington and Chelsea,RBKC,,Operations,AS6,,The Spinney (Broadway House)            ,,,,,07/10/2014,P2972674,"1,416.00",,Supported Living,,,,,,No
The Royal Borough of Kensington and Chelsea,RBKC,,Corporate Property,CBV,,Keegans Ltd                             ,,,,,08/10/2014,P2976332,"7,406.75",,Fees-Consultants,,,,,,No
The Royal Borough of Kensington and Chelsea,RBKC,,Public Health,JPH,,The Chelsea Practice                    ,,,,,08/10/2014,P2976378,"1,610.00",,Contract Costs,,,,,,No
The Royal Borough of Kensington and Chelsea,RBKC,,Transportation & Highways,YTH,,NSL Ltd                                 ,,,,,08/10/2014,P2976348,"2,062.97",,Salaries,,,,,,No
The Royal Borough of Kensington and Chelsea,RBKC,,Transportation & Highways,YTH,,NSL Ltd                                 ,,,,,08/10/2014,P2976348,"1,490.88",,NCP-Suspension Courtesy Call,,,,,,No
The Royal Borough of Kensington and Chelsea,RBKC,,Transportation & Highways,YTH,,NSL Ltd                                 ,,,,,08/10/2014,P2976348,978.30,,NCP Additional Enforcement,,,,,,No
The Royal Borough of Kensington and Chelsea,RBKC,,Transportation & Highways,YTH,,NSL Ltd                                 ,,,,,08/10/2014,P2976348,856.96,,NCP Additional Enforcement,,,,,,No
The Royal Borough of Kensington and Chelsea,RBKC,,Transportation & Highways,YTH,,NSL Ltd                                 ,,,,,08/10/2014,P2976348,786.12,,NCP Additional Enforcement,,,,,,No
The Royal Borough of Kensington and Chelsea,RBKC,,Transportation & Highways,YTH,,NSL Ltd                                 ,,,,,08/10/2014,P2976348,"5,853.75",,NCP Drop Curb Enforcement,,,,,,No
The Royal Borough of Kensington and Chelsea,RBKC,,Safer Neighbourhoods,YSN,,"Mantej, Andi                            ",,,,,08/10/2014,P2976387,810.00,,Instructors Fees,,,,,,No
The Royal Borough of Kensington and Chelsea,RBKC,,Tri-Borough Education Service,SED,,Narrowing The Gaps Ltd                  ,,,,,08/10/2014,P2976312,554.64,,Music Festivals,,,,,,No
The Royal Borough of Kensington and Chelsea,RBKC,,Tri-Borough Education Service,SED,,Narrowing The Gaps Ltd                  ,,,,,08/10/2014,P2976315,"1,915.96",,Miscellaneous Expenses,,,,,,No
The Royal Borough of Kensington and Chelsea,RBKC,,Tri-Borough Education Service,SED,,Narrowing The Gaps Ltd                  ,,,,,08/10/2014,P2976313,"1,077.30",,Miscellaneous Expenses,,,,,,No
The Royal Borough of Kensington and Chelsea,RBKC,,Public Health,JPH,,Foundation66 (use to be Rugby Hse)      ,,,,,08/10/2014,P2975972,"86,250.00",,Contract Costs,,,,,,No
The Royal Borough of Kensington and Chelsea,RBKC,,Corporate Property,CBV,,Keegans Ltd                             ,,,,,08/10/2014,P2976298,"1,362.14",,Consultants,,,,,,No
The Royal Borough of Kensington and Chelsea,RBKC,,Non Revenue,001,,C S Stokes And Associates Ltd           ,,,,,08/10/2014,PL822867,"1,375.00",,Fees-Consultants,,,,,,No
The Royal Borough of Kensington and Chelsea,RBKC,,Revenues,CFR,,Financial Data Management Ltd (FDM)     ,,,,,08/10/2014,P2975973,581.40,,Postages,,,,,,No
The Royal Borough of Kensington and Chelsea,RBKC,,Family Services - RBKC,SKC,,Jamma Umoja (Residential Services)      ,,,,,08/10/2014,P2975980,"2,597.00",,Parenting Assessments,,,,,,No
The Royal Borough of Kensington and Chelsea,RBKC,,Family Services - RBKC,SKC,,Jamma Umoja (Residential Services)      ,,,,,08/10/2014,P2975981,"1,806.00",,Parenting Assessments,,,,,,No
The Royal Borough of Kensington and Chelsea,RBKC,,Non Revenue,001,,Metalcraft Tottenham Ltd                ,,,,,08/10/2014,PL822872,"30,000.00",,Construction-Main Ctrctrs A/C,,,,,,No
The Royal Borough of Kensington and Chelsea,RBKC,,"Finance, Info Systems&Property",CFI,,Frankham Consultancy Group Ltd          ,,,,,08/10/2014,P2976308,882.00,,Fees-Consultants,,,,,,No
The Royal Borough of Kensington and Chelsea,RBKC,,Non Revenue,001,,London Letterbox Marketing              ,,,,,08/10/2014,P2976377,624.00,,Expenses-Other,,,,,,No
The Royal Borough of Kensington and Chelsea,RBKC,,Corporate Property,CBV,,Mash Media Group Ltd                    ,,,,,08/10/2014,P2975965,500.00,,Advertising,,,,,,No
The Royal Borough of Kensington and Chelsea,RBKC,,Corporate Property,CBV,,Mash Media Group Ltd                    ,,,,,08/10/2014,P2975967,500.00,,Advertising,,,,,,No
The Royal Borough of Kensington and Chelsea,RBKC,,Support Services & Executive,PS,,Trinity Mirror Publishing Ltd           ,,,,,08/10/2014,P2976337,520.00,,Advertising,,,,,,No
The Royal Borough of Kensington and Chelsea,RBKC,,Human Resources,CHG,,Industrial Safety Training Service      ,,,,,08/10/2014,P2975987,530.00,,Annual Programme,,,,,,No
The Royal Borough of Kensington and Chelsea,RBKC,,Non Revenue,001,,John Rowan & Partners LLP               ,,,,,08/10/2014,PL822860,"3,353.00",,RR-Disrepair,,,,,,No
The Royal Borough of Kensington and Chelsea,RBKC,,Non Revenue,001,,John Rowan & Partners LLP               ,,,,,08/10/2014,PL822863,"2,555.00",,RR-Disrepair,,,,,,No
The Royal Borough of Kensington and Chelsea,RBKC,,Non Revenue,001,,John Rowan & Partners LLP               ,,,,,08/10/2014,PL822862,"6,906.25",,Fees-Consultants,,,,,,No
The Royal Borough of Kensington and Chelsea,RBKC,,Non Revenue,001,,John Rowan & Partners LLP               ,,,,,08/10/2014,PL822861,"6,227.00",,Fees-Consultants,,,,,,No
The Royal Borough of Kensington and Chelsea,RBKC,,Family Services - RBKC,SKC,,Holman Advertising Ltd                  ,,,,,08/10/2014,P2975976,"6,050.00",,Advertising,,,,,,No
The Royal Borough of Kensington and Chelsea,RBKC,,Non Revenue,001,,Kensington & Chelsea TMO Repairs Direct ,,,,,08/10/2014,PI976029,"1,218.48",,Responsive Building Repairs,,,,,,No
The Royal Borough of Kensington and Chelsea,RBKC,,Non Revenue,001,,Kensington & Chelsea TMO Repairs Direct ,,,,,08/10/2014,PI976030,"1,229.22",,RR-Major Works Voids,,,,,,No
The Royal Borough of Kensington and Chelsea,RBKC,,Non Revenue,001,,Kensington & Chelsea TMO Repairs Direct ,,,,,08/10/2014,PI976031,"2,204.13",,Responsive Building Repairs,,,,,,No
The Royal Borough of Kensington and Chelsea,RBKC,,Tri-Borough Education Service,SED,,"Rudland, Graeme                         ",,,,,08/10/2014,P2975974,"1,925.00",,EDP/CPD,,,,,,No
The Royal Borough of Kensington and Chelsea,RBKC,,Tri-Borough Education Service,SED,,"Rudland, Graeme                         ",,,,,08/10/2014,P2975974,"1,225.00",,Music,,,,,,No
The Royal Borough of Kensington and Chelsea,RBKC,,Non Revenue,001,,Kensington & Chelsea TMO Repairs Direct ,,,,,08/10/2014,PI976208,566.75,,Responsive Building Repairs,,,,,,No
The Royal Borough of Kensington and Chelsea,RBKC,,Non Revenue,001,,Kensington & Chelsea TMO Repairs Direct ,,,,,08/10/2014,PI976209,617.12,,Responsive Building Repairs,,,,,,No
The Royal Borough of Kensington and Chelsea,RBKC,,Planning Services,PP,,DTZ Debenham Tie Leung                  ,,,,,08/10/2014,P2975957,"14,950.00",,Consultants,,,,,,No
The Royal Borough of Kensington and Chelsea,RBKC,,Hsg Needs and Homelessness,HNH,,Elliot Leigh Property Management Ltd    ,,,,,08/10/2014,P2976358,"48,432.56",,PLA Accommod - Stat Homeless,,,,,,No
The Royal Borough of Kensington and Chelsea,RBKC,,Hsg Needs and Homelessness,HNH,,Elliot Leigh Property Management Ltd    ,,,,,08/10/2014,P2976357,"41,943.17",,PLA Accommod - Stat Homeless,,,,,,No
The Royal Borough of Kensington and Chelsea,RBKC,,Hsg Needs and Homelessness,HNH,,Elliot Leigh Property Management Ltd    ,,,,,08/10/2014,P2976356,"47,404.79",,PLA Accommod - Stat Homeless,,,,,,No
The Royal Borough of Kensington and Chelsea,RBKC,,Hsg Needs and Homelessness,HNH,,Elliot Leigh Property Management Ltd    ,,,,,08/10/2014,P2976355,"47,940.43",,PLA Accommod - Stat Homeless,,,,,,No
The Royal Borough of Kensington and Chelsea,RBKC,,Hsg Needs and Homelessness,HNH,,Elliot Leigh Property Management Ltd    ,,,,,08/10/2014,P2976354,"47,220.09",,PLA Accommod - Stat Homeless,,,,,,No
The Royal Borough of Kensington and Chelsea,RBKC,,Hsg Needs and Homelessness,HNH,,Elliot Leigh Property Management Ltd    ,,,,,08/10/2014,P2976363,"47,763.09",,PLA Accommod - Stat Homeless,,,,,,No
The Royal Borough of Kensington and Chelsea,RBKC,,Hsg Needs and Homelessness,HNH,,Elliot Leigh Property Management Ltd    ,,,,,08/10/2014,P2976362,"47,249.59",,PLA Accommod - Stat Homeless,,,,,,No
The Royal Borough of Kensington and Chelsea,RBKC,,Hsg Needs and Homelessness,HNH,,Elliot Leigh Property Management Ltd    ,,,,,08/10/2014,P2976361,"46,110.90",,PLA Accommod - Stat Homeless,,,,,,No
The Royal Borough of Kensington and Chelsea,RBKC,,Hsg Needs and Homelessness,HNH,,Elliot Leigh Property Management Ltd    ,,,,,08/10/2014,P2976360,"22,528.87",,PLA Accommod - Stat Homeless,,,,,,No
The Royal Borough of Kensington and Chelsea,RBKC,,Hsg Needs and Homelessness,HNH,,Elliot Leigh Property Management Ltd    ,,,,,08/10/2014,P2976359,"2,589.23",,PLA Accommod - Stat Homeless,,,,,,No
The Royal Borough of Kensington and Chelsea,RBKC,,Public Health,JPH,,Pamodzi                                 ,,,,,08/10/2014,P2975990,772.50,,Contract Costs,,,,,,No
The Royal Borough of Kensington and Chelsea,RBKC,,Non Revenue,001,,Opus Energy Ltd                         ,,,,,08/10/2014,P3960138,"7,007.03",,Payments,,,,,,No
The Royal Borough of Kensington and Chelsea,RBKC,,Non Revenue,001,,Quadron Services Ltd                    ,,,,,08/10/2014,P2976338,585.86,,Construction-Main Ctrctrs A/C,,,,,,No
The Royal Borough of Kensington and Chelsea,RBKC,,Non Revenue,001,,Quadron Services Ltd                    ,,,,,08/10/2014,P2976338,585.86,,Construction-Main Ctrctrs A/C,,,,,,No
The Royal Borough of Kensington and Chelsea,RBKC,,Safer Neighbourhoods,YSN,,Quadron Services Ltd                    ,,,,,08/10/2014,P2976329,"48,975.79",,G Mtce Contract-Main works,,,,,,No
The Royal Borough of Kensington and Chelsea,RBKC,,Safer Neighbourhoods,YSN,,Quadron Services Ltd                    ,,,,,08/10/2014,P2976329,"81,017.69",,G Mtce Contract-Main works,,,,,,No
The Royal Borough of Kensington and Chelsea,RBKC,,Safer Neighbourhoods,YSN,,Quadron Services Ltd                    ,,,,,08/10/2014,P2976329,"29,793.56",,G Mtce Contract-Main works,,,,,,No
The Royal Borough of Kensington and Chelsea,RBKC,,Non Revenue,001,,Calford Seaden LLP                      ,,,,,08/10/2014,PL822868,"1,600.00",,Fees-Consultants,,,,,,No
The Royal Borough of Kensington and Chelsea,RBKC,,Non Revenue,001,,Calford Seaden LLP                      ,,,,,08/10/2014,PL822869,"6,750.00",,Fees-Consultants,,,,,,No
The Royal Borough of Kensington and Chelsea,RBKC,,Support Services & Executive,PS,,Eight Associates                        ,,,,,08/10/2014,P2975970,"4,250.00",,Consultants,,,,,,No
The Royal Borough of Kensington and Chelsea,RBKC,,Non Revenue,001,,Eurovia Infrastructure Ltd              ,,,,,08/10/2014,P2976299,"12,300.75",,Construction-Miscellaneous,,,,,,No
The Royal Borough of Kensington and Chelsea,RBKC,,Transportation & Highways,YTH,,Eurovia Infrastructure Ltd              ,,,,,08/10/2014,P2976369,"1,706.64",,Carriageway Markings,,,,,,No
The Royal Borough of Kensington and Chelsea,RBKC,,Transportation & Highways,YTH,,Eurovia Infrastructure Ltd              ,,,,,08/10/2014,P2976371,"1,819.19",,Carriageway Markings,,,,,,No
The Royal Borough of Kensington and Chelsea,RBKC,,Transportation & Highways,YTH,,Eurovia Infrastructure Ltd              ,,,,,08/10/2014,P2976368,691.73,,Carriageway Markings,,,,,,No
The Royal Borough of Kensington and Chelsea,RBKC,,Transportation & Highways,YTH,,Eurovia Infrastructure Ltd              ,,,,,08/10/2014,P2976366,763.16,,Carriageway Markings,,,,,,No
The Royal Borough of Kensington and Chelsea,RBKC,,Transportation & Highways,YTH,,Eurovia Infrastructure Ltd              ,,,,,08/10/2014,P2976367,"1,018.67",,Carriageway Markings,,,,,,No
The Royal Borough of Kensington and Chelsea,RBKC,,Transportation & Highways,YTH,,Eurovia Infrastructure Ltd              ,,,,,08/10/2014,P2976365,"1,061.20",,Carriageway Markings,,,,,,No
The Royal Borough of Kensington and Chelsea,RBKC,,Transportation & Highways,YTH,,Eurovia Infrastructure Ltd              ,,,,,08/10/2014,P2976370,862.19,,Carriageway Markings,,,,,,No
The Royal Borough of Kensington and Chelsea,RBKC,,Strategy & Local Services,CPU,,Chelsea Flowers                         ,,,,,08/10/2014,P2975985,938.00,,Floral Decorations,,,,,,No
The Royal Borough of Kensington and Chelsea,RBKC,,Family Services - RBKC,SKC,,Intercountry Adoption Centre            ,,,,,08/10/2014,P2976375,"11,129.66",,Inter country Adoption,,,,,,No
The Royal Borough of Kensington and Chelsea,RBKC,,Non Revenue,001,,Q Despatch (West) Ltd                   ,,,,,08/10/2014,P2976322,551.75,,Payments,,,,,,No
The Royal Borough of Kensington and Chelsea,RBKC,,Non Revenue,001,,Q Despatch (West) Ltd                   ,,,,,08/10/2014,P2976327,"2,185.30",,Payments,,,,,,No
The Royal Borough of Kensington and Chelsea,RBKC,,Non Revenue,001,,Q Despatch (West) Ltd                   ,,,,,08/10/2014,P2976328,"2,256.80",,Payments,,,,,,No
The Royal Borough of Kensington and Chelsea,RBKC,,Safer Neighbourhoods,YSN,,"Whitmore, Stephen                       ",,,,,08/10/2014,P2976388,560.00,,Instructors Fees,,,,,,No
The Royal Borough of Kensington and Chelsea,RBKC,,Non Revenue,001,,Ark Consultancy                         ,,,,,08/10/2014,PL822865,"2,502.00",,Fees-Consultants,,,,,,No
The Royal Borough of Kensington and Chelsea,RBKC,,Public Health,JPH,,Action On Addiction Ltd                 ,,,,,08/10/2014,P2975971,"20,000.00",,Contract Costs,,,,,,No
The Royal Borough of Kensington and Chelsea,RBKC,,Corporate Property,CBV,,Go For It Events Services Ltd           ,,,,,08/10/2014,P2975958,727.20,,Casual Labour,,,,,,No
The Royal Borough of Kensington and Chelsea,RBKC,,Corporate Property,CBV,,Go For It Events Services Ltd           ,,,,,08/10/2014,P2975963,717.10,,Casual Labour,,,,,,No
The Royal Borough of Kensington and Chelsea,RBKC,,Transportation & Highways,YTH,,Royal Mail                              ,,,,,08/10/2014,P2976324,"1,253.53",,Postage/Franking Charges,,,,,,No
The Royal Borough of Kensington and Chelsea,RBKC,,Revenues,CFR,,Newlyn (South Harrow)                   ,,,,,08/10/2014,PL822880,"1,384.00",,Bailiffs Fees,,,,,,No
The Royal Borough of Kensington and Chelsea,RBKC,,Public Health,JPH,,Africa Health & Education Services      ,,,,,08/10/2014,P2975989,772.50,,Contract Costs,,,,,,No
The Royal Borough of Kensington and Chelsea,RBKC,,Family Services - RBKC,SKC,,Alan Berresford Ltd                     ,,,,,08/10/2014,P2975982,"2,625.00",,Training Expenses,,,,,,No
The Royal Borough of Kensington and Chelsea,RBKC,,Hsg Needs and Homelessness,HNH,,Finefair Consultancy Ltd                ,,,,,08/10/2014,P3976301,"-2,018.45",,PLA Accommod - Stat Homeless,,,,,,No
The Royal Borough of Kensington and Chelsea,RBKC,,Hsg Needs and Homelessness,HNH,,Catalyst Housing Ltd (A/C 18466176)     ,,,,,08/10/2014,P2976372,"39,285.00",,PLA Accommod - Stat Homeless,,,,,,No
The Royal Borough of Kensington and Chelsea,RBKC,,Family Services - RBKC,SKC,,Earls Court YMCA                        ,,,,,08/10/2014,P2976307,717.60,,P&V Homes & Hostels,,,,,,No
The Royal Borough of Kensington and Chelsea,RBKC,,Family Services - RBKC,SKC,,Familyplans Ltd                         ,,,,,08/10/2014,P2976311,650.00,,Family Group Conference,,,,,,No
The Royal Borough of Kensington and Chelsea,RBKC,,Family Services - RBKC,SKC,,Familyplans Ltd                         ,,,,,08/10/2014,P2975956,"1,294.00",,Family Group Conference,,,,,,No
The Royal Borough of Kensington and Chelsea,RBKC,,Non Revenue,001,,Gage-Tupper & Associates Ltd            ,,,,,08/10/2014,PL822870,"1,967.25",,PM-External Decorations,,,,,,No
The Royal Borough of Kensington and Chelsea,RBKC,,Family Services - RBKC,SKC,,Hope Care Agency Ltd                    ,,,,,08/10/2014,P2976330,759.00,,S17 Assistance,,,,,,No
The Royal Borough of Kensington and Chelsea,RBKC,,Non Revenue,001,,Neville Thirtle FMC Ltd                 ,,,,,08/10/2014,P2976318,"1,227.50",,Consultants,,,,,,No
The Royal Borough of Kensington and Chelsea,RBKC,,Hsg Needs and Homelessness,HNH,,Finefair Consultancy Ltd                ,,,,,08/10/2014,P2976341,"29,530.28",,PLA Accommod - Stat Homeless,,,,,,No
The Royal Borough of Kensington and Chelsea,RBKC,,Hsg Needs and Homelessness,HNH,,Finefair Consultancy Ltd                ,,,,,08/10/2014,P2976342,"42,316.76",,PLA Accommod - Stat Homeless,,,,,,No
The Royal Borough of Kensington and Chelsea,RBKC,,Hsg Needs and Homelessness,HNH,,Finefair Consultancy Ltd                ,,,,,08/10/2014,P2976343,"42,153.26",,PLA Accommod - Stat Homeless,,,,,,No
The Royal Borough of Kensington and Chelsea,RBKC,,Hsg Needs and Homelessness,HNH,,Finefair Consultancy Ltd                ,,,,,08/10/2014,P2976344,"43,090.84",,PLA Accommod - Stat Homeless,,,,,,No
The Royal Borough of Kensington and Chelsea,RBKC,,Hsg Needs and Homelessness,HNH,,Finefair Consultancy Ltd                ,,,,,08/10/2014,P2976345,"40,979.03",,PLA Accommod - Stat Homeless,,,,,,No
The Royal Borough of Kensington and Chelsea,RBKC,,Hsg Needs and Homelessness,HNH,,Finefair Consultancy Ltd                ,,,,,08/10/2014,P2976346,"47,629.97",,PLA Accommod - Stat Homeless,,,,,,No
The Royal Borough of Kensington and Chelsea,RBKC,,Housing Commissioning,HCM,,Michael Hargreaves Planning             ,,,,,08/10/2014,P2976305,984.94,,Consultants,,,,,,No
The Royal Borough of Kensington and Chelsea,RBKC,,Family Services - RBKC,SKC,,Redact Details,,,,,08/10/2014,P4976250,500.00,,Enhancing Life Chances,,,,,,No
The Royal Borough of Kensington and Chelsea,RBKC,,Strategy & Local Services,CPU,,Equal People (Kensington & Chelsea)     ,,,,,08/10/2014,P4975950,"1,125.00",,Payments To Vol Orgs,,,,,,No
The Royal Borough of Kensington and Chelsea,RBKC,,Strategy & Local Services,CPU,,Octavia Foundation                      ,,,,,08/10/2014,P4975952,"8,900.00",,Payments To Vol Orgs,,,,,,No
The Royal Borough of Kensington and Chelsea,RBKC,,Strategy & Local Services,CPU,,Kensington & Chelsea Foundation         ,,,,,08/10/2014,P4975953,"7,453.00",,Payments To Vol Orgs,,,,,,No
The Royal Borough of Kensington and Chelsea,RBKC,,Strategy & Local Services,CPU,,Westway Development Trust               ,,,,,08/10/2014,P4975954,"3,587.50",,Payments To Vol Orgs,,,,,,No
The Royal Borough of Kensington and Chelsea,RBKC,,Strategy & Local Services,CPU,,Open Age                                ,,,,,08/10/2014,P4975955,"5,000.00",,Payments To Vol Orgs,,,,,,No
The Royal Borough of Kensington and Chelsea,RBKC,,Non Revenue,001,,Barrie Bookkeeping & Payroll Solutions  ,,,,,08/10/2014,P4976282,507.00,,Payments,,,,,,No
The Royal Borough of Kensington and Chelsea,RBKC,,Non Revenue,001,,Barrie Bookkeeping & Payroll Solutions  ,,,,,08/10/2014,P4976283,803.18,,Payments,,,,,,No
The Royal Borough of Kensington and Chelsea,RBKC,,Non Revenue,001,,Barrie Bookkeeping & Payroll Solutions  ,,,,,08/10/2014,P4976284,"2,500.84",,Payments,,,,,,No
The Royal Borough of Kensington and Chelsea,RBKC,,Non Revenue,001,,Barrie Bookkeeping & Payroll Solutions  ,,,,,08/10/2014,P4976285,734.90,,Payments,,,,,,No
The Royal Borough of Kensington and Chelsea,RBKC,,Non Revenue,001,,Barrie Bookkeeping & Payroll Solutions  ,,,,,08/10/2014,P4976287,666.62,,Payments,,,,,,No
The Royal Borough of Kensington and Chelsea,RBKC,,Non Revenue,001,,Barrie Bookkeeping & Payroll Solutions  ,,,,,08/10/2014,P4976291,700.00,,Payments,,,,,,No
The Royal Borough of Kensington and Chelsea,RBKC,,Non Revenue,001,,Independent Living Alternatives         ,,,,,08/10/2014,P4976292,"1,318.90",,Payments,,,,,,No
The Royal Borough of Kensington and Chelsea,RBKC,,Non Revenue,001,,Independent Living Alternatives         ,,,,,08/10/2014,P4976294,"1,461.20",,Payments,,,,,,No
The Royal Borough of Kensington and Chelsea,RBKC,,Adult Education,FAE,,Nova New Opportunities                  ,,,,,08/10/2014,P4976295,"18,333.33",,Payments To Vol Orgs,,,,,,No
The Royal Borough of Kensington and Chelsea,RBKC,,Adult Education,FAE,,Nova New Opportunities                  ,,,,,08/10/2014,P4976295,"16,666.67",,Payments To Vol Orgs,,,,,,No
The Royal Borough of Kensington and Chelsea,RBKC,,Adult Education,FAE,,Nova New Opportunities                  ,,,,,08/10/2014,P4976295,"3,030.00",,Payments To Vol Orgs,,,,,,No
The Royal Borough of Kensington and Chelsea,RBKC,,Adult Education,FAE,,Nova New Opportunities                  ,,,,,08/10/2014,P4976295,"-3,952.33",,Payments To Vol Orgs,,,,,,No
The Royal Borough of Kensington and Chelsea,RBKC,,Hsg Needs and Homelessness,HNH,,Finefair Consultancy Ltd                ,,,,,08/10/2014,P2976347,"7,992.00",,PLA Accommod - Stat Homeless,,,,,,No
The Royal Borough of Kensington and Chelsea,RBKC,,Hsg Needs and Homelessness,HNH,,CNWL NHS Foundation Trust               ,,,,,08/10/2014,P2976340,"12,603.93",,Salaries-Grant Aided,,,,,,No
The Royal Borough of Kensington and Chelsea,RBKC,,Commissioning,AS4,,K & C Mental Health Carers Association  ,,,,,08/10/2014,P5921646,"1,250.00",,Payments To Vol Orgs,,,,,,No
The Royal Borough of Kensington and Chelsea,RBKC,,Public Health,JPH,,CNWL NHS Foundation Trust               ,,,,,08/10/2014,P2975969,"185,333.00",,Contract Costs,,,,,,No
The Royal Borough of Kensington and Chelsea,RBKC,,Public Health,JPH,,CNWL NHS Foundation Trust               ,,,,,08/10/2014,P2975968,"6,250.00",,Contract Costs,,,,,,No
The Royal Borough of Kensington and Chelsea,RBKC,,Non Revenue,001,,Pellings LLP                            ,,,,,08/10/2014,PL822871,"5,087.81",,PM-External Decorations,,,,,,No
The Royal Borough of Kensington and Chelsea,RBKC,,Non Revenue,001,,Pellings LLP                            ,,,,,08/10/2014,PL822857,650.00,,Miscellaneous Expenses,,,,,,No
The Royal Borough of Kensington and Chelsea,RBKC,,Non Revenue,001,,Pellings LLP                            ,,,,,08/10/2014,PL822858,650.00,,Miscellaneous Expenses,,,,,,No
The Royal Borough of Kensington and Chelsea,RBKC,,Public Health,JPH,,Scarsdale Medical Centre                ,,,,,08/10/2014,P2976379,665.00,,Contract Costs,,,,,,No
The Royal Borough of Kensington and Chelsea,RBKC,,Planning Services,PP,,London Wildlife Ltd                     ,,,,,09/10/2014,P2977417,950.00,,Consultants,,,,,,No
The Royal Borough of Kensington and Chelsea,RBKC,,Non Revenue,001,, PROJECT CENTRE LTD                     ,,,,,09/10/2014,PL822856,"3,004.30",,Fees-Consultants,,,,,,No
The Royal Borough of Kensington and Chelsea,RBKC,,Transportation & Highways,YTH,,Project Centre                          ,,,,,09/10/2014,P2976702,"3,714.04",,Transportation Consultants,,,,,,No
The Royal Borough of Kensington and Chelsea,RBKC,,Operations,AS6,,Grace Eyre Foundation                   ,,,,,09/10/2014,P2976776,"1,000.00",,P&V Day Care,,,,,,No
The Royal Borough of Kensington and Chelsea,RBKC,,Environmental Health,YEH,,Urban Outdoors London Ltd               ,,,,,09/10/2014,P2976698,"11,065.62",,Consultants,,,,,,No
The Royal Borough of Kensington and Chelsea,RBKC,,Hsg Needs and Homelessness,HNH,,Wentworth Estates                       ,,,,,09/10/2014,P2976757,"9,019.80",,PLA Accommod - Stat Homeless,,,,,,No
The Royal Borough of Kensington and Chelsea,RBKC,,Financial Services,CFS,,Bucks.Net                               ,,,,,09/10/2014,P2976713,"1,881.31",,Internet Charges,,,,,,No
The Royal Borough of Kensington and Chelsea,RBKC,,Hsg Needs and Homelessness,HNH,,Ideal Housing Solutions                 ,,,,,09/10/2014,P2977420,"11,667.95",,PLA Accommod - Stat Homeless,,,,,,No
The Royal Borough of Kensington and Chelsea,RBKC,,Non Revenue,001,,Kennedys                                ,,,,,09/10/2014,P2976754,"1,599.40",,Expenditure,,,,,,No
The Royal Borough of Kensington and Chelsea,RBKC,,Transportation & Highways,YTH,,NSL Ltd                                 ,,,,,09/10/2014,P2976740,"5,039.56",,NCP Labour and Staff Costs,,,,,,No
The Royal Borough of Kensington and Chelsea,RBKC,,Transportation & Highways,YTH,,NSL Ltd                                 ,,,,,09/10/2014,P2976740,"3,433.70",,NCP Labour and Staff Costs,,,,,,No
The Royal Borough of Kensington and Chelsea,RBKC,,Transportation & Highways,YTH,,NSL Ltd                                 ,,,,,09/10/2014,P2976740,"8,590.19",,NCP Labour and Staff Costs,,,,,,No
The Royal Borough of Kensington and Chelsea,RBKC,,Transportation & Highways,YTH,,NSL Ltd                                 ,,,,,09/10/2014,P2976740,"33,694.57",,NCP Labour and Staff Costs,,,,,,No
The Royal Borough of Kensington and Chelsea,RBKC,,Transportation & Highways,YTH,,NSL Ltd                                 ,,,,,09/10/2014,P2976740,"32,357.83",,NCP Labour and Staff Costs,,,,,,No
The Royal Borough of Kensington and Chelsea,RBKC,,Transportation & Highways,YTH,,NSL Ltd                                 ,,,,,09/10/2014,P2976740,"16,954.29",,NCP Labour and Staff Costs,,,,,,No
The Royal Borough of Kensington and Chelsea,RBKC,,Transportation & Highways,YTH,,NSL Ltd                                 ,,,,,09/10/2014,P2976740,"131,312.55",,NCP Labour and Staff Costs,,,,,,No
The Royal Borough of Kensington and Chelsea,RBKC,,Transportation & Highways,YTH,,NSL Ltd                                 ,,,,,09/10/2014,P2976740,"27,432.75",,NCP Labour and Staff Costs,,,,,,No
The Royal Borough of Kensington and Chelsea,RBKC,,Transportation & Highways,YTH,,NSL Ltd                                 ,,,,,09/10/2014,P2976740,"2,436.04",,NCP Labour and Staff Costs,,,,,,No
The Royal Borough of Kensington and Chelsea,RBKC,,Transportation & Highways,YTH,,NSL Ltd                                 ,,,,,09/10/2014,P2976740,"18,675.11",,NCP Accommodation Costs,,,,,,No
The Royal Borough of Kensington and Chelsea,RBKC,,Transportation & Highways,YTH,,NSL Ltd                                 ,,,,,09/10/2014,P2976740,"3,487.72",,NCP Equipment& Operating Costs,,,,,,No
The Royal Borough of Kensington and Chelsea,RBKC,,Transportation & Highways,YTH,,NSL Ltd                                 ,,,,,09/10/2014,P2976740,"2,974.19",,NCP Equipment& Operating Costs,,,,,,No
The Royal Borough of Kensington and Chelsea,RBKC,,Transportation & Highways,YTH,,NSL Ltd                                 ,,,,,09/10/2014,P2976740,764.69,,NCP Equipment& Operating Costs,,,,,,No
The Royal Borough of Kensington and Chelsea,RBKC,,Transportation & Highways,YTH,,NSL Ltd                                 ,,,,,09/10/2014,P2976740,"1,774.57",,NCP Equipment& Operating Costs,,,,,,No
The Royal Borough of Kensington and Chelsea,RBKC,,Transportation & Highways,YTH,,NSL Ltd                                 ,,,,,09/10/2014,P2976740,"3,557.18",,NCP Equipment& Operating Costs,,,,,,No
The Royal Borough of Kensington and Chelsea,RBKC,,Transportation & Highways,YTH,,NSL Ltd                                 ,,,,,09/10/2014,P2976740,861.24,,NCP Vehicle Operating Costs,,,,,,No
The Royal Borough of Kensington and Chelsea,RBKC,,Transportation & Highways,YTH,,NSL Ltd                                 ,,,,,09/10/2014,P2976740,826.34,,NCP Vehicle Operating Costs,,,,,,No
The Royal Borough of Kensington and Chelsea,RBKC,,Transportation & Highways,YTH,,NSL Ltd                                 ,,,,,09/10/2014,P2976740,"4,057.86",,NCP Other Direct Contrct Costs,,,,,,No
The Royal Borough of Kensington and Chelsea,RBKC,,Transportation & Highways,YTH,,NSL Ltd                                 ,,,,,09/10/2014,P2976740,"2,891.12",,NCP Other Direct Contrct Costs,,,,,,No
The Royal Borough of Kensington and Chelsea,RBKC,,Transportation & Highways,YTH,,NSL Ltd                                 ,,,,,09/10/2014,P2976740,"1,796.33",,NCP Depreciation,,,,,,No
The Royal Borough of Kensington and Chelsea,RBKC,,Transportation & Highways,YTH,,NSL Ltd                                 ,,,,,09/10/2014,P2976740,500.42,,NCP Corporate Overheads,,,,,,No
The Royal Borough of Kensington and Chelsea,RBKC,,Transportation & Highways,YTH,,NSL Ltd                                 ,,,,,09/10/2014,P2976740,"6,074.67",,NCP Corporate Overheads,,,,,,No
The Royal Borough of Kensington and Chelsea,RBKC,,Transportation & Highways,YTH,,NSL Ltd                                 ,,,,,09/10/2014,P2976740,"24,298.64",,NCP Profit,,,,,,No
The Royal Borough of Kensington and Chelsea,RBKC,,Transportation & Highways,YTH,,NSL Ltd                                 ,,,,,09/10/2014,P2976740,"27,881.04",,NCP Labour and Staff Costs,,,,,,No
The Royal Borough of Kensington and Chelsea,RBKC,,Transportation & Highways,YTH,,NSL Ltd                                 ,,,,,09/10/2014,P2976740,"20,672.18",,NCP Labour and Staff Costs,,,,,,No
The Royal Borough of Kensington and Chelsea,RBKC,,Transportation & Highways,YTH,,NSL Ltd                                 ,,,,,09/10/2014,P2976740,"7,980.74",,NCP Labour and Staff Costs,,,,,,No
The Royal Borough of Kensington and Chelsea,RBKC,,Transportation & Highways,YTH,,NSL Ltd                                 ,,,,,09/10/2014,P2976740,"13,940.71",,NCP Accommodation Costs,,,,,,No
The Royal Borough of Kensington and Chelsea,RBKC,,Transportation & Highways,YTH,,NSL Ltd                                 ,,,,,09/10/2014,P2976740,626.63,,NCP Equipment& Operating Costs,,,,,,No
The Royal Borough of Kensington and Chelsea,RBKC,,Transportation & Highways,YTH,,NSL Ltd                                 ,,,,,09/10/2014,P2976740,"3,576.48",,NCP Vehicle Operating Costs,,,,,,No
The Royal Borough of Kensington and Chelsea,RBKC,,Transportation & Highways,YTH,,NSL Ltd                                 ,,,,,09/10/2014,P2976740,"3,111.09",,NCP Vehicle Operating Costs,,,,,,No
The Royal Borough of Kensington and Chelsea,RBKC,,Transportation & Highways,YTH,,NSL Ltd                                 ,,,,,09/10/2014,P2976740,900.49,,NCP Other Direct Contrct Costs,,,,,,No
The Royal Borough of Kensington and Chelsea,RBKC,,Transportation & Highways,YTH,,NSL Ltd                                 ,,,,,09/10/2014,P2976740,"2,360.40",,NCP Other Direct Contrct Costs,,,,,,No
The Royal Borough of Kensington and Chelsea,RBKC,,Transportation & Highways,YTH,,NSL Ltd                                 ,,,,,09/10/2014,P2976740,"5,090.57",,NCP Depreciation,,,,,,No
The Royal Borough of Kensington and Chelsea,RBKC,,Transportation & Highways,YTH,,NSL Ltd                                 ,,,,,09/10/2014,P2976740,"1,188.33",,NCP Corporate Overheads,,,,,,No
The Royal Borough of Kensington and Chelsea,RBKC,,Transportation & Highways,YTH,,NSL Ltd                                 ,,,,,09/10/2014,P2976740,"1,754.24",,NCP Corporate Overheads,,,,,,No
The Royal Borough of Kensington and Chelsea,RBKC,,Transportation & Highways,YTH,,NSL Ltd                                 ,,,,,09/10/2014,P2976740,"7,017.14",,NCP Profit,,,,,,No
The Royal Borough of Kensington and Chelsea,RBKC,,Non Revenue,001,,Konica Minolta Business Solutions (UK) L,,,,,09/10/2014,P2976718,"43,196.50",,Payments,,,,,,No
The Royal Borough of Kensington and Chelsea,RBKC,,Non Revenue,001,,John Burke Associates                   ,,,,,09/10/2014,P2977403,"5,391.84",,Fees-Consultants,,,,,,No
The Royal Borough of Kensington and Chelsea,RBKC,,Non Revenue,001,,DWF LLP                                 ,,,,,09/10/2014,P2976741,"1,750.00",,Expenditure,,,,,,No
The Royal Borough of Kensington and Chelsea,RBKC,,Children's Commissioning,SCC,,Reconstruct Ltd                         ,,,,,09/10/2014,P2976755,"2,076.00",,Training Programme Delivery,,,,,,No
The Royal Borough of Kensington and Chelsea,RBKC,,Safeguarding & LSCB,SGB,,Mike Smith Training and Consultancy     ,,,,,09/10/2014,P2976708,"1,625.00",,Training Programme Delivery,,,,,,No
The Royal Borough of Kensington and Chelsea,RBKC,,Revenues,CFR,,Financial Data Management Ltd (FDM)     ,,,,,09/10/2014,P2977406,"3,372.02",,External Printing,,,,,,No
The Royal Borough of Kensington and Chelsea,RBKC,,Finance and Resources,YFR,,Network Utilities Systems Ltd           ,,,,,09/10/2014,P2977366,"4,646.64",,Bldg Fixtures&Fitting-Purchase,,,,,,No
The Royal Borough of Kensington and Chelsea,RBKC,,Operations,AS6,,W Sherry & Sons                         ,,,,,09/10/2014,P2977367,783.00,,Funeral Expenses,,,,,,No
The Royal Borough of Kensington and Chelsea,RBKC,,Operations,AS6,,W Sherry & Sons                         ,,,,,09/10/2014,P2977368,613.00,,Funeral Expenses,,,,,,No
The Royal Borough of Kensington and Chelsea,RBKC,,Family Services - RBKC,SKC,,Holman Advertising Ltd                  ,,,,,09/10/2014,P2976775,"6,050.00",,Advertising,,,,,,No
The Royal Borough of Kensington and Chelsea,RBKC,,Corporate Property,CBV,,Westway Development Trust               ,,,,,09/10/2014,P2977348,"5,000.00",,Use Of Premises,,,,,,No
The Royal Borough of Kensington and Chelsea,RBKC,,Non Revenue,001,,Kensington & Chelsea TMO Repairs Direct ,,,,,09/10/2014,PI976421,"2,260.78",,RR-Major Works Voids,,,,,,No
The Royal Borough of Kensington and Chelsea,RBKC,,Non Revenue,001,,Kensington & Chelsea TMO Repairs Direct ,,,,,09/10/2014,PI976423,"1,801.29",,Responsive Building Repairs,,,,,,No
The Royal Borough of Kensington and Chelsea,RBKC,,Non Revenue,001,,Kensington & Chelsea TMO Repairs Direct ,,,,,09/10/2014,PI976424,687.57,,Responsive Building Repairs,,,,,,No
The Royal Borough of Kensington and Chelsea,RBKC,,Non Revenue,001,,Kensington & Chelsea TMO Repairs Direct ,,,,,09/10/2014,PI976425,584.69,,Responsive Building Repairs,,,,,,No
The Royal Borough of Kensington and Chelsea,RBKC,,"Cleaner,Greener & Cultural Ser",YCG,,"Brokalaki, Zafeirenia                   ",,,,,09/10/2014,P2977370,"1,080.00",,HPT-Sponsorship,,,,,,No
The Royal Borough of Kensington and Chelsea,RBKC,,Hsg Needs and Homelessness,HNH,,Central Housing Group Ltd               ,,,,,09/10/2014,P2976749,"17,726.43",,PLA Accommod - Stat Homeless,,,,,,No
The Royal Borough of Kensington and Chelsea,RBKC,,Hsg Needs and Homelessness,HNH,,Central Housing Group Ltd               ,,,,,09/10/2014,P2976742,"16,312.44",,PLA Accommod - Stat Homeless,,,,,,No
The Royal Borough of Kensington and Chelsea,RBKC,,Hsg Needs and Homelessness,HNH,,Central Housing Group Ltd               ,,,,,09/10/2014,P2976743,"13,622.70",,PLA Accommod - Stat Homeless,,,,,,No
The Royal Borough of Kensington and Chelsea,RBKC,,Hsg Needs and Homelessness,HNH,,Central Housing Group Ltd               ,,,,,09/10/2014,P2976745,"13,312.20",,PLA Accommod - Stat Homeless,,,,,,No
The Royal Borough of Kensington and Chelsea,RBKC,,Hsg Needs and Homelessness,HNH,,Central Housing Group Ltd               ,,,,,09/10/2014,P2976747,"4,343.10",,PLA Accommod - Stat Homeless,,,,,,No
The Royal Borough of Kensington and Chelsea,RBKC,,Hsg Needs and Homelessness,HNH,,Central Housing Group Ltd               ,,,,,09/10/2014,P2976748,"14,466.30",,PLA Accommod - Stat Homeless,,,,,,No
The Royal Borough of Kensington and Chelsea,RBKC,,Hsg Needs and Homelessness,HNH,,Central Housing Group Ltd               ,,,,,09/10/2014,P2976753,"10,922.10",,PLA Accommod - Stat Homeless,,,,,,No
The Royal Borough of Kensington and Chelsea,RBKC,,Hsg Needs and Homelessness,HNH,,Central Housing Group Ltd               ,,,,,09/10/2014,P2976752,"10,755.00",,PLA Accommod - Stat Homeless,,,,,,No
The Royal Borough of Kensington and Chelsea,RBKC,,Hsg Needs and Homelessness,HNH,,Central Housing Group Ltd               ,,,,,09/10/2014,P2976751,"9,922.50",,PLA Accommod - Stat Homeless,,,,,,No
The Royal Borough of Kensington and Chelsea,RBKC,,Hsg Needs and Homelessness,HNH,,Central Housing Group Ltd               ,,,,,09/10/2014,P2976750,"10,305.60",,PLA Accommod - Stat Homeless,,,,,,No
The Royal Borough of Kensington and Chelsea,RBKC,,Hsg Needs and Homelessness,HNH,,Central Housing Group Ltd               ,,,,,09/10/2014,P2976744,"6,483.90",,PLA Accommod - Stat Homeless,,,,,,No
The Royal Borough of Kensington and Chelsea,RBKC,,Hsg Needs and Homelessness,HNH,,Central Housing Group Ltd               ,,,,,09/10/2014,P2976746,"7,464.90",,PLA Accommod - Stat Homeless,,,,,,No
The Royal Borough of Kensington and Chelsea,RBKC,,Safer Neighbourhoods,YSN,,Signway Supplies Datchet Ltd            ,,,,,09/10/2014,P2976770,911.20,,Sign Maintenance,,,,,,No
The Royal Borough of Kensington and Chelsea,RBKC,,Transportation & Highways,YTH,,Bikeworks                               ,,,,,09/10/2014,P2977432,540.00,,Initiatives,,,,,,No
The Royal Borough of Kensington and Chelsea,RBKC,,Operations,AS6,,Ashbourne Healthcare Services           ,,,,,09/10/2014,P2976726,926.43,,Home Care-Ext Providers-Health,,,,,,No
The Royal Borough of Kensington and Chelsea,RBKC,,Operations,AS6,,Ashbourne Healthcare Services           ,,,,,09/10/2014,P2976728,691.14,,Home Care-Ext Providers-Health,,,,,,No
The Royal Borough of Kensington and Chelsea,RBKC,,Operations,AS6,,Ashbourne Healthcare Services           ,,,,,09/10/2014,P2976729,921.52,,Home Care-Ext Providers-Health,,,,,,No
The Royal Borough of Kensington and Chelsea,RBKC,,Operations,AS6,,Ashbourne Healthcare Services           ,,,,,09/10/2014,P2976736,921.52,,Home Care-Ext Providers-Health,,,,,,No
The Royal Borough of Kensington and Chelsea,RBKC,,Operations,AS6,,Ashbourne Healthcare Services           ,,,,,09/10/2014,P2976735,921.52,,Home Care-Ext Providers-Health,,,,,,No
The Royal Borough of Kensington and Chelsea,RBKC,,Operations,AS6,,Ashbourne Healthcare Services           ,,,,,09/10/2014,P2976730,767.92,,Home Care-Ext Providers-Health,,,,,,No
The Royal Borough of Kensington and Chelsea,RBKC,,Operations,AS6,,Ashbourne Healthcare Services           ,,,,,09/10/2014,P2976724,"1,016.84",,Home Care-Ext Providers-Health,,,,,,No
The Royal Borough of Kensington and Chelsea,RBKC,,Operations,AS6,,Ashbourne Healthcare Services           ,,,,,09/10/2014,P2976723,921.52,,Home Care-Ext Providers-Health,,,,,,No
The Royal Borough of Kensington and Chelsea,RBKC,,Public Health,JPH,,Thrive Tribe Ltd                        ,,,,,09/10/2014,P2976773,"64,620.25",,Contract Costs,,,,,,No
The Royal Borough of Kensington and Chelsea,RBKC,,Operations,AS6,,Redact Details,,,,,09/10/2014,PI977221,680.00,,Direct Payments,,,,,,No
The Royal Borough of Kensington and Chelsea,RBKC,,Operations,AS6,,Redact Details,,,,,09/10/2014,PI976996,788.00,,Direct Payments Over 65,,,,,,No
The Royal Borough of Kensington and Chelsea,RBKC,,Operations,AS6,,Redact Details,,,,,09/10/2014,PI977227,"2,474.40",,Direct Payments,,,,,,No
The Royal Borough of Kensington and Chelsea,RBKC,,Provided Services/ MH Partners,AS5,,Redact Details,,,,,09/10/2014,PI976888,508.00,,Direct Payments,,,,,,No
The Royal Borough of Kensington and Chelsea,RBKC,,Operations,AS6,,Redact Details,,,,,09/10/2014,PI976958,"2,444.00",,Direct Payments,,,,,,No
The Royal Borough of Kensington and Chelsea,RBKC,,Operations,AS6,,Redact Details,,,,,09/10/2014,PI977268,771.40,,Direct Payments,,,,,,No
The Royal Borough of Kensington and Chelsea,RBKC,,Operations,AS6,,Redact Details,,,,,09/10/2014,PI977231,"1,840.00",,Direct Payments,,,,,,No
The Royal Borough of Kensington and Chelsea,RBKC,,Operations,AS6,,Redact Details,,,,,09/10/2014,PI976874,609.00,,Direct Payments,,,,,,No
The Royal Borough of Kensington and Chelsea,RBKC,,Operations,AS6,,Redact Details,,,,,09/10/2014,PI976998,724.20,,Direct Payments Over 65,,,,,,No
The Royal Borough of Kensington and Chelsea,RBKC,,Operations,AS6,,Redact Details,,,,,09/10/2014,PI976877,608.16,,Direct Payments,,,,,,No
The Royal Borough of Kensington and Chelsea,RBKC,,Operations,AS6,,Redact Details,,,,,09/10/2014,PI977241,830.00,,Direct Payments,,,,,,No
The Royal Borough of Kensington and Chelsea,RBKC,,Operations,AS6,,Redact Details,,,,,09/10/2014,PI977257,"1,160.00",,Direct Payments Over 65,,,,,,No
The Royal Borough of Kensington and Chelsea,RBKC,,Operations,AS6,,Redact Details,,,,,09/10/2014,PI977315,"1,000.00",,Direct Payments,,,,,,No
The Royal Borough of Kensington and Chelsea,RBKC,,Operations,AS6,,Redact Details,,,,,09/10/2014,PI976868,"1,028.00",,Direct Payments,,,,,,No
The Royal Borough of Kensington and Chelsea,RBKC,,Operations,AS6,,Redact Details,,,,,09/10/2014,PI977238,920.00,,Direct Payments,,,,,,No
The Royal Borough of Kensington and Chelsea,RBKC,,Operations,AS6,,Redact Details,,,,,09/10/2014,PI976930,"1,500.20",,Direct Payments Over 65,,,,,,No
The Royal Borough of Kensington and Chelsea,RBKC,,Operations,AS6,,Redact Details,,,,,09/10/2014,PI977244,"1,528.00",,Direct Payments,,,,,,No
The Royal Borough of Kensington and Chelsea,RBKC,,Operations,AS6,,Redact Details,,,,,09/10/2014,PI976872,557.36,,Direct Payments Over 65,,,,,,No
The Royal Borough of Kensington and Chelsea,RBKC,,Operations,AS6,,Redact Details,,,,,09/10/2014,PI977262,"2,681.52",,Direct Payments,,,,,,No
The Royal Borough of Kensington and Chelsea,RBKC,,Operations,AS6,,Redact Details,,,,,09/10/2014,PI977217,"1,496.92",,Direct Payments,,,,,,No
The Royal Borough of Kensington and Chelsea,RBKC,,Operations,AS6,,Redact Details,,,,,09/10/2014,PI976959,"3,200.00",,Direct Payments Over 65,,,,,,No
The Royal Borough of Kensington and Chelsea,RBKC,,Operations,AS6,,Redact Details,,,,,09/10/2014,PI977266,"1,000.00",,Direct Payments,,,,,,No
The Royal Borough of Kensington and Chelsea,RBKC,,Operations,AS6,,Redact Details,,,,,09/10/2014,PI977101,"1,190.40",,Direct Payments Over 65,,,,,,No
The Royal Borough of Kensington and Chelsea,RBKC,,Operations,AS6,,Redact Details,,,,,09/10/2014,PI977271,"4,000.00",,Direct Payments,,,,,,No
The Royal Borough of Kensington and Chelsea,RBKC,,Operations,AS6,,Redact Details,,,,,09/10/2014,PI977225,"2,400.00",,Direct Payments,,,,,,No
The Royal Borough of Kensington and Chelsea,RBKC,,Operations,AS6,,Redact Details,,,,,09/10/2014,PI976870,600.00,,Direct Payments Over 65,,,,,,No
The Royal Borough of Kensington and Chelsea,RBKC,,Operations,AS6,,Redact Details,,,,,09/10/2014,PI977224,"1,852.00",,Direct Payments,,,,,,No
The Royal Borough of Kensington and Chelsea,RBKC,,Operations,AS6,,Redact Details,,,,,09/10/2014,PI977247,640.00,,Direct Payments,,,,,,No
The Royal Borough of Kensington and Chelsea,RBKC,,Operations,AS6,,Redact Details,,,,,09/10/2014,PI977289,"1,235.08",,Direct Payments Over 65,,,,,,No
The Royal Borough of Kensington and Chelsea,RBKC,,Operations,AS6,,Redact Details,,,,,09/10/2014,PI977251,"1,960.00",,Direct Payments,,,,,,No
The Royal Borough of Kensington and Chelsea,RBKC,,Operations,AS6,,Redact Details,,,,,09/10/2014,PI976878,"1,280.00",,Direct Payments Over 65,,,,,,No
The Royal Borough of Kensington and Chelsea,RBKC,,Operations,AS6,,Redact Details,,,,,09/10/2014,PI977255,560.00,,Direct Payments,,,,,,No
The Royal Borough of Kensington and Chelsea,RBKC,,Operations,AS6,,Redact Details,,,,,09/10/2014,PI977220,"1,004.84",,Direct Payments,,,,,,No
The Royal Borough of Kensington and Chelsea,RBKC,,Operations,AS6,,Redact Details,,,,,09/10/2014,PI977223,"2,369.72",,Direct Payments,,,,,,No
The Royal Borough of Kensington and Chelsea,RBKC,,Operations,AS6,,Redact Details,,,,,09/10/2014,PI977265,600.00,,Direct Payments,,,,,,No
The Royal Borough of Kensington and Chelsea,RBKC,,Operations,AS6,,Redact Details,,,,,09/10/2014,PI977233,"1,042.56",,Direct Payments,,,,,,No
The Royal Borough of Kensington and Chelsea,RBKC,,Operations,AS6,,Redact Details,,,,,09/10/2014,PI977219,"2,088.00",,Direct Payments,,,,,,No
The Royal Borough of Kensington and Chelsea,RBKC,,Operations,AS6,,Redact Details,,,,,09/10/2014,PI977213,"1,346.64",,Direct Payments Over 65,,,,,,No
The Royal Borough of Kensington and Chelsea,RBKC,,Operations,AS6,,Redact Details,,,,,09/10/2014,PI977214,"1,520.40",,Direct Payments Over 65,,,,,,No
The Royal Borough of Kensington and Chelsea,RBKC,,Operations,AS6,,Redact Details,,,,,09/10/2014,PI977215,"2,606.40",,Direct Payments,,,,,,No
The Royal Borough of Kensington and Chelsea,RBKC,,Operations,AS6,,Redact Details,,,,,09/10/2014,PI977270,620.00,,Direct Payments Over 65,,,,,,No
The Royal Borough of Kensington and Chelsea,RBKC,,Operations,AS6,,Redact Details,,,,,09/10/2014,PI977243,820.00,,Direct Payments,,,,,,No
The Royal Borough of Kensington and Chelsea,RBKC,,Commissioning,AS4,,Redact Details,,,,,09/10/2014,PI977279,600.00,,Service To Carers,,,,,,No
The Royal Borough of Kensington and Chelsea,RBKC,,Operations,AS6,,Redact Details,,,,,09/10/2014,PI977216,"1,344.00",,Direct Payments,,,,,,No
The Royal Borough of Kensington and Chelsea,RBKC,,Operations,AS6,,Redact Details,,,,,09/10/2014,PI977300,644.00,,Direct Payments Over 65,,,,,,No
The Royal Borough of Kensington and Chelsea,RBKC,,Operations,AS6,,Redact Details,,,,,09/10/2014,PI977303,"1,299.20",,Direct Payments,,,,,,No
The Royal Borough of Kensington and Chelsea,RBKC,,Operations,AS6,,Redact Details,,,,,09/10/2014,PI977305,"1,504.00",,Direct Payments,,,,,,No
The Royal Borough of Kensington and Chelsea,RBKC,,Operations,AS6,,Redact Details,,,,,09/10/2014,PI977228,"2,400.00",,Direct Payments,,,,,,No
The Royal Borough of Kensington and Chelsea,RBKC,,Operations,AS6,,Redact Details,,,,,09/10/2014,PI976885,"1,394.48",,Direct Payments,,,,,,No
The Royal Borough of Kensington and Chelsea,RBKC,,Operations,AS6,,Redact Details,,,,,09/10/2014,PI977230,704.00,,Direct Payments,,,,,,No
The Royal Borough of Kensington and Chelsea,RBKC,,Operations,AS6,,Redact Details,,,,,09/10/2014,PI976882,600.00,,Direct Payments,,,,,,No
The Royal Borough of Kensington and Chelsea,RBKC,,Operations,AS6,,Redact Details,,,,,09/10/2014,PI976977,901.56,,Direct Payments,,,,,,No
The Royal Borough of Kensington and Chelsea,RBKC,,Operations,AS6,,Redact Details,,,,,09/10/2014,PI976887,"1,244.00",,Direct Payments,,,,,,No
The Royal Borough of Kensington and Chelsea,RBKC,,Operations,AS6,,Redact Details,,,,,09/10/2014,PI977240,560.00,,Direct Payments Over 65,,,,,,No
The Royal Borough of Kensington and Chelsea,RBKC,,Operations,AS6,,Redact Details,,,,,09/10/2014,PI977283,615.28,,Direct Payments Over 65,,,,,,No
The Royal Borough of Kensington and Chelsea,RBKC,,Operations,AS6,,Redact Details,,,,,09/10/2014,PI976890,720.00,,Direct Payments,,,,,,No
The Royal Borough of Kensington and Chelsea,RBKC,,Operations,AS6,,Redact Details,,,,,09/10/2014,PI977118,540.80,,Direct Payments Over 65,,,,,,No
The Royal Borough of Kensington and Chelsea,RBKC,,Operations,AS6,,Redact Details,,,,,09/10/2014,PI976922,825.28,,Direct Payments Over 65,,,,,,No
The Royal Borough of Kensington and Chelsea,RBKC,,Operations,AS6,,Redact Details,,,,,09/10/2014,PI976901,730.80,,Direct Payments Over 65,,,,,,No
The Royal Borough of Kensington and Chelsea,RBKC,,Operations,AS6,,Redact Details,,,,,09/10/2014,PI976898,"1,260.00",,Direct Payments Over 65,,,,,,No
The Royal Borough of Kensington and Chelsea,RBKC,,Operations,AS6,,Redact Details,,,,,09/10/2014,PI977250,"1,040.00",,Direct Payments Over 65,,,,,,No
The Royal Borough of Kensington and Chelsea,RBKC,,Operations,AS6,,Redact Details,,,,,09/10/2014,PI976900,572.00,,Direct Payments Over 65,,,,,,No
The Royal Borough of Kensington and Chelsea,RBKC,,Operations,AS6,,Redact Details,,,,,09/10/2014,PI976926,904.00,,Direct Payments Over 65,,,,,,No
The Royal Borough of Kensington and Chelsea,RBKC,,Operations,AS6,,Redact Details,,,,,09/10/2014,PI977261,"1,022.20",,Direct Payments,,,,,,No
The Royal Borough of Kensington and Chelsea,RBKC,,Operations,AS6,,Redact Details,,,,,09/10/2014,PI976914,613.08,,Direct Payments,,,,,,No
The Royal Borough of Kensington and Chelsea,RBKC,,Operations,AS6,,Redact Details,,,,,09/10/2014,PI976921,"2,460.00",,Direct Payments,,,,,,No
The Royal Borough of Kensington and Chelsea,RBKC,,Operations,AS6,,Redact Details,,,,,09/10/2014,PI977239,632.00,,Direct Payments,,,,,,No
The Royal Borough of Kensington and Chelsea,RBKC,,Operations,AS6,,Redact Details,,,,,09/10/2014,PI977059,"2,141.32",,Direct Payments,,,,,,No
The Royal Borough of Kensington and Chelsea,RBKC,,Non Revenue,001,,Redact Details,,,,,09/10/2014,PI977068,"2,142.00",,Payments,,,,,,No
The Royal Borough of Kensington and Chelsea,RBKC,,Operations,AS6,,Redact Details,,,,,09/10/2014,PI976942,"1,050.00",,Direct Payments,,,,,,No
The Royal Borough of Kensington and Chelsea,RBKC,,Non Revenue,001,,Redact Details,,,,,09/10/2014,PI976946,507.52,,Payments,,,,,,No
The Royal Borough of Kensington and Chelsea,RBKC,,Operations,AS6,,Redact Details,,,,,09/10/2014,PI976960,"1,815.71",,Direct Payments,,,,,,No
The Royal Borough of Kensington and Chelsea,RBKC,,Operations,AS6,,Redact Details,,,,,09/10/2014,PI976945,780.00,,Direct Payments,,,,,,No
The Royal Borough of Kensington and Chelsea,RBKC,,Commissioning,AS4,,Redact Details,,,,,09/10/2014,PI977114,500.00,,Service To Carers,,,,,,No
The Royal Borough of Kensington and Chelsea,RBKC,,Operations,AS6,,Redact Details,,,,,09/10/2014,PI977307,600.00,,Direct Payments Over 65,,,,,,No
The Royal Borough of Kensington and Chelsea,RBKC,,Operations,AS6,,Redact Details,,,,,09/10/2014,PI976967,582.20,,Direct Payments,,,,,,No
The Royal Borough of Kensington and Chelsea,RBKC,,Operations,AS6,,Redact Details,,,,,09/10/2014,PI976962,"1,218.00",,Direct Payments Over 65,,,,,,No
The Royal Borough of Kensington and Chelsea,RBKC,,Operations,AS6,,Redact Details,,,,,09/10/2014,PI976952,640.00,,Direct Payments Over 65,,,,,,No
The Royal Borough of Kensington and Chelsea,RBKC,,Operations,AS6,,Redact Details,,,,,09/10/2014,PI976963,870.00,,Direct Payments Over 65,,,,,,No
The Royal Borough of Kensington and Chelsea,RBKC,,Operations,AS6,,Redact Details,,,,,09/10/2014,PI976971,"1,000.00",,Direct Payments,,,,,,No
The Royal Borough of Kensington and Chelsea,RBKC,,Operations,AS6,,Redact Details,,,,,09/10/2014,PI977022,"5,100.00",,Direct Payments,,,,,,No
The Royal Borough of Kensington and Chelsea,RBKC,,Operations,AS6,,Redact Details,,,,,09/10/2014,PI977028,808.00,,Direct Payments,,,,,,No
The Royal Borough of Kensington and Chelsea,RBKC,,Operations,AS6,,Redact Details,,,,,09/10/2014,PI977057,"1,080.00",,Direct Payments Over 65,,,,,,No
The Royal Borough of Kensington and Chelsea,RBKC,,Operations,AS6,,Redact Details,,,,,09/10/2014,PI976976,"1,280.00",,Direct Payments Over 65,,,,,,No
The Royal Borough of Kensington and Chelsea,RBKC,,Operations,AS6,,Redact Details,,,,,09/10/2014,PI976975,"1,084.00",,Direct Payments Over 65,,,,,,No
The Royal Borough of Kensington and Chelsea,RBKC,,Operations,AS6,,Redact Details,,,,,09/10/2014,PI976973,933.80,,Direct Payments,,,,,,No
The Royal Borough of Kensington and Chelsea,RBKC,,Non Revenue,001,,Redact Details,,,,,09/10/2014,PI976978,"3,000.00",,Payments,,,,,,No
The Royal Borough of Kensington and Chelsea,RBKC,,Operations,AS6,,Redact Details,,,,,09/10/2014,PI977032,682.00,,Direct Payments,,,,,,No
The Royal Borough of Kensington and Chelsea,RBKC,,Provided Services/ MH Partners,AS5,,Redact Details,,,,,09/10/2014,PI976931,600.60,,Direct Payments,,,,,,No
The Royal Borough of Kensington and Chelsea,RBKC,,Operations,AS6,,Redact Details,,,,,09/10/2014,PI977014,"1,132.56",,Direct Payments,,,,,,No
The Royal Borough of Kensington and Chelsea,RBKC,,Operations,AS6,,Redact Details,,,,,09/10/2014,PI976983,800.00,,Direct Payments Over 65,,,,,,No
The Royal Borough of Kensington and Chelsea,RBKC,,Operations,AS6,,Redact Details,,,,,09/10/2014,PI977249,"1,299.20",,Direct Payments,,,,,,No
The Royal Borough of Kensington and Chelsea,RBKC,,Operations,AS6,,Redact Details,,,,,09/10/2014,PI977020,"1,671.80",,Direct Payments Over 65,,,,,,No
The Royal Borough of Kensington and Chelsea,RBKC,,Operations,AS6,,Redact Details,,,,,09/10/2014,PI976969,649.60,,Direct Payments,,,,,,No
The Royal Borough of Kensington and Chelsea,RBKC,,Operations,AS6,,Redact Details,,,,,09/10/2014,PI976987,"1,238.88",,Direct Payments Over 65,,,,,,No
The Royal Borough of Kensington and Chelsea,RBKC,,Operations,AS6,,Redact Details,,,,,09/10/2014,PI977043,540.00,,Direct Payments,,,,,,No
The Royal Borough of Kensington and Chelsea,RBKC,,Operations,AS6,,Redact Details,,,,,09/10/2014,PI977034,649.60,,Direct Payments,,,,,,No
The Royal Borough of Kensington and Chelsea,RBKC,,Operations,AS6,,Redact Details,,,,,09/10/2014,PI977025,600.00,,Direct Payments,,,,,,No
The Royal Borough of Kensington and Chelsea,RBKC,,Operations,AS6,,Redact Details,,,,,09/10/2014,PI977263,955.80,,Direct Payments,,,,,,No
The Royal Borough of Kensington and Chelsea,RBKC,,Operations,AS6,,Redact Details,,,,,09/10/2014,PI977033,740.00,,Direct Payments Over 65,,,,,,No
The Royal Borough of Kensington and Chelsea,RBKC,,Operations,AS6,,Redact Details,,,,,09/10/2014,PI977026,848.00,,Direct Payments Over 65,,,,,,No
The Royal Borough of Kensington and Chelsea,RBKC,,Operations,AS6,,Redact Details,,,,,09/10/2014,PI977044,600.00,,Direct Payments,,,,,,No
The Royal Borough of Kensington and Chelsea,RBKC,,Operations,AS6,,Redact Details,,,,,09/10/2014,PI977064,"1,200.00",,Direct Payments Over 65,,,,,,No
The Royal Borough of Kensington and Chelsea,RBKC,,Operations,AS6,,Redact Details,,,,,09/10/2014,PI977047,960.00,,Direct Payments Over 65,,,,,,No
The Royal Borough of Kensington and Chelsea,RBKC,,Operations,AS6,,Redact Details,,,,,09/10/2014,PI976881,"1,540.00",,Direct Payments,,,,,,No
The Royal Borough of Kensington and Chelsea,RBKC,,Operations,AS6,,Redact Details,,,,,09/10/2014,PI977052,892.00,,Direct Payments,,,,,,No
The Royal Borough of Kensington and Chelsea,RBKC,,Operations,AS6,,Redact Details,,,,,09/10/2014,PI977062,"2,240.00",,Direct Payments,,,,,,No
The Royal Borough of Kensington and Chelsea,RBKC,,Operations,AS6,,Redact Details,,,,,09/10/2014,PI977304,"1,643.00",,Direct Payments,,,,,,No
The Royal Borough of Kensington and Chelsea,RBKC,,Non Revenue,001,,Redact Details,,,,,09/10/2014,PI977060,"1,327.68",,Payments,,,,,,No
The Royal Borough of Kensington and Chelsea,RBKC,,Operations,AS6,,Redact Details,,,,,09/10/2014,PI976920,"2,998.00",,Direct Payments,,,,,,No
The Royal Borough of Kensington and Chelsea,RBKC,,Operations,AS6,,Redact Details,,,,,09/10/2014,PI977091,720.00,,Direct Payments,,,,,,No
The Royal Borough of Kensington and Chelsea,RBKC,,Operations,AS6,,Redact Details,,,,,09/10/2014,PI976964,"1,576.00",,Direct Payments Over 65,,,,,,No
The Royal Borough of Kensington and Chelsea,RBKC,,Operations,AS6,,Redact Details,,,,,09/10/2014,PI977074,554.72,,Direct Payments,,,,,,No
The Royal Borough of Kensington and Chelsea,RBKC,,Operations,AS6,,Redact Details,,,,,09/10/2014,PI977072,"1,800.00",,Direct Payments Over 65,,,,,,No
The Royal Borough of Kensington and Chelsea,RBKC,,Operations,AS6,,Redact Details,,,,,09/10/2014,PI977077,704.00,,Direct Payments,,,,,,No
